{"text_format":"1","workbook":"xlsx","n_sheets":21,"sheets":["Integración de PAA","Plan Acción","Pinar","PAdquisiciones","PETH","Plan de Previsión de RRHH","PSST","PIC","Plan de Incentivos"," Plan MIPG ","Plan de Vacantes","Hoja1","PAAC consolidado","Pan Antitramite","PETI","Plan de Transformación Digital","Plan de Eficiencia Admin","Plan Conflicto de Interés","PTRSPI","PSPI","Consolidado"],"not_rendered":{"charts":0,"images":9,"macros":1,"external_links":1,"defined_names":37,"comments":4,"pivot_tables":0},"unopened":[],"bounds":{"document_bytes":16777216,"sheet_cells":100000,"rows_first":2000,"rows_last":500,"rows_between":2000,"halvings":0,"cell_chars":16384,"cell_head_chars":4096},"cells_cut":0,"cells_raw":0,"read":"whole","date_system":"1900"}

{"sheet":"Integración de PAA","index":0,"n_rows":64,"n_cols":13,"rows_kept":64,"cut":false,"hidden":false,"merged":[[63,12,63,14]]}
[]
[]
[]
[]
[]
[]
[]
[]
[]
[]
[]
[]
[]
[]
[]
[]
[]
[]
[]
[]
[]
[]
[]
[]
[]
[]
[]
[]
[]
[]
[]
[]
[]
[]
[]
[]
[]
[]
[]
[]
[]
[]
[]
[]
[]
[]
[]
[]
[]
[]
[]
[]
[]
[]
[]
[]
[]
[]
[]
[]
[]
[]
[]
[null,null,null,null,null,null,null,null,null,null,null,null,"Versión 4 - 31/01/2021"]

{"sheet":"Plan Acción","index":1,"n_rows":29,"n_cols":25,"rows_kept":29,"cut":false,"hidden":false,"merged":[[0,3,0,8],[3,3,4,11]]}
[]
[]
[]
[null,null,null,"PLAN DE ACCION ANUAL\nFINDETER 2021 "]
[]
[]
[]
[]
[]
[null,"Perspectiva Estratégica","Objetivo Estratégico","Dependencia","Código Proyecto SIGEP","Nombre de la tarea","Descripción ","Presupuesto","Responsable de tarea ","Fecha Inicio","Fecha Fin","Fuente de Financiación ","Indicador (Si Aplica)","Fórmula","Meta 2021","Observaciones","Seguimiento SPI\nTrimestre 4","Avance planeado - Trimestre 1","Avance planeado - Trimestre 12","Avance planeado - Trimestre 13","Avance planeado - Trimestre 14","Avance ejecutado - Trimestre 1","Avance ejecutado - Trimestre 2","Avance ejecutado - Trimestre 3","Avance ejecutado - Trimestre 4"]
[null,"Perspectiva Capacidades","11.Gestionar eficientemente nuestra comunicación corporativa","Gerencia de Comunicaciones, Mercadeo y Responsabilidad Social","VC-GC-Ecosistema Digital","Ecosistema Digital ","Implementar una  red de elementos o componentes que le permitirá a la entidad contar con tácticas digitales para conseguir trafico de usuarios en el sitio web, mayor interacción con los prospectos, clientes y adquirir ventas a través de estrategias de marketing por internet.",263731452,"Ingrid Catalina Giraldo – Vicepresidenta de Operaciones ","2021-02-15","2022-02-28","Findeter","Cumplimiento del Cronograma (SPI)  ","% Avance Real / % Avance Programado ",0.95,null,{"$f":"IFERROR(Seg_Plan_Accion[[#This Row],[Avance ejecutado - Trimestre 4]]/#REF!,\"N/A\")","v":"N/A"},0.51439999999999997,0.18559999999999999,0.19000000000000006,0.10999999999999999,0.48299999999999998]
[null,"Perspectiva Gestión Integral","6. Aumentar la efectividad de la gestión comercial","Vicepresidencia Comercial ","VC-GE-ME-Oficina Virtual","Oficina Virtual","Construir y entregar a la Entidad un canal digital que le permita comercializar sus productos y ofrecer a sus clientes alternativas de interacción con la entidad, adicionales a la oficina tradicional.",0,"Ingrid Catalina Giraldo – Vicepresidenta de Operaciones ","2021-01-22","2021-12-17","Findeter","Cumplimiento del Cronograma (SPI)  ","% Avance Real / % Avance Programado ",0.95,null,{"$f":"IFERROR(Seg_Plan_Accion[[#This Row],[Avance ejecutado - Trimestre 4]]/#REF!,\"N/A\")","v":"N/A"},1,0,0,0,1]
[null,"Perspectiva Capacidades  ","16.Consolidar y promover la transformación digital de nuestra Entidad","Vicepresidencia de Operaciones - Dirección de Tecnología ","VO-DT-Arquitec Empresa Core Tecnica y Fra","Arquitectura empresarial Core Financiera y Técnica","Identificar las capacidades estratégicas y de negocio que permitan definir claramente las capacidades de TI necesarias para atender los deseos y expectativas de clientes, usuarios e interesados de FINDETER desde un marco de buenas prácticas llamadas “Arquitectura Empresarial”.",102000030,"Ingrid Catalina Giraldo – Vicepresidenta de Operaciones ","2021-02-12","2021-09-30","Findeter","Cumplimiento del Cronograma (SPI)  ","% Avance Real / % Avance Programado ",0.95,null,{"$f":"IFERROR(Seg_Plan_Accion[[#This Row],[Avance ejecutado - Trimestre 4]]/#REF!,\"N/A\")","v":"N/A"},0.98,2.0000000000000018E-2,0,0,0.98]
[null,"Perspectiva Capacidades  ","16.Consolidar y promover la transformación digital de nuestra Entidad","Presidencia ","PR-Gobierno de Datos Fase III","Gobierno de Datos Fase III","Ejercer la autoridad y el control (Planificación, seguimiento y aplicación) a través de la gestión de los activos de datos en estado de completitud, validez, consistencia, oportunidad y precisión para tomar decisiones correctas del negocio, servir a los clientes y cumplir los objetivos empresariales.",212000000,"Ingrid Catalina Giraldo – Vicepresidenta de Operaciones ","2021-03-31","2021-12-31","Findeter","Cumplimiento del Cronograma (SPI)  ","% Avance Real / % Avance Programado ",0.95,null,{"$f":"IFERROR(Seg_Plan_Accion[[#This Row],[Avance ejecutado - Trimestre 4]]/#REF!,\"N/A\")","v":"N/A"},1,0,0,0,1]
[null,"Perspectiva Capacidades  ","16.Consolidar y promover la transformación digital de nuestra Entidad","Vicepresidencia de Operaciones - Dirección de Tecnología ","VC-IN-Estrategia de analitica de datos","Estrategia de Analitica de Datos (BA)","Dotar a FINDETER de una estrategia y solución que realice la analítica de los datos estructurados que se generan en todas las dependencias de la entidad para que soporten la toma de decisiones estratégicas.",328440000,"Ingrid Catalina Giraldo – Vicepresidenta de Operaciones ","2021-03-31","2021-12-31","Findeter","Cumplimiento del Cronograma (SPI)  ","% Avance Real / % Avance Programado ",0.95,null,0,0.54,0.16999999999999993,0.19000000000000006,7.999999999999996E-2,0.52]
[null,"Perspectiva Gestión Integral","7.Contar con una  planificación territorial pertinente y de impacto;","Vicepresidencia Financiera","VF-BN-Estrategia Consecución y Uso Recursos Cooperación","Estrategia para consecución y uso de recursos de cooperación","El proyecto consiste en Construcción de una estrategia para la consecución de recursos de cooperación internacional, de acuerdo con las necesidades de los territorios y el enfoque de las áreas de Findeter",0,"María Elena Mesa - Asesora Presidencia","2021-01-25","2021-12-31","Findeter","Cumplimiento del Cronograma (SPI)  ","% Avance Real / % Avance Programado ",0.95,null,{"$f":"IFERROR(Seg_Plan_Accion[[#This Row],[Avance ejecutado - Trimestre 4]]/#REF!,\"N/A\")","v":"N/A"},1,0,0,0,0.97]
[null,"Perspectiva Capacidades  ","13.Fortalecer la gestión de los recursos financieros propios y de terceros;","Vicepresidencia Financiera","VF-DT-Implementación Derivados Estandarizados","Implementación Derivados Estandarizados","El proyecto se realizará principalmente para:\n- Diversificar las estrategias de inversión aplicables al portafolio propio de inversiones\n- Cubrir un riesgo de mercado asociado al movimiento de una tasa de interés (Cobertura)\n- Obtener rendimientos financieros a través de apalancamiento (Especulación)\nEl proyecto consiste en realizar el alistamiento que permita ejecutar operaciones en instrumentos financieros denominados Derivados Estandarizados",0,"Richard Martínez - Vicepresidente Financiero","2019-11-15","2020-09-30","Findeter","Cumplimiento del Cronograma (SPI)  ","% Avance Real / % Avance Programado ",0.95,null,{"$f":"IFERROR(Seg_Plan_Accion[[#This Row],[Avance ejecutado - Trimestre 4]]/#REF!,\"N/A\")","v":"N/A"},1,0,0,0,1]
[null,"Perspectiva Capacidades  ","16.Consolidar y promover la transformación digital de nuestra Entidad","Vicepresidencia de Operaciones - Dirección de Tecnología ","VO-DT-Optimiza capacidad tecnológica","Optimización de las capacidades tecnológicas","El proyecto es un compendio de actividades alineadas con el plan estratégico de tecnología (PETI) que principalmente actualizan las capacidades de la infraestructura tecnológica y la seguridad de la entidad.",38580038,"Ingrid Catalina Giraldo – Vicepresidenta de Operaciones ","2020-01-27","2021-05-28","Findeter","Cumplimiento del Cronograma (SPI)  ","% Avance Real / % Avance Programado ",0.95,null,{"$f":"IFERROR(Seg_Plan_Accion[[#This Row],[Avance ejecutado - Trimestre 4]]/#REF!,\"N/A\")","v":"N/A"},0.96279999999999999,3.7200000000000011E-2,0,0,0.97]
[null,"Perspectiva Gestión Integral","10.Incrementar  la efectividad en la ejecución de los proyectos de asistencia técnica","Vicepresidencia de Planeación - Gerencia de Planeación y Gestión","VP-GP-Madura Gerencia Proyectos ","Maduración de Gerencia de Proyectos","Implementar Plan de Maduración de Gerencia de Proyectos",0,"Leonardo Fabio Ramos - Vicepresidente de Riesgos","2021-01-04","2021-09-30","Findeter","Cumplimiento del Cronograma (SPI)  ","% Avance Real / % Avance Programado ",0.95,null,{"$f":"IFERROR(Seg_Plan_Accion[[#This Row],[Avance ejecutado - Trimestre 4]]/#REF!,\"N/A\")","v":"N/A"},0.27,0.44999999999999996,0.27,1.0000000000000009E-2,0.26]
[null,"Perspectiva Capacidades  ","15. Fortalecer la gestión y administración de riesgosconsolidados para generar un adecuado ambiente de control","Vicepresidencia de Riesgos","VR-Certifica ISO27001 Redesc-CreDir","Certificación ISO 27001 y 27002 Alcance: Redescuento y Crédito Directo","Certificación ISO 27001 y 27002 Alcance: Redescuento y Crédito Directo",40000000,"Ingrid Catalina Giraldo – Vicepresidenta de Operaciones ","2021-04-30","2022-03-31","Findeter","Cumplimiento del Cronograma (SPI)  ","% Avance Real / % Avance Programado ",0.95,null,{"$f":"IFERROR(Seg_Plan_Accion[[#This Row],[Avance ejecutado - Trimestre 4]]/#REF!,\"N/A\")","v":"N/A"},0,0.3,0.3,0.30000000000000004,0]
[null,"Perspectiva Capacidades  ","16.Consolidar y promover la transformación digital de nuestra Entidad","Vicepresidencia de Operaciones - Dirección de Tecnología ","VP-GP-Gestion Cambio Cultura mas Digital","Estrategia de Transformación Digital","Incluye el talento humano capacitado, el diseño de centros de excelencia y una estrategia para que FINDETER pueda identificar y capturar las oportunidades del mercado desde lo digital.\nTambién incluye un programa de gestión del cambio a lo digital y una propuesta de Academia Digital para FINDETER.",282000000,"Laura Mercedes Peña Rodriguez - Vicepresidenta de Planeación","2021-01-15","2022-09-30","Findeter","Cumplimiento del Cronograma (SPI)  ","% Avance Real / % Avance Programado ",0.95,null,{"$f":"IFERROR(Seg_Plan_Accion[[#This Row],[Avance ejecutado - Trimestre 4]]/#REF!,\"N/A\")","v":"N/A"},0.15509999999999999,7.4900000000000022E-2,0.28000000000000003,0.22999999999999998,0.16489999999999999]
[null,"Perspectiva Capacidades  ","14.Consolidar nuestros procesos de acuerdo con la Estrategia Corporativa;\n16.Consolidar y promover la transformación digital de nuestra Entidad;","Vicepresidencia de Planeación - Gerencia de Planeación y Gestión","VP-GP-Automatizacion y Optimizacion Procesos","Automatización y Optimización de Procesos BPM","Orientar y rediseñar los procesos a entornos completamente digitales, incluyendo elementos como autenticación, firmas electrónica y digital, flujo, gestión, archivo y transferencia de documentos creados desde digital.",0,"Ingrid Catalina Giraldo – Vicepresidenta de Operaciones ","2021-02-15","2022-02-28","Findeter","Cumplimiento del Cronograma (SPI)  ","% Avance Real / % Avance Programado ",0.95,null,{"$f":"IFERROR(Seg_Plan_Accion[[#This Row],[Avance ejecutado - Trimestre 4]]/#REF!,\"N/A\")","v":"N/A"},9.6500000000000002E-2,0.14349999999999999,0.16000000000000003,0.51,0.109]
[null,"CAPACIDADES","16.Consolidar y promover la transformación digital de nuestra Entidad","Vicepresidencia de Operaciones - Dirección de Tecnología ","VO-DT-Robot Process Automation RPA","Robot Process Automation RPA ","Este proyecto esta orientado a impulsar la transformación digital en la Entidad, incrementando la eficiencia operativa de esta, por medio del empleo de tecnologías de robotización de actividades, las cuales permiten eliminar tareas manuales y repetitivas dentro de procesos clave de negocio, así como reducir el riesgo por falla humana en el desarrollo de los mismos. ",175000000,"Ingrid Catalina Giraldo – Vicepresidenta de Operaciones ","2021-01-22","2021-12-17","Findeter","Cumplimiento del Cronograma (SPI)  ","% Avance Real / % Avance Programado ",0.95,null,{"$f":"IFERROR(Seg_Plan_Accion[[#This Row],[Avance ejecutado - Trimestre 4]]/#REF!,\"N/A\")","v":"N/A"},0.111,0.38900000000000001,0.36,0.14000000000000001,0.115]
[null,"CAPACIDADES","16.Consolidar y promover la transformación digital de nuestra Entidad","Vicepresidencia de Operaciones - Dirección de Tecnología ","VO-DT-Uso y Apropiación Fase 2021","Uso y apropiación 2021","El presente proyecto en su fase 2021 el objetivo es dejar 7 servicios de IT , con el módulo de uso y apropiación",67152000,"Ingrid Catalina Giraldo – Vicepresidenta de Operaciones ","2021-02-12","2021-09-30","Findeter","Cumplimiento del Cronograma (SPI)  ","% Avance Real / % Avance Programado ",0.95,null,{"$f":"IFERROR(Seg_Plan_Accion[[#This Row],[Avance ejecutado - Trimestre 4]]/#REF!,\"N/A\")","v":"N/A"},2.9700000000000001E-2,0.74030000000000007,0.22999999999999998,0,3.049E-2]
[null,"CAPACIDADES","16.Consolidar y promover la transformación digital de nuestra Entidad","Vicepresidencia de Operaciones - Dirección de Tecnología ","VO-DT-Nuevas Formas de Trabajo en Digital Fase II","Nuevas Formas de Trabajo Digital Fase II","El proyecto consiste en promover el uso de herramientas tecnológicas, para fomentar el trabajo digital que facilite a la organización, comunicación, envío y recepción de la información no estructurada del negocio al interior de la Entidad y con externos cumpliendo con los protocolos de seguridad.",0,"Ingrid Catalina Giraldo – Vicepresidenta de Operaciones ","2021-03-31","2021-12-31","Findeter","Cumplimiento del Cronograma (SPI)  ","% Avance Real / % Avance Programado ",0.95,null,{"$f":"IFERROR(Seg_Plan_Accion[[#This Row],[Avance ejecutado - Trimestre 4]]/#REF!,\"N/A\")","v":"N/A"},0,0.33,0.33,0.33999999999999997,0]
[null,"GESTIÓN INTEGRAL","9. Aumentar la financiaciónde operaciones y proyectos en sectores financiables","Vicepresidencia de Operaciones - Dirección de Tecnología ","VO-DC-Credito Directo fase 2","Servicios de crédito directo fase 2","Fortalecer la solución tecnológica que soporta el proceso de Crédito Directo para Entes Territoriales.",300000000,"Ingrid Catalina Giraldo – Vicepresidenta de Operaciones ","2021-03-31","2021-12-31","Findeter","Cumplimiento del Cronograma (SPI)  ","% Avance Real / % Avance Programado ",0.95,null,{"$f":"IFERROR(Seg_Plan_Accion[[#This Row],[Avance ejecutado - Trimestre 4]]/#REF!,\"N/A\")","v":"N/A"},0,0.33,0.33,0.33999999999999997,0]
[null,"CAPACIDADES","16.Consolidar y promover la transformación digital de nuestra Entidad","Vicepresidencia de Operaciones - Dirección de Tecnología ","VO-DT-Optimiza capacidad tecno f2","Segunda fase optimización de las capacidades tecnológicas","Programa qu eincluye la actualización de switches, Optimización de la planta telefónica, modelamiento dela arquitectura (App/Intra) vs CMDB y la gestión de Identidades",597781864,"María Elena Mesa - Asesora Presidencia","2021-01-25","2021-12-31","Findeter","Cumplimiento del Cronograma (SPI)  ","% Avance Real / % Avance Programado ",0.95,null,{"$f":"IFERROR(Seg_Plan_Accion[[#This Row],[Avance ejecutado - Trimestre 4]]/#REF!,\"N/A\")","v":"N/A"},0.18429999999999999,0.50569999999999993,0.22000000000000008,8.9999999999999969E-2,0.187]
[null,"CAPACIDADES","16.Consolidar y promover la transformación digital de nuestra Entidad","Presidencia ","PR-Gobierno de Datos Fase IV","Gobierno de Datos Fase IV","Implementar las herramientas de control para el Gobierno de Datos Fase IV dentro de los cinco procesos con la participación de la VP Comercial, VP de Desarrollo Territorial, VP Financiera, VP de Operaciones y VP Técnica como generadoras de información y por otro lado, la VP de Planeación como consolidadora de la información.\n\nLa primera fase consistirá en la incorporación y actualización en el SGI de la entidad, incluyendo el diagrama, la caracterización del proceso y la propuesta de documentación del mismo. \nLa segunda fase se enfocará en implementar el proceso de calidad de datos, definiendo los indicadores de calidad y como resultado sería la normalización de los datos en los sistemas de información.\nLa tercera fase deberá implementar una herramienta par construir el master data de Findeter y producir las directrices de integración.\nExiste una tarea transversal que es muy importante que es la divulgación del uso y apropiación del gobierno de datos por parte de las vicepresidencias.",290430000,null,null,null,null,null,null,null,null,{"$f":"IFERROR(Seg_Plan_Accion[[#This Row],[Avance ejecutado - Trimestre 4]]/#REF!,\"N/A\")","v":"N/A"},{"$f":"SUM(R11:R27)/ROWS(R11:R27)+0","v":0.46139999999999992},{"$f":"SUM(S11:S27)/ROWS(S11:S27)+R28","v":0.67764705882352938},{"$f":"SUM(T11:T27)/ROWS(T11:T27)+S28","v":0.84588235294117642},{"$f":"SUM(U11:U27)/ROWS(U11:U27)+T28","v":0.97235294117647053},{"$f":"SUM(V11:V27)/ROWS(V11:V27)+0","v":0.45819941176470591},{"$f":"SUM(W11:W27)/ROWS(W11:W27)+V28","v":0.45819941176470591},{"$f":"SUM(X11:X27)/ROWS(X11:X27)+W28","v":0.45819941176470591},{"$f":"SUM(Y11:Y27)/ROWS(Y11:Y27)+X28","v":0.45819941176470591}]
[null,null,null,null,null,null,null,{"$f":"SUBTOTAL(109,H11:H28)","v":2697115384},null,null,null,null,null,null,null,null,{"$f":"IFERROR(Seg_Plan_Accion[[#This Row],[Avance ejecutado - Trimestre 4]]/#REF!,\"N/A\")","v":"N/A"}]

{"sheet":"Pinar","index":2,"n_rows":15,"n_cols":9,"rows_kept":15,"cut":false,"hidden":false,"merged":[[1,2,1,8],[2,3,7,5]]}
[]
[]
[null,null,null,"         PLAN INSTITUCIONAL DE ARCHIVOS - PINAR\nFINDETER 2021"]
[]
[]
[]
[]
[]
[]
[]
[]
[null,"Dependencia","Nombre de la tarea","Descripción ","Política de Gestión y Desempeño","Responsable de tarea ","Fecha Inicio","Fecha Fin","Fuente de Financiación "]
[null,"Jefatura de Servicios Generales","Revisar y ajustar estandares de publicación de los  instrumentos de gestión de información pública. (Matriz ITA 2021)","Revisar y ajustar documentos de gestión documental que se requiere publicar en virtud de la Ley de  transparencia ","Gestión Documental","Colaborador Jefatura de Servicios Generales\nClaudia Yovanna Moreno",44197,44377,"Funcionamiento"]
[null,"Jefatura de Servicios Generales","Capacitar Procesos Archivisticos ","Se realizaran capacitaciones a trabajadores nuevos y retroalimentar a trabajadores antiguos en los procesos archivísticos.","Gestión Documental","Colaborador Jefatura de Servicios Generales\nClaudia Yovanna Moreno",44228,44560,"Funcionamiento"]
[null,"Jefatura de Servicios Generales","Actualizar las  Tablas de Retención Documental ","continuar con  las  entrevistas por las dependencia con los jefes  para actualizar  las Tablas de Retención Documental según la nueva estructura organizacional de la entidad. ","Gestión Documental","Colaborador Jefatura de Servicios Generales\nClaudia Yovanna Moreno",44197,44530,"Funcionamiento"]

{"sheet":"PAdquisiciones","index":3,"n_rows":531,"n_cols":14,"rows_kept":531,"cut":false,"hidden":false,"merged":[[4,5,8,11],[11,9,11,10],[11,11,12,11],[11,12,12,12],[11,13,12,13],[11,1,12,1],[11,2,12,2],[11,3,11,4],[11,5,11,6],[11,7,11,8]]}
[]
[]
[]
[]
[null,null,null,null,null,"PLAN ANUAL DE ADQUISICIONES\nFINDETER 2021"]
[]
[]
[]
[]
[]
[]
[null,"Vicepresidencia","Dependencia","Rubro",null,"Área",null,"Centro de Costo",null,"Producto",null,"Descripción de los Bienes o\nServicios a Contratar","Fecha Estimada de Contratacion Reprogramada","Valor Presupuestal"]
[null,null,null,"Código","Nombre","Código","Nombre","Código","Nombre","Código","Nombre"]
[null,"Operaciones","D. Tecnologia",203050310,"Mantenimiento de Software",800,"Vicepresidencia de Operaciones",810,"Direccion de Tecnologia",642,"Otras Asesorias","Biblioteca Virtual Biteca - Soporte y Mantenimiento de Aplicativo.","2020-12-31",35000000]
[null,"Comercial","J. Mercadeo",203051003,"Impresos y Publicaciones",400,"Vicepresidencia Comercial",461,"Jefatura de Mercadeo",667,"Impresos y Publicaciones","Impresos Publicaciones (Libros, Informes)","2020-12-31",70000000]
[null,"S. General","J. Servicios G",203050307,"Mantenimiento de Edificios y Locales",400,"Vicepresidencia Comercial",454,"Regional Noroccidental",111,"Mantenimiento Inmuebles","Mantenimiento Preventivo y Correctivo para los equipos de aire acondicionado de la Oficina de Medellin.","2020-12-31",3559890]
[null,"Operaciones","D. Tecnologia",203050310,"Mantenimiento de Software",800,"Vicepresidencia de Operaciones",810,"Direccion de Tecnologia",411,"Mantenimiento de Licenciamiento de Mcaffee Antivirus","Soporte y Mantenimiento del Antivirus Corporativo End Point","2020-12-31",12000000]
[null,"Comercial","J. Mercadeo",203030105,"Otras Asesorias",400,"Vicepresidencia Comercial",461,"Jefatura de Mercadeo",642,"Otras Asesorias","Estudio de Satisfaccion y Servicio al Cliente externo e Interno","2020-12-31",89771869]
[null,"S. General","J. Servicios G",203050305,"Mantenimiento de Vehiculos",200,"Secretaria General",245,"Jefatura de Servicios Generales",746,"Mantenimiento Vehiculos","Distoyota - Mantenimiento de Vehiculo Toyota Presidencia","2020-12-31",5000000]
[null,"Operaciones","D. Tecnologia",203030105,"Otras Asesorias",800,"Vicepresidencia de Operaciones",810,"Direccion de Tecnologia",418,"Servicio Especializado Mesa Ayuda","Servicio Especializado de Mesa de Servicios Especializados","2020-12-31",524384448]
[null,"Operaciones","D. Tecnologia",204010108,"Compra de Software",800,"Vicepresidencia de Operaciones",810,"Direccion de Tecnologia",38,"Licenciamiento Microsoft","Licenciamiento Software Ax, Crm, Servidores y Ofimática. Licenciamiento de Microsoft. ","2020-12-31",1287077197]
[null,"Operaciones","D. Tecnologia",203030105,"Otras Asesorias",800,"Vicepresidencia de Operaciones",810,"Direccion de Tecnologia",935,"Implementacion Proyectos Peti","Proyecto Analítica de Datos","2020-12-31",214084235]
[null,"S. General","J. Servicios G",203050405,"Otros Gastos Locales y Edificios",200,"Secretaria General",245,"Jefatura de Servicios Generales",726,"Adecuacion Edificio","Adecuaciones Regionales","2020-12-31",175221860]
[null,"Presidencia","O. de Cumplimiento",203030105,"Otras Asesorias",100,"Presidencia",130,"Oficial de Cumplimiento",642,"Otras Asesorias","Adecuación del Sarlaft a las Nuevas Disposiciones Normativas de la Superfinanciera.","2020-12-31",40000000]
[null,"S. General","J. Servicios G",203030105,"Otras Asesorias",200,"Secretaria General",245,"Jefatura de Servicios Generales",298,"Administracion. Inventario y Conciliacion Activos Fijos","Administración del Inventario, Conciliación y Gestión de los Activos de la Entidad Bajo las Normas Niif y los Bienes Muebles que están en Condición de Arrendamiento, así como los Avalúos de Inmuebles que Requiera Findeter, Mediante el Uso de Una Solución Tecnológica que Facilite la Gestión y Automatización del Proceso","2020-12-31",185000000]
[null,"S. General","J. Servicios G",203050101,"Equipo de Computo, Comunicacion y Multifuncionales",200,"Secretaria General",245,"Jefatura de Servicios Generales",938,"Automatizacion Delmanejo de Activos","Administración del Inventario, Conciliación y Gestión de los Activos de la Entidad Bajo las Normas Niif y los Bienes Muebles que están en Condición de Arrendamiento, así como los Avalúos de Inmuebles que Requiera Findeter, Mediante el Uso de Una Solución Tecnológica que Facilite la Gestión y Automatización del Proceso","2020-12-31",232000000]
[null,"Operaciones","D. Tecnologia",203050309,"Mantenimiento de Hardware",800,"Vicepresidencia de Operaciones",810,"Direccion de Tecnologia",113,"Mantenimiento Hardware","Mantenimiento equipos Redes Lan y Wifi Nivel Central","2020-12-31",24519517]
[null,"S. General","J. Servicios G",203050305,"Mantenimiento de Vehiculos",200,"Secretaria General",245,"Jefatura de Servicios Generales",746,"Mantenimiento Vehiculos","Sanautos - Mantenimiento de Vehiculo Renault Secretaria General","2020-12-31",{"$f":"1000000+1000000","v":2000000}]
[null,"Operaciones","D. Tecnologia",203050310,"Mantenimiento de Software",800,"Vicepresidencia de Operaciones",810,"Direccion de Tecnologia",711,"Soporte y Mantenimiento Herramienta de Bi","Tableros de Inteligencia de Negocios -  Bi (Qlik)","2020-12-31",20081250]
[null,"Comercial","VP Comercial",203050705,"Libros, Periodicos y Suscripciones",400,"Vicepresidencia Comercial",400,"Vicepresidencia Comercial",290,"Suscripcion Consulta Informacion Comercial En Linea","Servicio de Consulta de Información Comercial en Línea con el Fin de Obtener datos Estadísticos, Potencialidad de Clientes, y Análisis Sectorial del Mercado Colombiano de Interés para Findeter, que Sirva de Insumo para las Estrategias y en la Toma de Decisiones para el área Comercial. Isi Emerging Markets Colombia Sas","2020-12-31",23581189]
[null,"S. General","D. Juridica",203030103,"Asesorias Juridicas",200,"Secretaria General",210,"Direccion Juridica",58,"Contratacion de Abogados y Otros Servicios de Carácter Legal","Actualizacion del Normograma de Findeter de acuerdo a las Disposiciones Legales Vigentes - Avance Juridico","2020-12-31",58850000]
[null,"S. General","J. Servicios G",203050105,"Archivos Tecnicos",200,"Secretaria General",245,"Jefatura de Servicios Generales",3,"Contrato Archivo de Gestion","Recepción, Administración, Custodia, Organización, Reprografía, Conservación y demás Actividades Derivadas de la Función Archivística","2020-12-31",1289404434]
[null,"Presidencia","O. Control I",203030105,"Otras Asesorias",100,"Presidencia",125,"Jefatura Oficina Control Interno",65,"Tercerizacion Oficina de Control Interno Evaluacion y Seguim","Tercerización de la Oci de Getión. Desempeñar los Roles de: Evaluación y Asesoría en temas Relacionados con Auditoria Interna de Gestión. contrato Vigente Ernst Young.","2020-12-31",174691994]
[null,"Operaciones","D. Tecnologia",203050310,"Mantenimiento de Software",800,"Vicepresidencia de Operaciones",810,"Direccion de Tecnologia",119,"Mantenimiento Aplicativo Financianet","Sonda de Colombia Soporte Core Financiero - Soporte, Mantenimiento y Desarrollos, del Aplicativo Financianet. ","2020-12-31",155803120]
[null,"Operaciones","D. Tecnologia",203050101,"Equipo de Computo, Comunicacion y Multifuncionales",800,"Vicepresidencia de Operaciones",810,"Direccion de Tecnologia",20,"Telefonia Ip Licencias y Aparatos Telefonicos","Arrendamiento de equipos de Telefonia sobre Ip","2020-12-31",123189472]
[null,"S. General","J. Talento H",203010602,"Capacitacion",200,"Secretaria General",260,"Jefatura de Talento Humano",26,"Programa de Formacion Findeter","Capacitación en el Idioma Inglés para los Trabajadores (Beneficiarios Convención Colectiva y Directivos)","2020-12-31",74253500]
[null,"Operaciones","D. Tecnologia",203050101,"Equipo de Computo, Comunicacion y Multifuncionales",800,"Vicepresidencia de Operaciones",810,"Direccion de Tecnologia",716,"Arrendamiento Equipos Computo","Arrendamiento equipos de Computo y Portatiles","2020-12-31",240000000]
[null,"S. General","J. Servicios G",203050102,"Locales, Oficinas, Parqueaderos y Otros",500,"Vicepresidencia Tecnica",500,"Vicepresidencia Tecnica",6,"Arredamiento Inmuebles","Arrendamiento Santa Marta","2020-12-31",7811788]
[null,"Operaciones","D. Tecnologia",203050310,"Mantenimiento de Software",800,"Vicepresidencia de Operaciones",810,"Direccion de Tecnologia",90,"Servicios de Fabrica y Sofware Para El Desarrollo de Aplicac","Fabrica de Software (Mantenimiento y Desarrollos)","2020-12-31",277196400]
[null,"S. General","J. Servicios G",203050102,"Locales, Oficinas, Parqueaderos y Otros",500,"Vicepresidencia Tecnica",504,"Sanandres945",6,"Arredamiento Inmuebles","Arrendamiento San Andres","2020-12-31",56925730]
[null,"S. General","J. Servicios G",203050307,"Mantenimiento de Edificios y Locales",200,"Secretaria General",205,"Gerencia de Gestion Humana y Administrativa",111,"Mantenimiento Inmuebles","Mantenimiento equipos aire acondicionado Bogota","2020-12-31",9092552]
[null,"S. General","J. Servicios G",203050307,"Mantenimiento de Edificios y Locales",200,"Secretaria General",205,"Gerencia de Gestion Humana y Administrativa",111,"Mantenimiento Inmuebles","Mantenimiento Ascensor Sede Central ","2020-12-31",1332800]
[null,"S. General","J. Servicios G",203050307,"Mantenimiento de Edificios y Locales",400,"Vicepresidencia Comercial",456,"Regional Pacifico",111,"Mantenimiento Inmuebles","Mantenimiento equipos aire acondicionado Cali","2020-12-31",2302650]
[null,"S. General","J. Servicios G",203050307,"Mantenimiento de Edificios y Locales",200,"Secretaria General",205,"Gerencia de Gestion Humana y Administrativa",102,"Mantenimiento Preventivo y Correctivo Planta Electrica","Mantenimiento Planta Electrica Cummins","2020-12-31",3018910]
[null,"S. General","J. Servicios G",203050502,"Servicios de Vigilancia y Sistemas de Seguridad",800,"Vicepresidencia de Operaciones",810,"Direccion de Tecnologia",183,"Servicio Monitoreo de Alarmas","Servicio de Monitoreo de Alarma Dirección de Operaciones  de acuerdo a las Disposiciones de Riesgos","2020-12-31",640500]
[null,"S. General","J. Servicios G",203050502,"Servicios de Vigilancia y Sistemas de Seguridad",800,"Vicepresidencia de Operaciones",820,"Direccion de Operaciones",183,"Servicio Monitoreo de Alarmas","Servicio de Monitoreo de Alarma Dirección de Operaciones  de acuerdo a las Disposiciones de Riesgos","2020-12-31",640500]
[null,"S. General","J. Servicios G",203050502,"Servicios de Vigilancia y Sistemas de Seguridad",800,"Vicepresidencia de Operaciones",820,"Direccion de Operaciones",183,"Servicio Monitoreo de Alarmas","Servicio de Monitoreo de Alarma Dirección de Operaciones  de acuerdo a las Disposiciones de Riesgos","2020-12-31",19322]
[null,"S. General","J. Talento H",203010602,"Capacitacion",300,"Vicepresidencia Financiera",315,"Direccion de Tesoreria",26,"Programa de Formacion Findeter","Gastos Autorregulador del Mercado Valores","2020-12-31",9000000]
[null,"S. General","J. Servicios G",203050307,"Mantenimiento de Edificios y Locales",400,"Vicepresidencia Comercial",452,"Zona Nororiental",111,"Mantenimiento Inmuebles","Mantenimiento equipos aire acondicionado Bucaramanga","2020-12-31",587900]
[null,"Operaciones","D. Tecnologia",203050309,"Mantenimiento de Hardware",800,"Vicepresidencia de Operaciones",810,"Direccion de Tecnologia",760,"Soporte y Mantenimiento de La Solucion Integral Procesamient","Soporte y Mantenimiento de Firewall","2020-12-31",952000]
[null,"S. General","J. Servicios G",203050307,"Mantenimiento de Edificios y Locales",200,"Secretaria General",245,"Jefatura de Servicios Generales",104,"Revision y Recarga de Extintores","Recarga de Extintores Calle 103 y 104","2020-12-31",3572874]
[null,"Operaciones","D. Tecnologia",203050502,"Servicios de Vigilancia y Sistemas de Seguridad",800,"Vicepresidencia de Operaciones",810,"Direccion de Tecnologia",183,"Servicio Monitoreo de Alarmas","Control de Acceso a la Red Nac - Soporte y Mantenimiento.","2020-12-31",34149674]
[null,"S. General","J. Servicios G",203050307,"Mantenimiento de Edificios y Locales",200,"Secretaria General",245,"Jefatura de Servicios Generales",101,"Mantenimiento Pisos Madera y Marmol","Mantenimiento Marmol Lobby","2020-12-31",3036880]
[null,"Comercial","J. Mercadeo",203051002,"Promocion y Divulgacion",400,"Vicepresidencia Comercial",461,"Jefatura de Mercadeo",168,"Servicio y Atencion de Reuniones. Eventos Comerciales E Inst","Contratación de Servicios de Catering para Atender Reuniones a Domicilio o en los Lugares Contratados (Ej: Hoteles a Nivel Nal., Club de Banqueros, entre Otros)","2020-12-31",5000000]
[null,"Comercial","J. Mercadeo",203051002,"Promocion y Divulgacion",400,"Vicepresidencia Comercial",461,"Jefatura de Mercadeo",168,"Servicio y Atencion de Reuniones. Eventos Comerciales E Inst","Contratación de Servicios de Catering para Atender Reuniones a Domicilio o en los Lugares Contratados (Ej: Hoteles a Nivel Nal., Club de Banqueros, entre Otros)","2020-12-31",2500000]
[null,"Operaciones","D. Tecnologia",203050310,"Mantenimiento de Software",800,"Vicepresidencia de Operaciones",810,"Direccion de Tecnologia",118,"Soporte. Mantenimiento y Actualizacion Finac","Finac: (Soporte, Mantenimiento y Desarrollos) Sistema de Riesgo de Mercado y Liquidez ","2020-12-31",53380440]
[null,"Comercial","J. Mercadeo",203051002,"Promocion y Divulgacion",400,"Vicepresidencia Comercial",461,"Jefatura de Mercadeo",168,"Servicio y Atencion de Reuniones. Eventos Comerciales E Inst","Contratación de Servicios de Catering para Atender Reuniones a Domicilio o en los Lugares Contratados (Ej: Hoteles a Nivel Nal., Club de Banqueros, entre Otros)","2020-12-31",2500000]
[null,"Operaciones","D. Tecnologia",203050101,"Equipo de Computo, Comunicacion y Multifuncionales",800,"Vicepresidencia de Operaciones",810,"Direccion de Tecnologia",753,"Servicio Canales de Comunicación  Con Terceros","Canales para Master Trader (Cao) Aplicaciones Bvc","2020-12-31",16494641]
[null,"Operaciones","D. Tecnologia",203050310,"Mantenimiento de Software",700,"Vicepresidencia de Credito y Riesgos",702,"Coordinacion de Riesgos No Financieros",917,"Soporte, Mantenimiento y Actualizacion Aplicativo Wrm","Mantenimiento de Aplicativo Wrm","2020-12-31",80185663]
[null,"Comercial","J. Mercadeo",203051002,"Promocion y Divulgacion",400,"Vicepresidencia Comercial",461,"Jefatura de Mercadeo",164,"Elaboracion de Elementos Promocionales","Elaboración de elementos Promocionales","2020-12-31",6999600]
[null,"Comercial","G. Comunicaciones",203030105,"Otras Asesorias",400,"Vicepresidencia Comercial",460,"Gerencia de Comunicaciones, Mercadeo y Responsabilidad Socia",291,"Servicio Monitoreo de Medios","Asesorias Servicio de Monitero de Medios de Comunicación","2020-12-31",9966590]
[null,"S. General","J. Servicios G",203050307,"Mantenimiento de Edificios y Locales",400,"Vicepresidencia Comercial",491,"Regional Noroccidental",111,"Mantenimiento Inmuebles","Mantenimiento equipos aire acondicionado Medellin","2020-12-31",4133752]
[null,"S. General","J. Servicios G",203050307,"Mantenimiento de Edificios y Locales",400,"Vicepresidencia Comercial",493,"Regional Caribe",111,"Mantenimiento Inmuebles","Mantenimiento equipos aire acondicionado Barranquilla","2020-12-31",2585080]
[null,"S. General","J. Servicios G",203050307,"Mantenimiento de Edificios y Locales",400,"Vicepresidencia Comercial",483,"Zona Eje Cafetero",111,"Mantenimiento Inmuebles","Mantenimiento equipos aire acondicionado Pereira","2020-12-31",1987100]
[null,"Operaciones","D. Tecnologia",203050310,"Mantenimiento de Software",800,"Vicepresidencia de Operaciones",810,"Direccion de Tecnologia",121,"Soporte y Mantenimiento Para La Solucion Crm","Mantenimiento de Sistema de Gestión de Relación con el Cliente (Crm)","2020-12-31",97104000]
[null,"S. General","D. Juridica",203030103,"Asesorias Juridicas",200,"Secretaria General",210,"Direccion Juridica",58,"Contratacion de Abogados y Otros Servicios de Carácter Legal","Prestar el Servicio de Vigilancia Y/O Control de los procesos Donde Findeter sea Demandante o Demandado, los Cuales se Adelantan en los Diferetes Despachos Judiciales del Pais - Lupa","2020-12-31",10720000]
[null,"Operaciones","D. Tecnologia",203050711,"Otros Gastos de Oficina",800,"Vicepresidencia de Operaciones",810,"Direccion de Tecnologia",145,"Firmas Digitales Certicamara Tecnologia","Certicamara: Renovación, Adquisición Firmas Digitales para Representantes Legales y Diferentes Actores","2020-12-31",3000000]
[null,"Operaciones","D. Tecnologia",203050309,"Mantenimiento de Hardware",800,"Vicepresidencia de Operaciones",810,"Direccion de Tecnologia",935,"Implementacion Proyectos Peti","Proyecto: Solucion de Almacenamiento para Comunicaciones","2020-12-31",199920]
[null,"S. General","J. Servicios G",203050307,"Mantenimiento de Edificios y Locales",400,"Vicepresidencia Comercial",482,"Regional Centro",111,"Mantenimiento Inmuebles","Mantenimiento equipos aire acondicionado Neiva","2020-12-31",2642000]
[null,"S. General","J. Servicios G",203050501,"Servicio de Aseo y Cafeteria",200,"Secretaria General",245,"Jefatura de Servicios Generales",187,"Servicio de Aseo. Cafeteria y Mantenimiento","Servicio de Instalación Mantenimiento, Desinfección Desincrustación, y Aromatización de Todos los Baños de Finedter en sus Sedes de la Calle 103 y 104","2020-12-31",26517960]
[null,"S. General","J. Servicios G",203050502,"Servicios de Vigilancia y Sistemas de Seguridad",400,"Vicepresidencia Comercial",492,"Regional Nororiental",183,"Servicio Monitoreo de Alarmas","Servicio de Monitoreo de Alarma Bucaramanga de acuerdo a las Disposiciones de Riesgos","2020-12-31",1152000]
[null,"S. General","J. Servicios G",203050502,"Servicios de Vigilancia y Sistemas de Seguridad",400,"Vicepresidencia Comercial",493,"Regional Caribe",183,"Servicio Monitoreo de Alarmas","Servicio de Monitoreo de Alarma Barranquilla de acuerdo a las Disposiciones de Riesgos","2020-12-31",1152000]
[null,"S. General","J. Talento H",203010602,"Capacitacion",400,"Vicepresidencia Comercial",492,"Regional Nororiental",26,"Programa de Formacion Findeter","Maestría en Gestión Pública Gerente Regional Jose Gabriel Mestre- U Andes","2020-12-31",28340400]
[null,"Operaciones","D. Tecnologia",203030105,"Otras Asesorias",800,"Vicepresidencia de Operaciones",810,"Direccion de Tecnologia",935,"Implementacion Proyectos Peti","Proyecto Migración a Ipv6 ","2020-12-31",38580038]
[null,"Operaciones","D. Tecnologia",203030105,"Otras Asesorias",800,"Vicepresidencia de Operaciones",810,"Direccion de Tecnologia",935,"Implementacion Proyectos Peti","Proyecto: Uso y Apropiacion de TI 2020 (Estretegia Consultoria)","2020-12-31",7152000]
[null,"S. General","J. Servicios G",203050307,"Mantenimiento de Edificios y Locales",200,"Secretaria General",245,"Jefatura de Servicios Generales",427,"Mantenimiento de Cortinas","Mantenimiento de Cortinas Sede 103 y 104 Findeter","2020-12-31",7122950]
[null,"S. General","J. Servicios G",203050307,"Mantenimiento de Edificios y Locales",500,"Vicepresidencia Tecnica",504,"Sanandres945",111,"Mantenimiento Inmuebles","Mantenimiento equipos aire acondicionado San Andres","2020-12-31",3500000]
[null,"S. General","J. Servicios G",203050711,"Otros Gastos de Oficina",200,"Secretaria General",245,"Jefatura de Servicios Generales",146,"Otros Gastos de Oficina Findeter General","Suministrar elementos Básicos para Botiquines para Brindar los Primeros Auxilios, y Atención de Cualquier Situación de Emergencia o Acontecimientos Inesperados que se Puedan Presentar en las Instalaciones de Findeter a Nivel Nacional","2020-12-31",883575]
[null,"Operaciones","D. Tecnologia",203050101,"Equipo de Computo, Comunicacion y Multifuncionales",800,"Vicepresidencia de Operaciones",810,"Direccion de Tecnologia",410,"Ups","Arrendamiento de Ups","2020-12-31",17751089]
[null,"Operaciones","D. Tecnologia",203050309,"Mantenimiento de Hardware",800,"Vicepresidencia de Operaciones",810,"Direccion de Tecnologia",410,"Ups","Mantenimiento y Soporte de Ups","2020-12-31",47188633]
[null,"Operaciones","D. Tecnologia",203050101,"Equipo de Computo, Comunicacion y Multifuncionales",800,"Vicepresidencia de Operaciones",820,"Direccion de Operaciones",753,"Servicio Canales de Comunicación  Con Terceros","Servicio Canales de Comunicación con Terceros (Sebra-Bvc-Superf)","2020-12-31",57323372]
[null,"S. General","J. Servicios G",203050307,"Mantenimiento de Edificios y Locales",200,"Secretaria General",245,"Jefatura de Servicios Generales",103,"Mantenimiento Equipos de Bombeo y Contra Incendios","Mantenimiento, Preventivo y Correctivo de los equipos de Bombeo de Agua","2020-12-31",17750003]
[null,"S. General","J. Servicios G",203050307,"Mantenimiento de Edificios y Locales",200,"Secretaria General",245,"Jefatura de Servicios Generales",734,"Mantenimiento Edificio","Servicio de Mantenimiento del Edificio que Requiera Pago a un externo y que el Personal de Mantenimiento no Pueda Atender, Tales como Arreglo del Piso, Puerta Parqueadero, Cieloraso y Demas","2020-12-31",8594344]
[null,"S. General","J. Servicios G",203050401,"Arreglos Ornamentales",200,"Secretaria General",245,"Jefatura de Servicios Generales",1,"Arreglos Ornamentales","Arreglos Ornamentales del Edificio ","2020-12-31",4536000]
[null,"Operaciones","D. Tecnologia",203050906,"Servicio de Conectividad",700,"Vicepresidencia de Credito y Riesgos",702,"Coordinacion de Riesgos No Financieros",181,"Conectividad Tercerizacion","Centro Alterno de Operaciones-Cao con la Conexión de Sebra, Deceval, Superfinanciera.","2020-12-31",26655670]
[null,"S. General","J. Servicios G",203050307,"Mantenimiento de Edificios y Locales",200,"Secretaria General",245,"Jefatura de Servicios Generales",734,"Mantenimiento Edificio","Servicio de Mantenimiento del Edificio que Requiera Pago a un externo y que el Personal de Mantenimiento no Pueda Atender, Tales como Arreglo del Piso, Puerta Parqueadero, Cieloraso y Demas","2020-12-31",1856800]
[null,"Operaciones","D. Tecnologia",203050310,"Mantenimiento de Software",800,"Vicepresidencia de Operaciones",810,"Direccion de Tecnologia",767,"Mantenimiento Software","Isolucion - Soporte y Mantenimiento de Aplicativo Sistema de Gestión Integrado (Sgi) ","2020-12-31",20409116]
[null,"S. General","J. Servicios G",203050307,"Mantenimiento de Edificios y Locales",200,"Secretaria General",245,"Jefatura de Servicios Generales",99,"Lavado Ventaneria y Sellamiento","Mantenimiento Impermeabilizacion Cubierta y Lavado de Vidrios de Fachadas","2020-12-31",14503026]
[null,"Operaciones","D. Tecnologia",203050309,"Mantenimiento de Hardware",800,"Vicepresidencia de Operaciones",810,"Direccion de Tecnologia",113,"Mantenimiento Hardware","Mantenimiento equipos Red Wifi Regionales","2020-12-31",16090001]
[null,"S. General","J. Servicios G",203050307,"Mantenimiento de Edificios y Locales",200,"Secretaria General",245,"Jefatura de Servicios Generales",105,"Suministro Combustible Acpm","Suministro de Acpm para la Planta de Energia","2020-12-31",7934800]
[null,"S. General","J. Talento H",203030105,"Otras Asesorias",200,"Secretaria General",260,"Jefatura de Talento Humano",76,"Mediciones de Clima Cultura Cazatalentos entre Otras","Contratación Administración Herramienta de Gestión del Desarrollo y Aplicación de las Evaluaciones, Informes y Retroalimentación (Kpis, Evaluación 360).","2020-12-31",10802538]
[null,"S. General","J. Talento H",203010607,"Salud Ocupacional",200,"Secretaria General",260,"Jefatura de Talento Humano",180,"Salud Ocupacional","Examenes Medicos Ocupacionales Periodicos, Ingreso, Retiro, Post Incapacidad y otros que se Requieran.","2020-12-31",8653952]
[null,"Operaciones","D. Tecnologia",203050310,"Mantenimiento de Software",800,"Vicepresidencia de Operaciones",810,"Direccion de Tecnologia",120,"Soporte Desarrollo Mantenimiento Para La Pagina Web E Intran","Nexura Soporte y Mantenimiento Página Web e Intranet","2020-12-31",57120000]
[null,"S. General","D. Juridica",203030103,"Asesorias Juridicas",200,"Secretaria General",210,"Direccion Juridica",58,"Contratacion de Abogados y Otros Servicios de Carácter Legal","Asesoria Juridica en Derecho Administrativo y Contractual, en lo Relacionado con la Actividad Y/O Gestión Misional en Aquellos Aspectos que se Consideren de Especial Complejidad. Suarez Beltran Sas","2020-12-31",5000000]
[null,"S. General","J. Talento H",203010602,"Capacitacion",300,"Vicepresidencia Financiera",355,"Gerencia de Banca de Inversion",26,"Programa de Formacion Findeter","Maestria en Administración  - Mba Lucia Tarazona","2020-12-31",37608505]
[null,"Operaciones","D. Tecnologia",203050310,"Mantenimiento de Software",800,"Vicepresidencia de Operaciones",810,"Direccion de Tecnologia",117,"Soporte. Mantenimiento y Actualizacion Alfyn y Proformas","Alfyn - Soporte y Mantenimiento Portafolio de Inversiones de Renta Fija y Cuentas Bancarias ","2020-12-31",50870644]
[null,"Operaciones","D. Tecnologia",203050309,"Mantenimiento de Hardware",800,"Vicepresidencia de Operaciones",810,"Direccion de Tecnologia",113,"Mantenimiento Hardware","Mantenimiento equipos Redes Lan y Wifi Nivel Central","2020-12-31",27059083]
[null,"S. General","J. Servicios G",203050102,"Locales, Oficinas, Parqueaderos y Otros",500,"Vicepresidencia Tecnica",500,"Vicepresidencia Tecnica",6,"Arredamiento Inmuebles","Arrendandamiento Piso 6 Ii Calle 104","2020-12-31",34321440]
[null,"Financiera","D. Banca Int.",203020201,"Gastos de Viaje A Terceros Nacionales",300,"Vicepresidencia Financiera",345,"Jefatura de Banca Internacional",48,"Gastos de Viaje  Asesorias","Desplazamiento Auditores Externos contrato 0001 de 2018","2020-12-31",23152500]
[null,"Financiera","D. Banca Int.",203030105,"Otras Asesorias",300,"Vicepresidencia Financiera",345,"Jefatura de Banca Internacional",771,"Seguimiento Auditoria","Auditoria contrato de Préstamo Bid 3596/Oc-Co. contrato 0001 de 2018","2020-12-31",179690000]
[null,"Operaciones","D. Tecnologia",203050101,"Equipo de Computo, Comunicacion y Multifuncionales",800,"Vicepresidencia de Operaciones",810,"Direccion de Tecnologia",14,"Tercerizacion Servicio Datacenter","Servicio de Datacenter Centurylink","2020-12-31",985289760]
[null,"Operaciones","D. Tecnologia",203050906,"Servicio de Conectividad",800,"Vicepresidencia de Operaciones",810,"Direccion de Tecnologia",181,"Conectividad Tercerizacion","Canales de Comunicación (Internet). Centurylink","2020-12-31",294182280]
[null,"Operaciones","D. Tecnologia",203050310,"Mantenimiento de Software",800,"Vicepresidencia de Operaciones",810,"Direccion de Tecnologia",122,"Tercerizacion Correo Corporativo Level 3","Correo Corporativo Centurylink","2020-12-31",536485320]
[null,"Riesgos","Coordinacion de Riesgos No Financieros",203030105,"Otras Asesorias",700,"Vicepresidencia de Credito y Riesgos",702,"Coordinacion de Riesgos No Financieros",642,"Otras Asesorias","Contrato de Prestación de Servicios No. 0005 de 2019 que se Suscribió con la Empresa O4It Colombia Sas Cuyo Objeto Es \"Servicio Integral de Seguridad Gestionada que Incluya la Recolección, Análisis y Correlación de Eventos de Seguridad y Ciberseguridad, Análisis de Vulnerabilidades, Ethical Hacking, Ingeniería Social, Análisis Forense y Gestión de Eventos e Incidentes de Seguridad y Ciberseguridad de la Información\"","2020-12-31",29103106]
[null,"Operaciones","V. Operaciones",203030102,"Revisoria Fiscal",70,"Revisoria Fiscal",70,"Revisoria Fiscal",179,"Revisoria Fiscal","Revisoria Fiscal","2020-12-31",175486000]
[null,"Operaciones","D. Tecnologia",203050310,"Mantenimiento de Software",800,"Vicepresidencia de Operaciones",810,"Direccion de Tecnologia",126,"Soporte y Mantenimiento Sistema Ax (Erp)","Erp Corporativo Alfapeople (Dynamics Ax). Soporte y Mantenimiento","2020-12-31",698629831]
[null,"S. General","J. Servicios G",203050501,"Servicio de Aseo y Cafeteria",200,"Secretaria General",245,"Jefatura de Servicios Generales",187,"Servicio de Aseo. Cafeteria y Mantenimiento","Servicio de aseo y cafeteria","2020-12-31",550310402]
[null,"S. General","D. Juridica",203030103,"Asesorias Juridicas",200,"Secretaria General",210,"Direccion Juridica",58,"Contratacion de Abogados y Otros Servicios de Carácter Legal","Prestar el Servicio de Asesoría y Apoyo Integral a Findeter en Todos los Aspectos Contractuales en las Diferentes Etapas, así como en la Estructuración y Revisión de temas Relacionados con el Gobierno Corporativo y el Soporte Jurídico a los Diferentes Asuntos Relacionados con los Seguros Requeridos dentro de la Actividad de Asistencia Técnica - Carlos Ballesteros","2020-12-31",15833333]
[null,"Operaciones","D. Tecnologia",203050310,"Mantenimiento de Software",800,"Vicepresidencia de Operaciones",810,"Direccion de Tecnologia",912,"Herramienta Supervision y Contratos de Obra \"Cobra\"","Gestión de Obras y Casa Digna Vida Digna","2020-12-31",52330954]
[null,"Comercial","G. Comunicaciones",203030105,"Otras Asesorias",400,"Vicepresidencia Comercial",460,"Gerencia de Comunicaciones, Mercadeo y Responsabilidad Socia",63,"Asesoria En Comunicaciones","Asesoría y Acompañamiento en Comunicaciones Estratégicas","2020-12-31",54540000]
[null,"S. General","J. Talento H",203010604,"Bienestar Social",200,"Secretaria General",260,"Jefatura de Talento Humano",25,"Bienestar Social","Contratación para el Desarrollo de Actividades del Programa Calidad de Vida, Bienestar y Modelo Efr Dirigidas a los Colaboradores de Findeter Relacionadas con Recreación, Deporte, Cultura, Mercadeo Social, Salud, Eventos Sociales, Escenarios e Instalaciones Adecuadas, entre otras.\n","2020-12-31",20000000]
[null,"Operaciones","D. Tecnologia",203050310,"Mantenimiento de Software",800,"Vicepresidencia de Operaciones",810,"Direccion de Tecnologia",119,"Mantenimiento Aplicativo Financianet","Sonda de Colombia Soporte Core Financiero - Soporte, Mantenimiento y Desarrollos, del Aplicativo Financianet. ","2020-12-31",144399312]
[null,"Comercial","G. Comunicaciones",203050311,"Mantenimiento Pagina Web",400,"Vicepresidencia Comercial",460,"Gerencia de Comunicaciones, Mercadeo y Responsabilidad Socia",935,"Implementacion Proyectos Peti","Ecosistema Digital Mantenimiento Pagina Web","2020-12-31",122238872]
[null,"Comercial","G. Comunicaciones",204010110,"Nuevas Funcionalidades",400,"Vicepresidencia Comercial",460,"Gerencia de Comunicaciones, Mercadeo y Responsabilidad Socia",935,"Implementacion Proyectos Peti","Ecosistema Digital","2020-12-31",40746290]
[null,"Comercial","G. Comunicaciones",203030105,"Otras Asesorias",400,"Vicepresidencia Comercial",460,"Gerencia de Comunicaciones, Mercadeo y Responsabilidad Socia",642,"Otras Asesorias","Ecosistema Digital otras. Asesorias","2020-12-31",40746290]
[null,"S. General","J. Servicios G",203050502,"Servicios de Vigilancia y Sistemas de Seguridad",200,"Secretaria General",245,"Jefatura de Servicios Generales",941,"Sistema Integrado de Seguridad Electronica","Camaras de video Vigilancia, Dispositivos Biometricos de Entrada y Salida, Sensores de Incendio","2020-12-31",929525599]
[null,"Operaciones","D. Operaciones",203030104,"Asesorias Financieras",800,"Vicepresidencia de Operaciones",820,"Direccion de Operaciones",731,"Asesoria Financiera","Asesoria Regimen Cambiario (Bolsa de 80 horas a $520.000 +Iva)","2020-12-31",26989200]
[null,"S. General","J. Talento H",203030103,"Asesorias Juridicas",200,"Secretaria General",260,"Jefatura de Talento Humano",59,"Contratacion Asesoria Juridica Laboral","Prestar los Servicios Profesionales para Asesorar de Manera Integral a Findeter en Materia Laboral y de Seguridad Social Conforme los Requerimientos Legales Derivados de la Administración del Personal. ","2020-12-31",52229279]
[null,"Operaciones","D. Contabilidad",203030105,"Otras Asesorias",800,"Vicepresidencia de Operaciones",860,"Direccion de Contabilidad",67,"Asesoria Tributaria Para Findeter","Asesoria Tributaria Integral y Permanente de Findeter","2020-12-31",58706667]
[null,"S. General","J. Servicios G",203050709,"Elementos de Aseo y Cafeteria",200,"Secretaria General",245,"Jefatura de Servicios Generales",44,"Elementos de Aseo y Cafeteria","Elementos de aseo y cafeteria","2020-12-31",207482485]
[null,"Operaciones","D. Tecnologia",204010108,"Compra de Software",800,"Vicepresidencia de Operaciones",810,"Direccion de Tecnologia",132,"Desarrollos Requeridos datos Abiertos y Automatizacion de Ma","Assista (Herramienta de Asistencia Técnica) Proactivanet Licenciamiento","2020-12-31",22827651]
[null,"Operaciones","D. Tecnologia",203030105,"Otras Asesorias",800,"Vicepresidencia de Operaciones",810,"Direccion de Tecnologia",132,"Desarrollos Requeridos datos Abiertos y Automatizacion de Ma","Assista (Herramienta de Asistencia Técnica) Proactivanet Consultoria Especializada","2020-12-31",19164577]
[null,"Operaciones","D. Tecnologia",203050310,"Mantenimiento de Software",800,"Vicepresidencia de Operaciones",810,"Direccion de Tecnologia",421,"Herramienta de Servicios de Tecnologia","Assista (Herramienta de Asistencia Técnica) Proactivanet Soporte y Mantenimiento de Aplicativo.","2020-12-31",162597675]
[null,"Operaciones","D. Tecnologia",203030105,"Otras Asesorias",800,"Vicepresidencia de Operaciones",810,"Direccion de Tecnologia",935,"Implementacion Proyectos Peti","Proyecto Arquitectura para el Core Técnico y Financiero","2020-12-31",102000030]
[null,"Operaciones","D. Tecnologia",204010108,"Compra de Software",200,"Secretaria General",245,"Jefatura de Servicios Generales",115,"Implementacion Software Gestion Documental","Gestión Documental (Correspondencia)","2020-12-31",36375928]
[null,"Operaciones","D. Tecnologia",203030105,"Otras Asesorias",200,"Secretaria General",245,"Jefatura de Servicios Generales",115,"Implementacion Software Gestion Documental","Gestión Documental (Correspondencia)","2020-12-31",5114072]
[null,"Operaciones","D. Tecnologia",203030105,"Otras Asesorias",800,"Vicepresidencia de Operaciones",810,"Direccion de Tecnologia",935,"Implementacion Proyectos Peti","Proyecto Gobierno de datos (Modelo Gestion y Gobierno)","2020-12-31",71250000]
[null,"S. General","J. Servicios G",203050502,"Servicios de Vigilancia y Sistemas de Seguridad",200,"Secretaria General",245,"Jefatura de Servicios Generales",184,"Servicio Vigilancia Sede Central Findeter","Servicio de Vigilancia Personal","2020-12-31",312019728]
[null,"Operaciones","D. Tecnologia",203050101,"Equipo de Computo, Comunicacion y Multifuncionales",800,"Vicepresidencia de Operaciones",810,"Direccion de Tecnologia",718,"Suministro Software Findeter","Sistema de Gestión de Talento Humano (Nomina)","2020-12-31",59874750]
[null,"Operaciones","D. Tecnologia",203030105,"Otras Asesorias",800,"Vicepresidencia de Operaciones",810,"Direccion de Tecnologia",642,"Otras Asesorias","Sistema de Gestión de Talento Humano (Nomina)","2020-12-31",59158146]
[null,"S. General","J. Servicios G",203020103,"Pasajes y Transporte Aereos",200,"Secretaria General",245,"Jefatura de Servicios Generales",148,"Pasajes Findeter General","Compra de Pasajes Aereos","2020-12-31",1800000000]
[null,"S. General","J. Servicios G",203050707,"Utiles de Escritorio y Papeleria",200,"Secretaria General",245,"Jefatura de Servicios Generales",202,"Utiles de Escritorio y Papeleria Convenios","Suministro de elementos de Escritorio y Papeleria","2020-12-31",660000000]
[null,"Planeacion","D. Estudios",203030105,"Otras Asesorias",600,"Vicepresidencia de Planeacion",640,"Direccion de Estudios Economicos",63,"Asesoria En Comunicaciones","Asesoria para Determinar la TIr Social","2020-12-31",69956715]
[null,"Comercial","J. Mercadeo",203030105,"Otras Asesorias",400,"Vicepresidencia Comercial",461,"Jefatura de Mercadeo",642,"Otras Asesorias","Servicio Defensor del Consumidor Financiero","2020-12-31",29808131]
[null,"Riesgos","Coordinacion de Riesgos No Financieros",203030105,"Otras Asesorias",700,"Vicepresidencia de Credito y Riesgos",702,"Coordinacion de Riesgos No Financieros",642,"Otras Asesorias","Implementación Modelo Gobierno, Riesgo y Cumplimiento - Grc","2020-12-31",5000000]
[null,"S. General","J. Servicios G",203050102,"Locales, Oficinas, Parqueaderos y Otros",1000,"Vicepresidencia de Desarrollo Territorial",1000,"Vicepresidencia de Desarrollo Territorial",6,"Arredamiento Inmuebles","Arrendamiento Cartagena","2020-12-31",40800000]
[null,"S. General","J. Servicios G",203050102,"Locales, Oficinas, Parqueaderos y Otros",200,"Secretaria General",245,"Jefatura de Servicios Generales",6,"Arredamiento Inmuebles","Arrendamiento Calle Av 24 Cao Bogota","2020-12-31",49354824]
[null,"Financiera","G. Banca Inv.",203070101,"Estructuracion de Proyectos",300,"Vicepresidencia Financiera",355,"Gerencia de Banca de Inversion",934,"Asesoria Estructuracion Proyectos","Intervenotría Colegios Art","2020-12-31",77360671]
[null,"Financiera","G. Banca Inv.",203070101,"Estructuracion de Proyectos",300,"Vicepresidencia Financiera",355,"Gerencia de Banca de Inversion",934,"Asesoria Estructuracion Proyectos","Consultoría Colegios Art","2020-12-31",407678471]
[null,"S. General","J. Servicios G",203050307,"Mantenimiento de Edificios y Locales",200,"Secretaria General",245,"Jefatura de Servicios Generales",947,"Control de Plagas y Roedores","Mantenimiento de Estacion de Cebado para Control de Plagas y Rodeedores","2020-12-31",1190000]
[null,"S. General","J. Servicios G",203050502,"Servicios de Vigilancia y Sistemas de Seguridad",500,"Vicepresidencia Tecnica",504,"Sanandres945",183,"Servicio Monitoreo de Alarmas","Servicio de Monitoreo de Alarma San Andrés de acuerdo a las Disposiciones de Riesgos","2020-12-31",1104000]
[null,"S. General","J. Servicios G",203050102,"Locales, Oficinas, Parqueaderos y Otros",500,"Vicepresidencia Tecnica",500,"Vicepresidencia Tecnica",6,"Arredamiento Inmuebles","Arrendandamiento Piso 6 Ii Calle 104","2020-12-31",{"$f":"370177040-34321440","v":335855600}]
[null,"Operaciones","D. Tecnologia",203050101,"Equipo de Computo, Comunicacion y Multifuncionales",800,"Vicepresidencia de Operaciones",810,"Direccion de Tecnologia",12,"Arrendamiento Computadores de Escritorio","Arrendamiento equipos de Computo (Adicional Colsof)","2020-12-31",151004056]
[null,"S. General","J. Servicios G",203050102,"Locales, Oficinas, Parqueaderos y Otros",500,"Vicepresidencia Tecnica",500,"Vicepresidencia Tecnica",6,"Arredamiento Inmuebles","Arrendamiento Piso 6 Calle 104","2020-12-31",566945316]
[null,"S. General","J. Servicios G",203050102,"Locales, Oficinas, Parqueaderos y Otros",500,"Vicepresidencia Tecnica",500,"Vicepresidencia Tecnica",6,"Arredamiento Inmuebles","Arrendandamiento Piso 3 Calle 104","2020-12-31",{"$f":"464656351-14226998","v":450429353}]
[null,"S. General","J. Servicios G",203050102,"Locales, Oficinas, Parqueaderos y Otros",500,"Vicepresidencia Tecnica",500,"Vicepresidencia Tecnica",6,"Arredamiento Inmuebles","Arrendandamiento Piso 3 Calle 104","2020-12-31",14226998]
[null,"S. General","J. Servicios G",203050307,"Mantenimiento de Edificios y Locales",200,"Secretaria General",245,"Jefatura de Servicios Generales",734,"Mantenimiento Edificio","Mantenimiento Muro Verde Fachadas","2020-12-31",7318280]
[null,"Operaciones","D. Tecnologia",203050101,"Equipo de Computo, Comunicacion y Multifuncionales",800,"Vicepresidencia de Operaciones",810,"Direccion de Tecnologia",13,"Arrendamiento Computadores Servidores y Multifuncionales","Arrendamiento de Impresoras","2020-12-31",17317927]
[null,"Operaciones","D. Tecnologia",203050310,"Mantenimiento de Software",800,"Vicepresidencia de Operaciones",810,"Direccion de Tecnologia",935,"Implementacion Proyectos Peti","Proyecto Analítica de Datos","2020-12-31",{"$f":"43673040+6306960","v":49980000}]
[null,"S. General","J. Servicios G",203050102,"Locales, Oficinas, Parqueaderos y Otros",700,"Vicepresidencia de Credito y Riesgos",700,"Vicepresidencia de Credito y Riesgos",6,"Arredamiento Inmuebles","Incremento (Ipc+1.5 Puntos) Pactado en el contrato de Arrendamiento de la Oficina del Piso Fase Ii","2021-01-01",12784308]
[null,"S. General","J. Servicios G",203050102,"Locales, Oficinas, Parqueaderos y Otros",700,"Vicepresidencia de Credito y Riesgos",700,"Vicepresidencia de Credito y Riesgos",6,"Arredamiento Inmuebles","Arrendamiento Piso 5 Ii Calle 104","2021-01-01",411071220]
[null,"Operaciones","D. Tecnologia",203050309,"Mantenimiento de Hardware",800,"Vicepresidencia de Operaciones",810,"Direccion de Tecnologia",195,"Cableado Estructurado Adecuacion Oficinas","Mantenimiento de Redes de Comunicación Interna, Cableado Estructural, Prestar el Servicio de Mantenimiento Preventivo, Correctivo y de Mejora, Adecuación de las Redes de datos y Eléctrica de sus Oficinas. ","2021-01-01",107283855]
[null,"S. General","J. Servicios G",203050307,"Mantenimiento de Edificios y Locales",400,"Vicepresidencia Comercial",493,"Regional Caribe",111,"Mantenimiento Inmuebles","Servicio de Mantenimiento de los Aires Acondicionados de la Oficina de Findeter en Montería","2021-01-01",8140000]
[null,"S. General","J. Talento H",203050503,"Servicios Temporales",200,"Secretaria General",260,"Jefatura de Talento Humano",188,"Servicios Temporales Findeter General","Suministro de Trabajadores en Misión para el Nivel Profesional, Técnico, Operativo, Asistencial, Auxiliar o los que Findeter Determine, que se Requieran en la Sede Principal o en las Unidades Regionales, Zonales y Oficinas Satélites o en la Ciudad que Requiera Findeter”.","2021-01-01",38686547076]
[null,"S. General","J. Talento H",203020401,"Gastos de Viaje Servicios Temporales",200,"Secretaria General",260,"Jefatura de Talento Humano",423,"Gastos de Viaje Servicios Temporales","Gastos de Viaje Temporales Entidad","2021-01-01",980000000]
[null,"Operaciones","D. Tecnologia",203050310,"Mantenimiento de Software",800,"Vicepresidencia de Operaciones",810,"Direccion de Tecnologia",767,"Mantenimiento Software","Corvus - Xbrl Soporte Técnico y Derecho de Actualizaciones - Bolsa de horas 100 Horas","2021-01-01",21604633]
[null,"S. General","J. Talento H",203010602,"Capacitacion",600,"Vicepresidencia de Planeacion",600,"Vicepresidencia de Planeacion",26,"Programa de Formacion Findeter","Participación de la Vicepresidenta de Planeación de Findeter en el Programa \"Maestria en Administración-Mba\".","2021-01-01",5163406]
[null,"Comercial","J. Mercadeo",203051001,"Publicidad",400,"Vicepresidencia Comercial",461,"Jefatura de Mercadeo",171,"Publicacion Avisos y Pautas Publicitarias","Publicación Marketing Digital ","2021-01-01",50000000]
[null,"S. General","J. Servicios G",203051003,"Impresos y Publicaciones",200,"Secretaria General",245,"Jefatura de Servicios Generales",97,"Impresion Papeleria Institucional","Papeleria Institucional","2021-01-01",90000000]
[null,"Financiera","J. Gestion U",203030105,"Otras Asesorias",300,"Vicepresidencia Financiera",331,"Jefatura de Gestion Urbana Integral",642,"Otras Asesorias","Contratación Experto Regulación Energía Nama Move","2021-01-01",65600000]
[null,"Financiera","J. Gestion U",203030105,"Otras Asesorias",300,"Vicepresidencia Financiera",331,"Jefatura de Gestion Urbana Integral",642,"Otras Asesorias","Consultoría Pmm Bucaramanga (Venta Integral)","2021-01-01",2427644595]
[null,"Financiera","D. Banca Int.",203030105,"Otras Asesorias",300,"Vicepresidencia Financiera",330,"Direccion Banca Internacional",771,"Seguimiento Auditoria","Auditoría Cooperación Kfw ","2021-01-01",40000000]
[null,"S. General","J. Servicios G",204010101,"Compra de Muebles y Enseres",200,"Secretaria General",245,"Jefatura de Servicios Generales",111,"Mantenimiento Inmuebles","Compra Sillas Findeter","2021-01-01",12130558]
[null,"S. General","J. Servicios G",203050301,"Mantenimiento de Muebles y Enseres",200,"Secretaria General",245,"Jefatura de Servicios Generales",769,"Mantenimiento Muebles","Mantenimiento Sillas Findeter","2021-01-01",6464410]
[null,"Comercial","J. Mercadeo",203051002,"Promocion y Divulgacion",400,"Vicepresidencia Comercial",461,"Jefatura de Mercadeo",165,"Elaboracion de Piezas de Imagen Promocional","Material Informativo Digital o Impreso (Brochures, Comercial,Tarjetas Presentacion)","2021-01-01",40000000]
[null,"S. General","J. Servicios G",204010101,"Compra de Muebles y Enseres",200,"Secretaria General",245,"Jefatura de Servicios Generales",948,"Compra de Grandes Superficies","Compra de Grandes Superficies","2021-01-01",20000000]
[null,"Operaciones","D. Tecnologia",203050310,"Mantenimiento de Software",800,"Vicepresidencia de Operaciones",810,"Direccion de Tecnologia",120,"Soporte Desarrollo Mantenimiento Para La Pagina Web E Intran","Nexura Soporte y Mantenimiento Página Web e Intranet","2021-01-01",1257499]
[null,"S. General","J. Talento H",203030105,"Otras Asesorias",200,"Secretaria General",260,"Jefatura de Talento Humano",76,"Mediciones de Clima Cultura Cazatalentos entre Otras","Prestar el Servicio de Consulta de Antecendetes, Referencias Laborales, Verificación Documental- Hoja de Vida y Visita Domiciliaria para las personas que ingresen a trabajar a Findeter”.","2021-01-01",3750000]
[null,"S. General","J. Servicios G",203050102,"Locales, Oficinas, Parqueaderos y Otros",400,"Vicepresidencia Comercial",492,"Regional Nororiental",6,"Arredamiento Inmuebles","Arrendamiento Terrazas Bucaramanga","2021-01-01",2450298]
[null,"S. General","J. Servicios G",203050102,"Locales, Oficinas, Parqueaderos y Otros",400,"Vicepresidencia Comercial",493,"Regional Caribe",6,"Arredamiento Inmuebles","Arrendamiento Cartagena","2021-01-01",2291600]
[null,"S. General","J. Servicios G",203050102,"Locales, Oficinas, Parqueaderos y Otros",500,"Vicepresidencia Tecnica",504,"Sanandres945",6,"Arredamiento Inmuebles","Arrendamiento San Andres","2021-01-01",459214]
[null,"S. General","J. Talento H",203010602,"Capacitacion",300,"Vicepresidencia Financiera",260,"Jefatura de Talento Humano",26,"Programa de Formacion Findeter","Maestria en Administración  - Mba","2021-01-01",{"$f":"55000000-37608505","v":17391495}]
[null,"S. General","J. Talento H",203010602,"Capacitacion",400,"Vicepresidencia Comercial",260,"Jefatura de Talento Humano",26,"Programa de Formacion Findeter","Capacitación a los Directivos y Comerciales en Competencias de Ventas o Similares; para Revisar Y/O Reactivar lo que se TIene.","2021-01-01",30000000]
[null,"S. General","J. Talento H",203010602,"Capacitacion",400,"Vicepresidencia Comercial",260,"Jefatura de Talento Humano",26,"Programa de Formacion Findeter","Diplomado en Creación de Contenidos Digitales","2021-01-01",14000000]
[null,"S. General","J. Talento H",203010602,"Capacitacion",400,"Vicepresidencia Comercial",260,"Jefatura de Talento Humano",26,"Programa de Formacion Findeter","Seminario de Design Thinking ","2021-01-01",14859497]
[null,"S. General","J. Talento H",203010602,"Capacitacion",500,"Vicepresidencia Tecnica",260,"Jefatura de Talento Humano",26,"Programa de Formacion Findeter","Gesproy y Ocad - Proyectos con Recursos de Regalías","2021-01-01",5000000]
[null,"S. General","J. Talento H",203010602,"Capacitacion",500,"Vicepresidencia Tecnica",260,"Jefatura de Talento Humano",26,"Programa de Formacion Findeter","Certificación Retie y Retilap","2021-01-01",5000000]
[null,"S. General","J. Talento H",203010602,"Capacitacion",600,"Vicepresidencia de Planeacion",260,"Jefatura de Talento Humano",26,"Programa de Formacion Findeter","Curso Académico para Fortalecer las Capacidades de Proyección y Manejo de Variables Macroeconómicas","2021-01-01",1650000]
[null,"S. General","J. Talento H",203010602,"Capacitacion",600,"Vicepresidencia de Planeacion",260,"Jefatura de Talento Humano",26,"Programa de Formacion Findeter","Participación Reunión anual Economistas Jefes Alide","2021-01-01",2590000]
[null,"S. General","J. Talento H",203010602,"Capacitacion",800,"Vicepresidencia de Operaciones",260,"Jefatura de Talento Humano",26,"Programa de Formacion Findeter","Capacitación en Gerencia de Crédito, Cartera y Cobranza","2021-01-01",15500000]
[null,"S. General","J. Talento H",203010602,"Capacitacion",800,"Vicepresidencia de Operaciones",260,"Jefatura de Talento Humano",26,"Programa de Formacion Findeter","Curso de Excel Avanzado - Universidad Nacional - para 04 Personas","2021-01-01",1200000]
[null,"S. General","J. Talento H",203010602,"Capacitacion",800,"Vicepresidencia de Operaciones",260,"Jefatura de Talento Humano",26,"Programa de Formacion Findeter","Curso de Excel Intermedio - Universidad Nacional - para 05 Personas","2021-01-01",1500000]
[null,"S. General","J. Servicios G",203050709,"Elementos de Aseo y Cafeteria",200,"Secretaria General",245,"Jefatura de Servicios Generales",44,"Elementos de Aseo y Cafeteria","Elementos de aseo y cafeteria","2021-01-01",8299299]
[null,"Operaciones","D. Tecnologia",203050711,"Otros Gastos de Oficina",800,"Vicepresidencia de Operaciones",810,"Direccion de Tecnologia",145,"Firmas Digitales Certicamara Tecnologia","Certificados Portales Web de Findeter.","2021-01-01",11000000]
[null,"S. General","J. Servicios G",203050711,"Otros Gastos de Oficina",200,"Secretaria General",245,"Jefatura de Servicios Generales",146,"Otros Gastos de Oficina Findeter General","Suministrar elementos Básicos para Botiquines para Brindar los Primeros Auxilios, y Atención de Cualquier Situación de Emergencia o Acontecimientos Inesperados que se Puedan Presentar en las Instalaciones de Findeter a Nivel Nacional","2021-01-01",3116425]
[null,"Financiera","D. Banca Int.",203020201,"Gastos de Viaje A Terceros Nacionales",300,"Vicepresidencia Financiera",330,"Direccion Banca Internacional",48,"Gastos de Viaje  Asesorias","Desplazamiento Auditores Externos contrato 0001 de 2018","2021-01-01",23152500]
[null,"Tecnica","VP.Tecnica",203020201,"Gastos de Viaje A Terceros Nacionales",500,"Vicepresidencia Tecnica",500,"Vicepresidencia Tecnica",48,"Gastos de Viaje  Asesorias","Gastos de Viaje Contratistas contrato de Prestación de Servicios de la Profesional Guillermo Antonio Herrera Castaño.","2021-01-01",50000000]
[null,"Tecnica","VP.Tecnica",203020201,"Gastos de Viaje A Terceros Nacionales",500,"Vicepresidencia Tecnica",500,"Vicepresidencia Tecnica",48,"Gastos de Viaje  Asesorias","Gastos de Viaje Contratistas","2021-01-01",{"$f":"278000000-50000000","v":228000000}]
[null,"S. General","D. Juridica",203030103,"Asesorias Juridicas",200,"Secretaria General",210,"Direccion Juridica",58,"Contratacion de Abogados y Otros Servicios de Carácter Legal","Conceptos Juridicos que Requiera la Entidad","2021-01-01",45000000]
[null,"S. General","D. Juridica",203030103,"Asesorias Juridicas",200,"Secretaria General",210,"Direccion Juridica",58,"Contratacion de Abogados y Otros Servicios de Carácter Legal","Asesoria Juridica en Derecho Administrativo y Contractual, en lo Relacionado con la Actividad Y/O Gestión Misional en Aquellos Aspectos que se Consideren de Especial Complejidad","2021-01-01",200000000]
[null,"Financiera","D. Banca Int.",203030105,"Otras Asesorias",300,"Vicepresidencia Financiera",330,"Direccion Banca Internacional",293,"Traduccion de Documentos","Traducción Oficial o no Oficial de documentos de Español a Ingles o de Ingles a Español ","2021-01-01",80000000]
[null,"S. General","J. Servicios G",203050305,"Mantenimiento de Vehiculos",200,"Secretaria General",245,"Jefatura de Servicios Generales",105,"Suministro Combustible Acpm","Suministro Combustible","2021-01-01",14000000]
[null,"Comercial","G. Comunicaciones",203050310,"Mantenimiento de Software",400,"Vicepresidencia Comercial",460,"Gerencia de Comunicaciones, Mercadeo y Responsabilidad Socia",659,"Mantenimiento Software Carteleras Digitales","Mantenimiento de Software Carteleras Digitales","2021-01-01",119097828]
[null,"Comercial","G. Comunicaciones",203050705,"Libros, Periodicos y Suscripciones",400,"Vicepresidencia Comercial",460,"Gerencia de Comunicaciones, Mercadeo y Responsabilidad Socia",155,"Actualizacion Banco de Fotos","Suscripción Banco de Fotografías","2021-01-01",20000000]
[null,"Comercial","G. Comunicaciones",203051002,"Promocion y Divulgacion",400,"Vicepresidencia Comercial",460,"Gerencia de Comunicaciones, Mercadeo y Responsabilidad Socia",153,"Produccion de Video Clips","Producción de Videos","2021-01-01",80000000]
[null,"Comercial","J. Mercadeo",203051002,"Promocion y Divulgacion",400,"Vicepresidencia Comercial",461,"Jefatura de Mercadeo",163,"Servicio de Apoyo Logistico","Servicio Apoyo Logisto en la Organización de Eventos Masivos Organizados por Findeter o en la Participación Cuando se Hace a Través de Stands o Activaciones ","2021-01-01",622500000]
[null,"S. General","J. Servicios G",203050502,"Servicios de Vigilancia y Sistemas de Seguridad",200,"Secretaria General",245,"Jefatura de Servicios Generales",184,"Servicio Vigilancia Sede Central Findeter","Servicio de Vigilancia Personal","2021-01-01",34860613]
[null,"S. General","J. Servicios G",203050501,"Servicio de Aseo y Cafeteria",200,"Secretaria General",245,"Jefatura de Servicios Generales",187,"Servicio de Aseo. Cafeteria y Mantenimiento","Servicio de Instalación Mantenimiento, Desinfección Desincrustación, y Aromatización de Todos los Baños de Finedter en sus Sedes de la Calle 103 y 104","2021-01-01",11413290]
[null,"S. General","J. Servicios G",203050501,"Servicio de Aseo y Cafeteria",200,"Secretaria General",245,"Jefatura de Servicios Generales",187,"Servicio de Aseo. Cafeteria y Mantenimiento","Servicio de aseo y cafeteria","2021-01-01",33018624]
[null,"S. General","D. Juridica",203050705,"Libros, Periodicos y Suscripciones",200,"Secretaria General",210,"Direccion Juridica",290,"Suscripcion Consulta Informacion Comercial En Linea","Suscribir Convenio con Legis para el Portafolio Juridico, que Es un Sistema Modular que Consta de Tres Niveles de Informacion","2021-01-01",6000000]
[null,"Comercial","G. Comunicaciones",203030105,"Otras Asesorias",400,"Vicepresidencia Comercial",460,"Gerencia de Comunicaciones, Mercadeo y Responsabilidad Socia",642,"Otras Asesorias","Animaciones Digitales para Canales Virtuales","2021-01-01",30000000]
[null,"Operaciones","D. Tecnologia",203050309,"Mantenimiento de Hardware",800,"Vicepresidencia de Operaciones",810,"Direccion de Tecnologia",410,"Ups","Mantenimiento y Soporte de Ups","2021-01-01",28414476]
[null,"Comercial","G. Comunicaciones",203030105,"Otras Asesorias",400,"Vicepresidencia Comercial",460,"Gerencia de Comunicaciones, Mercadeo y Responsabilidad Socia",642,"Otras Asesorias","Diseño y Diagramación de Productos Editoriales","2021-01-01",137000000]
[null,"Comercial","D. Ciudades y Competitividad",203030105,"Otras Asesorias",400,"Vicepresidencia Comercial",471,"Direccion de Ciudades y Competitividad",642,"Otras Asesorias","Abogado Urbano","2021-01-01",60000000]
[null,"Comercial","D. Ciudades y Competitividad",203030105,"Otras Asesorias",400,"Vicepresidencia Comercial",471,"Direccion de Ciudades y Competitividad",642,"Otras Asesorias","Experto en Desarrollo Urbano","2021-01-01",120000000]
[null,"Tecnica","VP.Tecnica",203030105,"Otras Asesorias",500,"Vicepresidencia Tecnica",500,"Vicepresidencia Tecnica",642,"Otras Asesorias","Contrato de Prestación de Servicios de la Profesional Sandra Ximena Herrera Monge.","2021-01-01",55000000]
[null,"Tecnica","VP.Tecnica",203030105,"Otras Asesorias",500,"Vicepresidencia Tecnica",500,"Vicepresidencia Tecnica",642,"Otras Asesorias","Contrato de Prestación de Servicios de la Profesional Guillermo Antonio Herrera Castaño.","2021-01-01",300000000]
[null,"Tecnica","VP.Tecnica",203030105,"Otras Asesorias",500,"Vicepresidencia Tecnica",510,"Gerencia de Vivienda y Desarrollo Urbano",642,"Otras Asesorias","Contratos por Prestación de Servicios para Supervisión de Programas de la Vt y Profesionales Especializados para el Diseño y Consultoría de Obras Civiles","2021-01-01",{"$f":"1076000000-55000000-300000000","v":721000000}]
[null,"Planeacion","D. Estudios",203030105,"Otras Asesorias",600,"Vicepresidencia de Planeacion",640,"Direccion de Estudios Economicos",642,"Otras Asesorias","Consultoría para Dirección de Estudios Económicos: Medición de Cumplimiento de Ods de Findeter","2021-01-01",80000000]
[null,"Operaciones","D. Tecnologia",203030105,"Otras Asesorias",800,"Vicepresidencia de Operaciones",810,"Direccion de Tecnologia",642,"Otras Asesorias","Sistema de Gestión de Talento Humano (Nomina)","2021-01-01",10528254]
[null,"Financiera","G. Banca Inv.",203070101,"Estructuracion de Proyectos",300,"Vicepresidencia Financiera",355,"Gerencia de Banca de Inversion",934,"Asesoria Estructuracion Proyectos","Art","2021-01-01",524999999.99999994]
[null,"Financiera","D. Banca Int.",203030105,"Otras Asesorias",300,"Vicepresidencia Financiera",330,"Direccion Banca Internacional",771,"Seguimiento Auditoria","Auditoria contrato de Préstamo Bid 3596/Oc-Co. contrato 0001 de 2018","2021-01-01",70250000]
[null,"Financiera","D. Banca Int.",203030105,"Otras Asesorias",300,"Vicepresidencia Financiera",330,"Direccion Banca Internacional",771,"Seguimiento Auditoria","Auditoria contrato de Prestamo Bid 3842 Tramo Iii","2021-01-01",320000000]
[null,"Operaciones","D. Tecnologia",203050101,"Equipo de Computo, Comunicacion y Multifuncionales",800,"Vicepresidencia de Operaciones",810,"Direccion de Tecnologia",718,"Suministro Software Findeter","Sistema de Gestión de Talento Humano (Nomina)","2021-01-01",35862731]
[null,"Operaciones","D. Tecnologia",203050309,"Mantenimiento de Hardware",800,"Vicepresidencia de Operaciones",810,"Direccion de Tecnologia",729,"Adquisicion Hardware","Mantenimiento equipos Red Wifi Regionales","2021-01-01",59111]
[null,"S. General","J. Servicios G",203050305,"Mantenimiento de Vehiculos",200,"Secretaria General",245,"Jefatura de Servicios Generales",746,"Mantenimiento Vehiculos","Supermotos - Mantenimiento de Motocicleta","2021-01-01",1500000]
[null,"S. General","J. Servicios G",203050305,"Mantenimiento de Vehiculos",200,"Secretaria General",245,"Jefatura de Servicios Generales",746,"Mantenimiento Vehiculos","Sanautos - Mantenimiento de Vehiculo Renault Secretaria General","2021-01-01",{"$f":"2000000-1000000","v":1000000}]
[null,"Operaciones","D. Tecnologia",204010108,"Compra de Software",400,"Vicepresidencia Comercial",460,"Gerencia de Comunicaciones, Mercadeo y Responsabilidad Socia",718,"Suministro Software Findeter","Compra del Licenciamiento de la Herramienta Flickr Pro","2021-01-01",301896]
[null,"Operaciones","D. Tecnologia",204010108,"Compra de Software",400,"Vicepresidencia Comercial",460,"Gerencia de Comunicaciones, Mercadeo y Responsabilidad Socia",718,"Suministro Software Findeter","Compra del Licenciamento de la Herramiento Twitonomy para Análisis Exhaustivos de Twitter.","2021-01-01",835800]
[null,"Operaciones","D. Tecnologia",204010108,"Compra de Software",400,"Vicepresidencia Comercial",460,"Gerencia de Comunicaciones, Mercadeo y Responsabilidad Socia",718,"Suministro Software Findeter","Compra del Licenciamiento de la Herramienta Metricool para Análisis de Redes Sociales","2021-01-01",1764000]
[null,"Operaciones","D. Tecnologia",204010108,"Compra de Software",400,"Vicepresidencia Comercial",460,"Gerencia de Comunicaciones, Mercadeo y Responsabilidad Socia",718,"Suministro Software Findeter","Compra del Licenciamiento de la Herramienta Hootsuite para la Publicación de Redes","2021-01-01",4989600]
[null,"Comercial","G. Comunicaciones",203030105,"Otras Asesorias",400,"Vicepresidencia Comercial",460,"Gerencia de Comunicaciones, Mercadeo y Responsabilidad Socia",945,"Produccion y Postproduccion de Material Audiovisual","Servicio de Locución Profesional ","2021-01-01",30000000]
[null,"S. General","J. Servicios G",203050307,"Mantenimiento de Edificios y Locales",200,"Secretaria General",245,"Jefatura de Servicios Generales",947,"Control de Plagas y Roedores","Mantenimiento de Estacion de Cebado para Control de Plagas y Rodeedores","2021-01-01",148500]
[null,"S. General","J. Servicios G",203050711,"Otros Gastos de Oficina",200,"Secretaria General",245,"Jefatura de Servicios Generales",146,"Otros Gastos de Oficina Findeter General","Banderas","2021-01-01",2120000]
[null,"Operaciones","D. Tecnologia",203050310,"Mantenimiento de Software",800,"Vicepresidencia de Operaciones",810,"Direccion de Tecnologia",935,"Implementacion Proyectos Peti","Proyecto Oficina Virtual (A un Click)","2021-01-01",76000000]
[null,"S. General","J. Servicios G",203050307,"Mantenimiento de Edificios y Locales",200,"Secretaria General",245,"Jefatura de Servicios Generales",106,"Mantenimiento Filtros de Agua","Servicio de Mantenimiento de Ocho (8) Purificadores de Agua a Base de Ozono Ubicados en las Sedes de Findeter","2021-02-01",866320]
[null,"S. General","J. Talento H",203030105,"Otras Asesorias",200,"Secretaria General",260,"Jefatura de Talento Humano",76,"Mediciones de Clima Cultura Cazatalentos entre Otras","Contratación Head Hunter para Selección de Cargos de Directivos.","2021-02-01",91000000]
[null,"S. General","J. Servicios G",203050105,"Archivos Tecnicos",200,"Secretaria General",245,"Jefatura de Servicios Generales",3,"Contrato Archivo de Gestion","Servicio de Intervención y Digitalización de documentos que se Encuentran en Custodia en el Archivo Central (Identificación, Clasificación, Ordenación, Foliación, Alistamiento, Digitalización y Descripción)","2021-02-01",1476575582]
[null,"S. General","J. Servicios G",203050102,"Locales, Oficinas, Parqueaderos y Otros",200,"Secretaria General",245,"Jefatura de Servicios Generales",6,"Arredamiento Inmuebles","Arrendamiento Calle Av 24 Cao Bogota","2021-02-01",2179838]
[null,"S. General","J. Talento H",203010602,"Capacitacion",100,"Presidencia",260,"Jefatura de Talento Humano",26,"Programa de Formacion Findeter","Maestria en Políticas Públicas ","2021-02-01",17500000]
[null,"S. General","J. Talento H",203010602,"Capacitacion",300,"Vicepresidencia Financiera",260,"Jefatura de Talento Humano",26,"Programa de Formacion Findeter","Certificaciones ante la Amv","2021-02-01",1200000]
[null,"S. General","J. Talento H",203010602,"Capacitacion",300,"Vicepresidencia Financiera",260,"Jefatura de Talento Humano",26,"Programa de Formacion Findeter","Presentaciones Ejecutivas de Alto Impacto ","2021-02-01",644800]
[null,"S. General","J. Talento H",203010602,"Capacitacion",300,"Vicepresidencia Financiera",260,"Jefatura de Talento Humano",26,"Programa de Formacion Findeter","Formulación de Proyectos con Metodología General Ajustada","2021-02-01",5000000]
[null,"S. General","J. Talento H",203010602,"Capacitacion",400,"Vicepresidencia Comercial",260,"Jefatura de Talento Humano",26,"Programa de Formacion Findeter","Capacitación Fuerza Comercial Findeter Suma","2021-02-01",6000000]
[null,"S. General","J. Talento H",203010602,"Capacitacion",400,"Vicepresidencia Comercial",260,"Jefatura de Talento Humano",26,"Programa de Formacion Findeter","Maestria en Mercadeo","2021-02-01",57000000]
[null,"S. General","J. Talento H",203010602,"Capacitacion",400,"Vicepresidencia Comercial",260,"Jefatura de Talento Humano",26,"Programa de Formacion Findeter","Maestria Sostenibilidad","2021-02-01",15000000]
[null,"S. General","J. Talento H",203010602,"Capacitacion",500,"Vicepresidencia Tecnica",260,"Jefatura de Talento Humano",26,"Programa de Formacion Findeter","Riego y Batería Sanitaria","2021-02-01",3000000]
[null,"S. General","J. Talento H",203010602,"Capacitacion",700,"Vicepresidencia de Credito y Riesgos",260,"Jefatura de Talento Humano",26,"Programa de Formacion Findeter","Compromiso Recursos no Reembolsables de Kfw. Xvii Congreso de Sostenibilidad Medioambiental, Cultural, Económica y Social - Amsterdam  (Virtual)","2021-02-01",800000]
[null,"S. General","J. Talento H",203010602,"Capacitacion",800,"Vicepresidencia de Operaciones",260,"Jefatura de Talento Humano",26,"Programa de Formacion Findeter","Congreso de Tesoreria, Asobancaria","2021-02-01",3500000]
[null,"S. General","J. Talento H",203010602,"Capacitacion",800,"Vicepresidencia de Operaciones",260,"Jefatura de Talento Humano",26,"Programa de Formacion Findeter","Actualizacion en Normatividad Tributaria","2021-02-01",15000000]
[null,"S. General","J. Talento H",203010602,"Capacitacion",800,"Vicepresidencia de Operaciones",260,"Jefatura de Talento Humano",26,"Programa de Formacion Findeter","Estudio y Análisis del Estatuto General de Contratación de la Administración Pública - Cámara de Comercio de Bogotá - para 02 Personas","2021-02-01",6307000]
[null,"S. General","J. Servicios G",203050703,"Correo",200,"Secretaria General",245,"Jefatura de Servicios Generales",29,"Servicio Correo  y Mensajeria Expresa Findeter","Servicio de Recolección y Distribución de Documentos,  Mensajería Expresa y Especializada, con Cobertura Nacional e Internacional, Servicio de Mensajería Motorizada para la Ciudad de Bogotá","2021-02-01",102719582]
[null,"Financiera","VP Financiera",203030105,"Otras Asesorias",300,"Vicepresidencia Financiera",300,"Vicepresidencia Financiera",293,"Traduccion de Documentos","Traducción Oficial o no Oficial de documentos de Español a Ingles o de Ingles a Español ","2021-02-01",20000000]
[null,"S. General","J. Servicios G",203050801,"Transporte y Acarreos",200,"Secretaria General",245,"Jefatura de Servicios Generales",29,"Servicio Correo  y Mensajeria Expresa Findeter","Servicio de Recolección y Distribución  Paquetes, Mercadería y demás Objetos Postales ","2021-02-01",81991000]
[null,"Operaciones","D. Tecnologia",203050906,"Servicio de Conectividad",300,"Vicepresidencia Financiera",300,"Vicepresidencia Financiera",163,"Servicio de Apoyo Logistico","Presentación Trimestral a Inversionistas ","2021-02-01",33000000]
[null,"Comercial","J. Mercadeo",203051002,"Promocion y Divulgacion",400,"Vicepresidencia Comercial",461,"Jefatura de Mercadeo",162,"Participacion Institucional y Comercial En Eventos","Participación Comercial en Eventos Externos (Congresos, Ferias, Foros, entre Otros)","2021-02-01",99960000]
[null,"S. General","J. Talento H",203010607,"Salud Ocupacional",200,"Secretaria General",260,"Jefatura de Talento Humano",180,"Salud Ocupacional","Actividades para Ejecutar en el año 2021 Encaminadas al Desarrollo del Programa de Seguridad Industrial (Epp, Plan de Emergencias, Prev. At)","2021-02-01",21000000]
[null,"Comercial","G. Comunicaciones",203051003,"Impresos y Publicaciones",400,"Vicepresidencia Comercial",460,"Gerencia de Comunicaciones, Mercadeo y Responsabilidad Socia",667,"Impresos y Publicaciones","Ediciones Revista Pensamiento Urbano","2021-02-01",176000000]
[null,"Operaciones","D. Tecnologia",203050310,"Mantenimiento de Software",800,"Vicepresidencia de Operaciones",810,"Direccion de Tecnologia",711,"Soporte y Mantenimiento Herramienta de Bi","Tableros de Inteligencia de Negocios -  Bi (Qlik)","2021-02-01",51989866]
[null,"Comercial","G. Comunicaciones",203030105,"Otras Asesorias",400,"Vicepresidencia Comercial",460,"Gerencia de Comunicaciones, Mercadeo y Responsabilidad Socia",642,"Otras Asesorias","Estudio de Reputación","2021-02-01",90000000]
[null,"Comercial","J. Mercadeo",203030105,"Otras Asesorias",400,"Vicepresidencia Comercial",461,"Jefatura de Mercadeo",642,"Otras Asesorias","Desarrollo de Focus Group/ Actividades Inteligencia de Negocios","2021-02-01",30000000]
[null,"Comercial","J. Mercadeo",203030105,"Otras Asesorias",400,"Vicepresidencia Comercial",461,"Jefatura de Mercadeo",642,"Otras Asesorias","Transferencia de Conocimiento para Grupos de Interés","2021-02-01",60000000]
[null,"Operaciones","C. Credito",203030105,"Otras Asesorias",800,"Vicepresidencia de Operaciones",870,"Coordinacion de Credito",642,"Otras Asesorias","Servicio Crédito Directo Fase 2","2021-02-01",300000000]
[null,"Operaciones","D. Tecnologia",203030105,"Otras Asesorias",800,"Vicepresidencia de Operaciones",810,"Direccion de Tecnologia",711,"Soporte y Mantenimiento Herramienta de Bi","Tableros de Inteligencia de Negocios -  Bi (Qlik)","2021-02-01",163814805]
[null,"Operaciones","D. Tecnologia",204010108,"Compra de Software",800,"Vicepresidencia de Operaciones",810,"Direccion de Tecnologia",34,"Licenciamiento de Adobe","Renovacion Licenciamiento de Suite Adobe y Acrobat Profesional","2021-02-01",27095203]
[null,"Operaciones","D. Tecnologia",203050101,"Equipo de Computo, Comunicacion y Multifuncionales",800,"Vicepresidencia de Operaciones",810,"Direccion de Tecnologia",912,"Herramienta Supervision y Contratos de Obra \"Cobra\"","Gestión de Obras y Casa Digna Vida Digna ","2021-02-01",650000000]
[null,"Operaciones","D. Tecnologia",203030105,"Otras Asesorias",800,"Vicepresidencia de Operaciones",810,"Direccion de Tecnologia",935,"Implementacion Proyectos Peti","Proyecto: Uso y Apropiacion de TI 2020 (Estretegia Consultoria)","2021-02-01",60000000]
[null,"Operaciones","D. Tecnologia",203030105,"Otras Asesorias",800,"Vicepresidencia de Operaciones",810,"Direccion de Tecnologia",935,"Implementacion Proyectos Peti","Estrategia de Transformación Digital","2021-02-01",282000000]
[null,"Operaciones","D. Tecnologia",204010108,"Compra de Software",800,"Vicepresidencia de Operaciones",810,"Direccion de Tecnologia",935,"Implementacion Proyectos Peti","Proyecto Migración Sigep a Project Server 2016","2021-02-01",17120000]
[null,"Operaciones","D. Tecnologia",203050310,"Mantenimiento de Software",800,"Vicepresidencia de Operaciones",810,"Direccion de Tecnologia",935,"Implementacion Proyectos Peti","Proyecto Migración Sigep a Project Server 2016","2021-02-01",50000000]
[null,"Comercial","G. Comunicaciones",203030105,"Otras Asesorias",400,"Vicepresidencia Comercial",460,"Gerencia de Comunicaciones, Mercadeo y Responsabilidad Socia",63,"Asesoria En Comunicaciones","Asesoría y Acompañamiento en Comunicaciones Estratégicas","2021-03-01",165460000]
[null,"Presidencia","O. Control I",203030105,"Otras Asesorias",100,"Presidencia",125,"Jefatura Oficina Control Interno",65,"Tercerizacion Oficina de Control Interno Evaluacion y Seguim","Tercerización de la Oci de Getión. Desempeñar los Roles de: Evaluación y Asesoría en temas Relacionados con Auditoria Interna de Gestión. contrato Vigente Ernst Young.","2021-03-01",719731051]
[null,"Operaciones","D. Tecnologia",203050101,"Equipo de Computo, Comunicacion y Multifuncionales",800,"Vicepresidencia de Operaciones",810,"Direccion de Tecnologia",20,"Telefonia Ip Licencias y Aparatos Telefonicos","Arrendamiento de equipos de Telefonia sobre Ip","2021-03-01",{"$f":"600000000-2218136","v":597781864}]
[null,"S. General","J. Talento H",203010602,"Capacitacion",200,"Secretaria General",260,"Jefatura de Talento Humano",26,"Programa de Formacion Findeter","Actualización en Normatividad sobre Seguridad Social asisten 2 Trabajadores","2021-03-01",2000000]
[null,"S. General","J. Talento H",203010602,"Capacitacion",300,"Vicepresidencia Financiera",260,"Jefatura de Talento Humano",26,"Programa de Formacion Findeter","Seminario en Contratación Internacional","2021-03-01",624000]
[null,"S. General","J. Talento H",203010602,"Capacitacion",300,"Vicepresidencia Financiera",260,"Jefatura de Talento Humano",26,"Programa de Formacion Findeter","Curso de Excel Básico e Intermedio *7","2021-03-01",3276000]
[null,"S. General","J. Talento H",203010602,"Capacitacion",300,"Vicepresidencia Financiera",260,"Jefatura de Talento Humano",26,"Programa de Formacion Findeter","Diplomado Finanzas para no Financieros * 2","2021-03-01",7030400]
[null,"S. General","J. Talento H",203010602,"Capacitacion",400,"Vicepresidencia Comercial",260,"Jefatura de Talento Humano",26,"Programa de Formacion Findeter","Capacitación en Derecho Urbano Dictado por el Centro Interdisciplinario de Estudios sobre el Desarrollo- Cider de los la Universidad de los Andes,  36 horas y 4 Sesiones","2021-03-01",9000000]
[null,"S. General","J. Talento H",203010602,"Capacitacion",400,"Vicepresidencia Comercial",260,"Jefatura de Talento Humano",26,"Programa de Formacion Findeter","Curso Excel -Avanzado","2021-03-01",1000000]
[null,"S. General","J. Talento H",203010602,"Capacitacion",800,"Vicepresidencia de Operaciones",260,"Jefatura de Talento Humano",26,"Programa de Formacion Findeter","Diplomado Finanzas para no Financieros - Universidad Javeriana - para 02 Personas","2021-03-01",3800000]
[null,"S. General","S. General",203020201,"Gastos de Viaje A Terceros Nacionales",200,"Secretaria General",200,"Secretaria General",48,"Gastos de Viaje  Asesorias","Gastos de Viaje Asesor externo ","2021-03-01",10000000]
[null,"Comercial","D. Ciudades y Competitividad",203020201,"Gastos de Viaje A Terceros Nacionales",400,"Vicepresidencia Comercial",471,"Direccion de Ciudades y Competitividad",48,"Gastos de Viaje  Asesorias","Viáticos de Experto en Desarrollo Urbano","2021-03-01",7920000]
[null,"Comercial","J. Mercadeo",203051001,"Publicidad",400,"Vicepresidencia Comercial",461,"Jefatura de Mercadeo",171,"Publicacion Avisos y Pautas Publicitarias","Publicación Aviso Prensa y Revistas","2021-03-01",8193150]
[null,"Comercial","J. Mercadeo",203051002,"Promocion y Divulgacion",400,"Vicepresidencia Comercial",461,"Jefatura de Mercadeo",162,"Participacion Institucional y Comercial En Eventos","Participación Comercial en Eventos Externos (Congresos, Ferias, Foros, entre Otros)","2021-03-01",67140000]
[null,"S. General","J. Talento H",203010607,"Salud Ocupacional",200,"Secretaria General",260,"Jefatura de Talento Humano",180,"Salud Ocupacional","Actividades de Promoción y Prevención para Ejecutar en el año 2021","2021-03-01",20000000]
[null,"Comercial","J. Mercadeo",203051003,"Impresos y Publicaciones",400,"Vicepresidencia Comercial",461,"Jefatura de Mercadeo",171,"Publicacion Avisos y Pautas Publicitarias","Publicacion Avisos de Ley (Ej Convocatorias, Cambio Ofc )","2021-03-01",5000000]
[null,"Financiera","J. Gestion U",203030105,"Otras Asesorias",300,"Vicepresidencia Financiera",331,"Jefatura de Gestion Urbana Integral",642,"Otras Asesorias","Consultoría Pmm Santa Rosa de Cabal (Subcontratado)","2021-03-01",560000000]
[null,"Planeacion","G. Planeacion",203030105,"Otras Asesorias",600,"Vicepresidencia de Planeacion",605,"Gerencia de Planeacion y Gestion",642,"Otras Asesorias","Proyecto de Modernización de Procesos","2021-03-01",15000000]
[null,"Financiera","G. Banca Inv.",203070101,"Estructuracion de Proyectos",300,"Vicepresidencia Financiera",355,"Gerencia de Banca de Inversion",934,"Asesoria Estructuracion Proyectos","Art","2021-03-01",524999999.99999994]
[null,"Financiera","G. Banca Inv.",203070101,"Estructuracion de Proyectos",300,"Vicepresidencia Financiera",355,"Gerencia de Banca de Inversion",934,"Asesoria Estructuracion Proyectos","Consultoría Hospitales Art","2021-03-01",712500000]
[null,"Operaciones","D. Tecnologia",203050310,"Mantenimiento de Software",800,"Vicepresidencia de Operaciones",810,"Direccion de Tecnologia",119,"Mantenimiento Aplicativo Financianet","Sonda de Colombia Soporte Core Financiero - Soporte, Mantenimiento y Desarrollos, del Aplicativo Financianet. ","2021-04-01",613095886]
[null,"S. General","J. Servicios G",203050102,"Locales, Oficinas, Parqueaderos y Otros",500,"Vicepresidencia Tecnica",500,"Vicepresidencia Tecnica",6,"Arredamiento Inmuebles","Arrendamiento Santa Marta","2021-04-01",16423968]
[null,"Operaciones","D. Tecnologia",203050101,"Equipo de Computo, Comunicacion y Multifuncionales",800,"Vicepresidencia de Operaciones",810,"Direccion de Tecnologia",13,"Arrendamiento Computadores Servidores y Multifuncionales","Arrendamiento de Impresoras","2021-04-01",62000000]
[null,"S. General","J. Talento H",203010602,"Capacitacion",100,"Presidencia",260,"Jefatura de Talento Humano",26,"Programa de Formacion Findeter","Curso de Preparación para Certificación Pmp version Actualizada","2021-04-01",3708000]
[null,"S. General","J. Talento H",203010602,"Capacitacion",200,"Secretaria General",260,"Jefatura de Talento Humano",26,"Programa de Formacion Findeter","Capacitaciones en temas Asociados a Contratación y demás Funciones de la Dirección","2021-04-01",5000000]
[null,"S. General","J. Talento H",203010602,"Capacitacion",200,"Secretaria General",260,"Jefatura de Talento Humano",26,"Programa de Formacion Findeter","Capacitación Códigos  Etica e Integridad y Gobierno Corporativo  ","2021-04-01",8000000]
[null,"S. General","J. Talento H",203010602,"Capacitacion",200,"Secretaria General",260,"Jefatura de Talento Humano",26,"Programa de Formacion Findeter","Capacitación en el Idioma Inglés para los Trabajadores (Beneficiarios Convención Colectiva y Directivos)","2021-04-01",120000000]
[null,"S. General","J. Talento H",203010602,"Capacitacion",300,"Vicepresidencia Financiera",260,"Jefatura de Talento Humano",26,"Programa de Formacion Findeter","Examen Certificación Cfa","2021-04-01",3128800]
[null,"S. General","J. Talento H",203010602,"Capacitacion",300,"Vicepresidencia Financiera",260,"Jefatura de Talento Humano",26,"Programa de Formacion Findeter","Project Finance","2021-04-01",30000000]
[null,"S. General","J. Talento H",203010602,"Capacitacion",400,"Vicepresidencia Comercial",260,"Jefatura de Talento Humano",26,"Programa de Formacion Findeter","Participacion Expomarketing","2021-04-01",3000000]
[null,"S. General","J. Talento H",203010602,"Capacitacion",400,"Vicepresidencia Comercial",260,"Jefatura de Talento Humano",26,"Programa de Formacion Findeter","Capacitación Organización y Gestion de Eventos Virtuales y Presenciales","2021-04-01",5000000]
[null,"S. General","J. Talento H",203010602,"Capacitacion",400,"Vicepresidencia Comercial",260,"Jefatura de Talento Humano",26,"Programa de Formacion Findeter","Capacitación en Derecho Urbano Dictado por el Centro Interdisciplinario de Estudios sobre el Desarrollo- Cider de los la Universidad de los Andes,  36 horas y 4 Sesiones","2021-04-01",9000000]
[null,"S. General","J. Talento H",203010602,"Capacitacion",500,"Vicepresidencia Tecnica",260,"Jefatura de Talento Humano",26,"Programa de Formacion Findeter","Supervisión de Proyectos (Proyección, Planeación y Coordinación","2021-04-01",4500000]
[null,"S. General","J. Talento H",203010602,"Capacitacion",600,"Vicepresidencia de Planeacion",260,"Jefatura de Talento Humano",26,"Programa de Formacion Findeter","Participacion Taller Internacional Alide","2021-04-01",3324350]
[null,"S. General","J. Talento H",203010602,"Capacitacion",700,"Vicepresidencia de Credito y Riesgos",260,"Jefatura de Talento Humano",26,"Programa de Formacion Findeter","Congreso de Sostenibilidad Asobancaria","2021-04-01",1200000]
[null,"S. General","J. Talento H",203010602,"Capacitacion",800,"Vicepresidencia de Operaciones",260,"Jefatura de Talento Humano",26,"Programa de Formacion Findeter","Diplomado Gerencia de Crédito, Cartera y Cobranza - Cámara de Comercio de Bogotá - 02 Personas","2021-04-01",6454560]
[null,"S. General","J. Servicios G",203050307,"Mantenimiento de Edificios y Locales",400,"Vicepresidencia Comercial",483,"Zona Eje Cafetero",111,"Mantenimiento Inmuebles","Mantenimiento equipos aire acondicionado Pereira","2021-04-01",52989]
[null,"S. General","J. Servicios G",203050307,"Mantenimiento de Edificios y Locales",400,"Vicepresidencia Comercial",491,"Regional Noroccidental",111,"Mantenimiento Inmuebles","Mantenimiento equipos aire acondicionado Medellin","2021-04-01",124013]
[null,"S. General","J. Servicios G",203050307,"Mantenimiento de Edificios y Locales",400,"Vicepresidencia Comercial",492,"Regional Nororiental",111,"Mantenimiento Inmuebles","Mantenimiento equipos aire acondicionado Bucaramanga","2021-04-01",3287080]
[null,"Operaciones","D. Tecnologia",203050906,"Servicio de Conectividad",800,"Vicepresidencia de Operaciones",810,"Direccion de Tecnologia",767,"Mantenimiento Software","Cancelación Prefijo anual Ipv6","2021-04-01",2487000]
[null,"Comercial","J. Mercadeo",203051001,"Publicidad",400,"Vicepresidencia Comercial",461,"Jefatura de Mercadeo",171,"Publicacion Avisos y Pautas Publicitarias","Publicación Aviso Prensa y Revistas","2021-04-01",46335482]
[null,"Comercial","J. Mercadeo",203051002,"Promocion y Divulgacion",400,"Vicepresidencia Comercial",461,"Jefatura de Mercadeo",162,"Participacion Institucional y Comercial En Eventos","Participación Comercial en Eventos Externos (Congresos, Ferias, Foros, entre Otros)","2021-04-01",10000000]
[null,"Comercial","J. Mercadeo",203051002,"Promocion y Divulgacion",400,"Vicepresidencia Comercial",461,"Jefatura de Mercadeo",165,"Elaboracion de Piezas de Imagen Promocional","Elaboración de Piezas Impresas Promocionales (Pendones, Skyline, Bumerang, Display, Backing) Institucionales, Programas Especiales , Internos, entre otros ","2021-04-01",35000000]
[null,"S. General","J. Talento H",203010607,"Salud Ocupacional",200,"Secretaria General",260,"Jefatura de Talento Humano",180,"Salud Ocupacional","Contratación Programa Movilidad en Bicicleta entre otras. Actividades.","2021-04-01",20000000]
[null,"S. General","J. Talento H",203010607,"Salud Ocupacional",200,"Secretaria General",260,"Jefatura de Talento Humano",180,"Salud Ocupacional","Actividades para la Atención del Riesgo Psicosocial en el año 2021","2021-04-01",40030666]
[null,"S. General","J. Servicios G",203050502,"Servicios de Vigilancia y Sistemas de Seguridad",800,"Vicepresidencia de Operaciones",820,"Direccion de Operaciones",183,"Servicio Monitoreo de Alarmas","Servicio de Monitoreo de Alarma Dirección de Operaciones  de acuerdo a las Disposiciones de Riesgos","2021-04-01",19108]
[null,"S. General","J. Servicios G",203050307,"Mantenimiento de Edificios y Locales",200,"Secretaria General",245,"Jefatura de Servicios Generales",734,"Mantenimiento Edificio","Mantenimiento Muro Verde Fachadas","2021-04-01",18728250]
[null,"Operaciones","D. Tecnologia",203050101,"Equipo de Computo, Comunicacion y Multifuncionales",800,"Vicepresidencia de Operaciones",810,"Direccion de Tecnologia",623,"Implementación de Una Plataforma Para Capacitación Virtual","Plataforma para la capacitación de Findeter E-Learning","2021-04-01",25000000]
[null,"Financiera","J. Gestion U",203030105,"Otras Asesorias",300,"Vicepresidencia Financiera",331,"Jefatura de Gestion Urbana Integral",642,"Otras Asesorias","Contratacion de Experto en TIcs","2021-04-01",48000000]
[null,"Financiera","J. Gestion U",203030105,"Otras Asesorias",300,"Vicepresidencia Financiera",331,"Jefatura de Gestion Urbana Integral",642,"Otras Asesorias","Consultoría Plan Maestro Integral y Estructuración del Sitp Cúcuta (Venta Integral)","2021-04-01",3372491203]
[null,"Planeacion","G. Planeacion",203030105,"Otras Asesorias",600,"Vicepresidencia de Planeacion",605,"Gerencia de Planeacion y Gestion",642,"Otras Asesorias","Proyecto de Modernización de Procesos","2021-04-01",15000000]
[null,"Planeacion","CIC",203030105,"Otras Asesorias",600,"Vicepresidencia de Planeacion",606,"Centro de Innovacion y Conocimiento",642,"Otras Asesorias","Acompañamiento para Elaboración de Prototipos de Innovación y Fortalecer la Cultura de la Innovación (Programa de Héroes)","2021-04-01",30000000]
[null,"Riesgos","Coordinacion de Riesgos No Financieros",203030105,"Otras Asesorias",700,"Vicepresidencia de Credito y Riesgos",702,"Coordinacion de Riesgos No Financieros",642,"Otras Asesorias","Contratación Servicios de Seguridad Gestionado Soportadas en un Soc 7X24, que Incluya Servicios de Blueteam y Readteam","2021-04-01",184000000]
[null,"Financiera","J. Gestion U",203020201,"Gastos de Viaje A Terceros Nacionales",300,"Vicepresidencia Financiera",331,"Jefatura de Gestion Urbana Integral",642,"Otras Asesorias","Gastos de Viajes Contratacion de Experto en TIcs","2021-04-01",13000000]
[null,"Operaciones","D. Tecnologia",203050309,"Mantenimiento de Hardware",800,"Vicepresidencia de Operaciones",810,"Direccion de Tecnologia",760,"Soporte y Mantenimiento de La Solucion Integral Procesamient","Soporte y Mantenimiento de Firewall","2021-04-01",17202145]
[null,"Operaciones","D. Tecnologia",203030105,"Otras Asesorias",600,"Vicepresidencia de Planeacion",605,"Gerencia de Planeacion y Gestion",935,"Implementacion Proyectos Peti","Optimización y Automatización procesos (Proyecto Planeacion)","2021-04-01",100000000]
[null,"Operaciones","D. Tecnologia",203030105,"Otras Asesorias",800,"Vicepresidencia de Operaciones",810,"Direccion de Tecnologia",935,"Implementacion Proyectos Peti","Desarrollo de Soluciones Identificadas en el Ejercicio de Arquitectura para el Core Técnico","2021-04-01",176000000]
[null,"Operaciones","D. Tecnologia",203050101,"Equipo de Computo, Comunicacion y Multifuncionales",800,"Vicepresidencia de Operaciones",810,"Direccion de Tecnologia",935,"Implementacion Proyectos Peti","Desarrollo de Soluciones Identificadas en el Ejercicio de Arquitectura para el Core Técnico","2021-04-01",400000000]
[null,"Operaciones","D. Tecnologia",204010108,"Compra de Software",600,"Vicepresidencia de Planeacion",600,"Vicepresidencia de Planeacion",935,"Implementacion Proyectos Peti","Optimización y Automatización procesos (Proyecto Planeacion)","2021-04-01",200000000]
[null,"Planeacion","D. Estudios",203050705,"Libros, Periodicos y Suscripciones",600,"Vicepresidencia de Planeacion",640,"Direccion de Estudios Economicos",290,"Suscripcion Consulta Informacion Comercial En Linea","Anif. Informes Semanales y Diarios por 1 Año. ","2021-04-01",725000]
[null,"Planeacion","D. Estudios",203050705,"Libros, Periodicos y Suscripciones",600,"Vicepresidencia de Planeacion",640,"Direccion de Estudios Economicos",290,"Suscripcion Consulta Informacion Comercial En Linea","Suscripción a fuente de Información: Bloomberg Usd$475","2021-04-01",1857725]
[null,"Operaciones","D. Tecnologia",203050310,"Mantenimiento de Software",800,"Vicepresidencia de Operaciones",810,"Direccion de Tecnologia",935,"Implementacion Proyectos Peti","Ecosistema Digital","2021-04-01",60000000]
[null,"Operaciones","D. Tecnologia",203050310,"Mantenimiento de Software",800,"Vicepresidencia de Operaciones",810,"Direccion de Tecnologia",90,"Servicios de Fabrica y Sofware Para El Desarrollo de Aplicac","Fabrica de Software (Mantenimiento y Desarrollos)","2021-05-01",{"$f":"1029888459-6306960","v":1023581499}]
[null,"Operaciones","D. Tecnologia",203050310,"Mantenimiento de Software",200,"Secretaria General",245,"Jefatura de Servicios Generales",115,"Implementacion Software Gestion Documental","Gestión Documental (Correspondencia)","2021-05-01",70000000]
[null,"S. General","J. Servicios G",203050307,"Mantenimiento de Edificios y Locales",200,"Secretaria General",245,"Jefatura de Servicios Generales",111,"Mantenimiento Inmuebles","Mantenimiento Ascensor Sede Central ","2021-05-01",3438891]
[null,"S. General","J. Talento H",203010604,"Bienestar Social",200,"Secretaria General",260,"Jefatura de Talento Humano",25,"Bienestar Social","Contratación para el Desarrollo de Actividades del Programa Calidad de Vida, Bienestar y Modelo Efr Dirigidas a los Colaboradores de Findeter Relacionadas con Recreación, Deporte, Cultura, Mercadeo Social, Salud, Eventos Sociales, Escenarios e Instalaciones Adecuadas, entre otras.\n","2021-05-01",548577156]
[null,"S. General","J. Talento H",203010602,"Capacitacion",100,"Presidencia",260,"Jefatura de Talento Humano",26,"Programa de Formacion Findeter","Curso Actualización Metodologías Sarlaft (Oficial de Cumplimiento Principal).","2021-05-01",4500000]
[null,"S. General","J. Talento H",203010602,"Capacitacion",200,"Secretaria General",260,"Jefatura de Talento Humano",26,"Programa de Formacion Findeter","Se Requiere la capacitación para Todos los Abogados de la Dirección Jurídica, Dirección de Contratación, Contratación Derivada y Secretaría General en Títulos Valores y Garantías","2021-05-01",20000000]
[null,"S. General","J. Talento H",203010602,"Capacitacion",200,"Secretaria General",260,"Jefatura de Talento Humano",26,"Programa de Formacion Findeter","Cueso en Herramientas Ofímaticas (Excel)","2021-05-01",6000000]
[null,"S. General","J. Talento H",203010602,"Capacitacion",200,"Secretaria General",260,"Jefatura de Talento Humano",26,"Programa de Formacion Findeter","Diplomado en Normatividad Tributaria para 2 Trabajadores","2021-05-01",7000000]
[null,"S. General","J. Talento H",203010602,"Capacitacion",300,"Vicepresidencia Financiera",260,"Jefatura de Talento Humano",26,"Programa de Formacion Findeter","Simposio Mercado de Capitales y Tesorería","2021-05-01",7800000]
[null,"S. General","J. Talento H",203010602,"Capacitacion",400,"Vicepresidencia Comercial",260,"Jefatura de Talento Humano",26,"Programa de Formacion Findeter","Capacitación de Servicio al Cliente para Toda la Entidas Sac","2021-05-01",45000000]
[null,"S. General","J. Talento H",203010602,"Capacitacion",400,"Vicepresidencia Comercial",260,"Jefatura de Talento Humano",26,"Programa de Formacion Findeter","Curso Excel -Avanzado","2021-05-01",1000000]
[null,"S. General","J. Talento H",203010602,"Capacitacion",600,"Vicepresidencia de Planeacion",260,"Jefatura de Talento Humano",26,"Programa de Formacion Findeter","Diplomado Presencial \"Costos y Presupuestos Estratégicos\" - Intensidad: 120 horas (Viernes de 6:00 Pm a 9:00 Pm y Sábados de 7:00 Am a 1:00 Pm)","2021-05-01",4808790]
[null,"S. General","J. Talento H",203010602,"Capacitacion",600,"Vicepresidencia de Planeacion",260,"Jefatura de Talento Humano",26,"Programa de Formacion Findeter","Diplomado","2021-05-01",7210000]
[null,"S. General","J. Talento H",203010602,"Capacitacion",600,"Vicepresidencia de Planeacion",260,"Jefatura de Talento Humano",26,"Programa de Formacion Findeter","Diplomado","2021-05-01",3708000]
[null,"S. General","J. Talento H",203010602,"Capacitacion",600,"Vicepresidencia de Planeacion",260,"Jefatura de Talento Humano",26,"Programa de Formacion Findeter","Curso Académico de Gobernabilidad Economía Mundial","2021-05-01",3150000]
[null,"S. General","J. Talento H",203010602,"Capacitacion",800,"Vicepresidencia de Operaciones",260,"Jefatura de Talento Humano",26,"Programa de Formacion Findeter","Scrum Product Owner","2021-05-01",5712000]
[null,"S. General","J. Talento H",203010602,"Capacitacion",800,"Vicepresidencia de Operaciones",260,"Jefatura de Talento Humano",26,"Programa de Formacion Findeter","Cobit Fundation","2021-05-01",7378000]
[null,"S. General","J. Talento H",203010602,"Capacitacion",800,"Vicepresidencia de Operaciones",260,"Jefatura de Talento Humano",26,"Programa de Formacion Findeter","Devops","2021-05-01",9579500]
[null,"Comercial","G. Comunicaciones",203030105,"Otras Asesorias",400,"Vicepresidencia Comercial",460,"Gerencia de Comunicaciones, Mercadeo y Responsabilidad Socia",291,"Servicio Monitoreo de Medios","Asesorias Servicio de Monitero de Medios de Comunicación","2021-05-01",26218218]
[null,"S. General","J. Servicios G",203050307,"Mantenimiento de Edificios y Locales",400,"Vicepresidencia Comercial",493,"Regional Caribe",111,"Mantenimiento Inmuebles","Mantenimiento equipos aire acondicionado Barranquilla","2021-05-01",68935]
[null,"Comercial","J. Mercadeo",203051001,"Publicidad",400,"Vicepresidencia Comercial",461,"Jefatura de Mercadeo",171,"Publicacion Avisos y Pautas Publicitarias","Publicación Aviso Prensa y Revistas","2021-05-01",89530007]
[null,"Operaciones","V. Operaciones",203030102,"Revisoria Fiscal",70,"Revisoria Fiscal",70,"Revisoria Fiscal",179,"Revisoria Fiscal","Revisoria Fiscal","2021-05-01",295889528]
[null,"S. General","J. Talento H",203010607,"Salud Ocupacional",200,"Secretaria General",260,"Jefatura de Talento Humano",180,"Salud Ocupacional","Actividades para Ejecutar en el año 2021 Encaminadas al Entrenamiento y Re-Entrenamiento de Trabajo en Alturas para los Colaboradores que Realizan Visitas de Campo.","2021-05-01",18000000]
[null,"Presidencia","Presidencia",203030105,"Otras Asesorias",100,"Presidencia",100,"Presidencia",642,"Otras Asesorias","Contratación de Asesorías Diversas ","2021-05-01",150000000]
[null,"Planeacion","G. Planeacion",203030105,"Otras Asesorias",600,"Vicepresidencia de Planeacion",605,"Gerencia de Planeacion y Gestion",642,"Otras Asesorias","Proyecto de Modernización de Procesos","2021-05-01",15000000]
[null,"Planeacion","CIC",203030105,"Otras Asesorias",600,"Vicepresidencia de Planeacion",606,"Centro de Innovacion y Conocimiento",642,"Otras Asesorias","Acompañamiento para Elaboración de Prototipos de Innovación y Fortalecer la Cultura de la Innovación (Programa de Héroes)","2021-05-01",78000000]
[null,"Operaciones","D. Tecnologia",203050101,"Equipo de Computo, Comunicacion y Multifuncionales",800,"Vicepresidencia de Operaciones",810,"Direccion de Tecnologia",716,"Arrendamiento Equipos Computo","Arrendamiento equipos de Computo y Portatiles","2021-05-01",966471656]
[null,"S. General","J. Servicios G",204010101,"Compra de Muebles y Enseres",200,"Secretaria General",245,"Jefatura de Servicios Generales",665,"Compra de Muebles y Enseres","Contratacion Suministro Mobiliario para Findeter. ","2021-05-01",83200000]
[null,"S. General","J. Talento H",203030105,"Otras Asesorias",200,"Secretaria General",260,"Jefatura de Talento Humano",76,"Mediciones de Clima Cultura Cazatalentos entre Otras","“Realizar la Prueba Vsa – Prueba de Evaluacion de Confiabilidad","2021-06-01",3750000]
[null,"S. General","J. Talento H",203030105,"Otras Asesorias",200,"Secretaria General",260,"Jefatura de Talento Humano",76,"Mediciones de Clima Cultura Cazatalentos entre Otras","Contratar Servicios Profesionales para Llevar a cabo  procesos que Potencialicen la Adaptación de los Colaboradores en el Entorno Laboral (Cultura-Cargas de Wjo).","2021-06-01",65000000]
[null,"S. General","J. Servicios G",203050401,"Arreglos Ornamentales",200,"Secretaria General",245,"Jefatura de Servicios Generales",1,"Arreglos Ornamentales","Arreglos Ornamentales del Edificio ","2021-06-01",5808160]
[null,"Operaciones","D. Tecnologia",203050101,"Equipo de Computo, Comunicacion y Multifuncionales",800,"Vicepresidencia de Operaciones",810,"Direccion de Tecnologia",14,"Tercerizacion Servicio Datacenter","Servicio de Datacenter Centurylink","2021-06-01",569278528]
[null,"S. General","J. Talento H",203010602,"Capacitacion",100,"Presidencia",260,"Jefatura de Talento Humano",26,"Programa de Formacion Findeter","Maestria en Políticas Públicas ","2021-06-01",15000000]
[null,"S. General","J. Talento H",203010602,"Capacitacion",200,"Secretaria General",260,"Jefatura de Talento Humano",26,"Programa de Formacion Findeter","Capacitación Miembros de Junta Directiva ","2021-06-01",20000000]
[null,"S. General","J. Talento H",203010602,"Capacitacion",200,"Secretaria General",260,"Jefatura de Talento Humano",26,"Programa de Formacion Findeter","Curso de Actualización en Nueva Normatividad en Sgsst","2021-06-01",1200000]
[null,"S. General","J. Talento H",203010602,"Capacitacion",300,"Vicepresidencia Financiera",260,"Jefatura de Talento Humano",26,"Programa de Formacion Findeter","Certificaciones ante la Amv","2021-06-01",1200000]
[null,"S. General","J. Talento H",203010602,"Capacitacion",400,"Vicepresidencia Comercial",260,"Jefatura de Talento Humano",26,"Programa de Formacion Findeter","Advanced Management Program Intensivo 1 mes España","2021-06-01",84784600]
[null,"S. General","J. Talento H",203010602,"Capacitacion",400,"Vicepresidencia Comercial",260,"Jefatura de Talento Humano",26,"Programa de Formacion Findeter","Curso de Indesign - Essential ","2021-06-01",4000000]
[null,"S. General","J. Talento H",203010602,"Capacitacion",600,"Vicepresidencia de Planeacion",260,"Jefatura de Talento Humano",26,"Programa de Formacion Findeter","Curso / Seminario de la Gestion Presupuestal en el Sector Público","2021-06-01",6120000]
[null,"S. General","J. Talento H",203010602,"Capacitacion",700,"Vicepresidencia de Credito y Riesgos",260,"Jefatura de Talento Humano",26,"Programa de Formacion Findeter","Compromiso Recursos no Reembolsables de Kfw. Programa de capacitación de Análisis de Riesgos Ambientales y Sociales (Aras) - Iniciativa Financiera del Programa de las Naciones Unidas para el Medio Ambiente (Latf-Unep Fi por sus Siglas en Inglés)","2021-06-01",2600000]
[null,"S. General","J. Talento H",203010602,"Capacitacion",700,"Vicepresidencia de Credito y Riesgos",260,"Jefatura de Talento Humano",26,"Programa de Formacion Findeter","Compromiso Recursos no Reembolsables de Kfw. Programa de capacitación de Análisis de Riesgos Ambientales y Sociales (Aras) - Iniciativa Financiera del Programa de las Naciones Unidas para el Medio Ambiente (Latf-Unep Fi por sus Siglas en Inglés)","2021-06-01",2600000]
[null,"S. General","D. Juridica",203030103,"Asesorias Juridicas",200,"Secretaria General",210,"Direccion Juridica",58,"Contratacion de Abogados y Otros Servicios de Carácter Legal","Prestar el Servicio de Vigilancia Y/O Control de los procesos Donde Findeter sea Demandante o Demandado, los Cuales se Adelantan en los Diferetes Despachos Judiciales del Pais - Lupa","2021-06-01",18000000]
[null,"Planeacion","G. Planeacion",203030105,"Otras Asesorias",600,"Vicepresidencia de Planeacion",605,"Gerencia de Planeacion y Gestion",149,"Medicion Huella de Carbono","Medición Huella de Carbono 2020","2021-06-01",13390000]
[null,"Operaciones","D. Tecnologia",203050310,"Mantenimiento de Software",800,"Vicepresidencia de Operaciones",810,"Direccion de Tecnologia",122,"Tercerizacion Correo Corporativo Level 3","Correo Corporativo Centurylink","2021-06-01",309969296]
[null,"Operaciones","D. Tecnologia",203050310,"Mantenimiento de Software",800,"Vicepresidencia de Operaciones",810,"Direccion de Tecnologia",126,"Soporte y Mantenimiento Sistema Ax (Erp)","Erp Corporativo Alfapeople (Dynamics Ax). Soporte y Mantenimiento","2021-06-01",74550566]
[null,"Operaciones","D. Tecnologia",203050906,"Servicio de Conectividad",800,"Vicepresidencia de Operaciones",810,"Direccion de Tecnologia",181,"Conectividad Tercerizacion","Canales de Comunicación (Internet). Centurylink","2021-06-01",169971984]
[null,"Operaciones","D. Tecnologia",203050906,"Servicio de Conectividad",800,"Vicepresidencia de Operaciones",810,"Direccion de Tecnologia",749,"Señal En Vivo Eventos Streaming","Evento Ser Findeter (Streraming para Eventos de Ser Findeter)","2021-06-01",2000000]
[null,"Comercial","J. Mercadeo",203051001,"Publicidad",400,"Vicepresidencia Comercial",461,"Jefatura de Mercadeo",171,"Publicacion Avisos y Pautas Publicitarias","Publicación Aviso Prensa y Revistas","2021-06-01",8193150]
[null,"Comercial","J. Mercadeo",203051002,"Promocion y Divulgacion",400,"Vicepresidencia Comercial",461,"Jefatura de Mercadeo",162,"Participacion Institucional y Comercial En Eventos","Participación Comercial en Eventos Externos (Congresos, Ferias, Foros, entre otros)","2021-06-01",56860000]
[null,"Comercial","J. Mercadeo",203051002,"Promocion y Divulgacion",400,"Vicepresidencia Comercial",461,"Jefatura de Mercadeo",164,"Elaboracion de Elementos Promocionales","Elaboración de elementos Promocionales","2021-06-01",45000000]
[null,"Comercial","G. Acción Social",203051101,"Sistema de Gestion Ambiental y Social",400,"Vicepresidencia Comercial",462,"Grupo de Accion Social",642,"Otras Asesorias","Implementación Proyecto Insignia ","2021-06-01",282000000]
[null,"Financiera","D. Banca Int.",203030105,"Otras Asesorias",300,"Vicepresidencia Financiera",330,"Direccion Banca Internacional",642,"Otras Asesorias","Evaluación Final del contrato de Préstamo  Bid 3596-Oc-Co","2021-06-01",160000000]
[null,"Financiera","J. Gestion U",203030105,"Otras Asesorias",300,"Vicepresidencia Financiera",331,"Jefatura de Gestion Urbana Integral",642,"Otras Asesorias","Consultoría Pmm Municipio Intermedio","2021-06-01",1041683404]
[null,"Planeacion","G. Presupuesto",203030105,"Otras Asesorias",600,"Vicepresidencia de Planeacion",601,"Grupo de Presupuesto",642,"Otras Asesorias","Asesoria en Normativa Presupuestal","2021-06-01",25000000]
[null,"Planeacion","G. Planeacion",203030105,"Otras Asesorias",600,"Vicepresidencia de Planeacion",605,"Gerencia de Planeacion y Gestion",642,"Otras Asesorias","Proyecto de Modernización de Procesos","2021-06-01",15000000]
[null,"Planeacion","CIC",203030105,"Otras Asesorias",600,"Vicepresidencia de Planeacion",606,"Centro de Innovacion y Conocimiento",642,"Otras Asesorias","Asesoría Especializada para Proyectos de I+D+I","2021-06-01",10000000]
[null,"Financiera","G. Banca Inv.",203070101,"Estructuracion de Proyectos",300,"Vicepresidencia Financiera",355,"Gerencia de Banca de Inversion",934,"Asesoria Estructuracion Proyectos","Consultoría Hospitales Art","2021-06-01",712500000]
[null,"Operaciones","D. Tecnologia",203050310,"Mantenimiento de Software",800,"Vicepresidencia de Operaciones",810,"Direccion de Tecnologia",767,"Mantenimiento Software","Isolucion - Soporte y Mantenimiento de Aplicativo Sistema de Gestión Integrado (Sgi) ","2021-06-01",22167991]
[null,"Operaciones","D. Tecnologia",203050101,"Equipo de Computo, Comunicacion y Multifuncionales",800,"Vicepresidencia de Operaciones",810,"Direccion de Tecnologia",716,"Arrendamiento Equipos Computo","Evento Ser Findeter (Alquiler de Equipos)","2021-06-01",19000000]
[null,"Financiera","D. Tesoreria",203030104,"Asesorias Financieras",300,"Vicepresidencia Financiera",315,"Direccion de Tesoreria",731,"Asesoria Financiera","Asesorías Financieras Requeridas","2021-06-01",50000000]
[null,"Operaciones","D. Operaciones",203030104,"Asesorias Financieras",800,"Vicepresidencia de Operaciones",820,"Direccion de Operaciones",731,"Asesoria Financiera","Asesoria Regimen Cambiario (Bolsa de 80 horas a $520.000 +Iva)","2021-06-01",38556000]
[null,"Operaciones","D. Tecnologia",204010108,"Compra de Software",800,"Vicepresidencia de Operaciones",810,"Direccion de Tecnologia",415,"Licenciamiento Autocad","Licencias Autocad para Servicios Generales","2021-06-01",1352936]
[null,"Operaciones","D. Tecnologia",203030105,"Otras Asesorias",800,"Vicepresidencia de Operaciones",810,"Direccion de Tecnologia",935,"Implementacion Proyectos Peti","Rpa (Automatización Robótica de Procesos)","2021-06-01",100000000]
[null,"Operaciones","D. Tecnologia",203050101,"Equipo de Computo, Comunicacion y Multifuncionales",800,"Vicepresidencia de Operaciones",810,"Direccion de Tecnologia",935,"Implementacion Proyectos Peti","Herramienta de Arquitectura Empresarial y TI","2021-06-01",50000000]
[null,"Operaciones","D. Tecnologia",204010108,"Compra de Software",800,"Vicepresidencia de Operaciones",810,"Direccion de Tecnologia",935,"Implementacion Proyectos Peti","Rpa (Automatizacion Robotica de Procesos)","2021-06-01",75000000]
[null,"S. General","J. Servicios G",203050711,"Otros Gastos de Oficina",200,"Secretaria General",245,"Jefatura de Servicios Generales",146,"Otros Gastos de Oficina Findeter General","Menaje para Funcionarios y Visitantes (Vajillas-Vasos)","2021-06-01",15000000]
[null,"S. General","J. Servicios G",203050307,"Mantenimiento de Edificios y Locales",200,"Secretaria General",245,"Jefatura de Servicios Generales",104,"Revision y Recarga de Extintores","Recarga de Extintores Calle 103 y 104","2021-07-01",1790716]
[null,"Operaciones","D. Contabilidad",203030105,"Otras Asesorias",800,"Vicepresidencia de Operaciones",860,"Direccion de Contabilidad",67,"Asesoria Tributaria Para Findeter","Asesoria Tributaria Integral y Permanente de Findeter","2021-07-01",62487693]
[null,"Planeacion","G. Planeacion",203030105,"Otras Asesorias",600,"Vicepresidencia de Planeacion",605,"Gerencia de Planeacion y Gestion",73,"Auditoria Seguimiento  Iso 9001 - Ntcp 1000","Auditoria de Renovación de la Certificación en las Normas Iso9001 e Iso 14001","2021-07-01",35000000]
[null,"S. General","J. Servicios G",203050307,"Mantenimiento de Edificios y Locales",200,"Secretaria General",245,"Jefatura de Servicios Generales",109,"Suministro Elementos Ferreteria","Suministro de elementos Ferrelectricos","2021-07-01",{"$f":"30000000","v":30000000}]
[null,"S. General","J. Talento H",203010602,"Capacitacion",100,"Presidencia",260,"Jefatura de Talento Humano",26,"Programa de Formacion Findeter","Congreso Panamericano de Lavado de Activos y Financiación del Terrorismo (Oficial de Cumplimiento Principal).","2021-07-01",3500000]
[null,"S. General","J. Talento H",203010602,"Capacitacion",100,"Presidencia",260,"Jefatura de Talento Humano",26,"Programa de Formacion Findeter","Congreso Panamericano de Lavado de Activos y Financiación del Terrorismo (Oficial de Cumplimiento Suplente).","2021-07-01",3500000]
[null,"S. General","J. Talento H",203010602,"Capacitacion",200,"Secretaria General",260,"Jefatura de Talento Humano",26,"Programa de Formacion Findeter","Temas Relacionados con Efr","2021-07-01",5000000]
[null,"S. General","J. Talento H",203010602,"Capacitacion",300,"Vicepresidencia Financiera",260,"Jefatura de Talento Humano",26,"Programa de Formacion Findeter","Capacitaciones Derivados","2021-07-01",6000000]
[null,"S. General","J. Talento H",203010602,"Capacitacion",300,"Vicepresidencia Financiera",260,"Jefatura de Talento Humano",26,"Programa de Formacion Findeter","Diplomado Gerencia de Proyectos","2021-07-01",20000000]
[null,"S. General","J. Talento H",203010602,"Capacitacion",400,"Vicepresidencia Comercial",260,"Jefatura de Talento Humano",26,"Programa de Formacion Findeter","Capacitación en Marketing Analitics","2021-07-01",4500000]
[null,"S. General","J. Talento H",203010602,"Capacitacion",400,"Vicepresidencia Comercial",260,"Jefatura de Talento Humano",26,"Programa de Formacion Findeter","Capacitación Fuerza Comercial Findeter Suma","2021-07-01",6000000]
[null,"S. General","J. Talento H",203010602,"Capacitacion",400,"Vicepresidencia Comercial",260,"Jefatura de Talento Humano",26,"Programa de Formacion Findeter","Maestria Sostenibilidad","2021-07-01",15000000]
[null,"S. General","J. Talento H",203010602,"Capacitacion",400,"Vicepresidencia Comercial",260,"Jefatura de Talento Humano",26,"Programa de Formacion Findeter","Curso Excel -Avanzado","2021-07-01",1000000]
[null,"S. General","J. Talento H",203010602,"Capacitacion",500,"Vicepresidencia Tecnica",260,"Jefatura de Talento Humano",26,"Programa de Formacion Findeter","Project Manager","2021-07-01",5000000]
[null,"S. General","J. Talento H",203010602,"Capacitacion",500,"Vicepresidencia Tecnica",260,"Jefatura de Talento Humano",26,"Programa de Formacion Findeter","Capítulos J y K Nsr-10 Seguridad Humana","2021-07-01",4500000]
[null,"S. General","J. Talento H",203010602,"Capacitacion",600,"Vicepresidencia de Planeacion",260,"Jefatura de Talento Humano",26,"Programa de Formacion Findeter","Aniif - Seminario","2021-07-01",3277260]
[null,"S. General","J. Talento H",203010602,"Capacitacion",600,"Vicepresidencia de Planeacion",260,"Jefatura de Talento Humano",26,"Programa de Formacion Findeter","Diplomado","2021-07-01",7210000]
[null,"S. General","J. Talento H",203010602,"Capacitacion",600,"Vicepresidencia de Planeacion",260,"Jefatura de Talento Humano",26,"Programa de Formacion Findeter","Curso Académico para Afianzar la Evaluación Financiera y Económica de Proyectos de Inversión que Complementaría en Conocimiento a los Profesionales a cargo de la TIr Social","2021-07-01",3550000]
[null,"S. General","J. Talento H",203010602,"Capacitacion",700,"Vicepresidencia de Credito y Riesgos",260,"Jefatura de Talento Humano",26,"Programa de Formacion Findeter","Diplomado Riesgos Financieros ","2021-07-01",4000000]
[null,"S. General","J. Talento H",203010602,"Capacitacion",700,"Vicepresidencia de Credito y Riesgos",260,"Jefatura de Talento Humano",26,"Programa de Formacion Findeter","Capacitación Continuidad del Negocio Grupos Críticos ","2021-07-01",14000000]
[null,"S. General","J. Talento H",203010602,"Capacitacion",700,"Vicepresidencia de Credito y Riesgos",260,"Jefatura de Talento Humano",26,"Programa de Formacion Findeter","Capacitaciones en Ciberseguridad y Ciberdefensa Escuela Superior de Guerra - Cumplimiento Requerimiento Furag","2021-07-01",17000000]
[null,"S. General","J. Talento H",203010602,"Capacitacion",800,"Vicepresidencia de Operaciones",260,"Jefatura de Talento Humano",26,"Programa de Formacion Findeter","Itil®4 Mp Crear, Entregar y Soportar - Cds + Voucher","2021-07-01",4998000]
[null,"S. General","J. Talento H",203010602,"Capacitacion",800,"Vicepresidencia de Operaciones",260,"Jefatura de Talento Humano",26,"Programa de Formacion Findeter","Itil®4 Mp Dirigir Planear y Mejorar - Dpi + Voucher","2021-07-01",4998000]
[null,"S. General","J. Talento H",203010602,"Capacitacion",800,"Vicepresidencia de Operaciones",260,"Jefatura de Talento Humano",26,"Programa de Formacion Findeter","Diplomado Tributaria","2021-07-01",3000000]
[null,"S. General","J. Talento H",203010602,"Capacitacion",800,"Vicepresidencia de Operaciones",260,"Jefatura de Talento Humano",26,"Programa de Formacion Findeter","Diplomado Finanzas para no Financieros - Universidad Javeriana - para 02 Personas","2021-07-01",2380000]
[null,"S. General","J. Servicios G",203050709,"Elementos de Aseo y Cafeteria",200,"Secretaria General",245,"Jefatura de Servicios Generales",44,"Elementos de Aseo y Cafeteria","Elementos de aseo y cafeteria","2021-07-01",154129846]
[null,"Planeacion","G. Planeacion",203020201,"Gastos de Viaje A Terceros Nacionales",600,"Vicepresidencia de Planeacion",605,"Gerencia de Planeacion y Gestion",73,"Auditoria Seguimiento  Iso 9001 - Ntcp 1000","Gastos de Viaje Auditoria de Renovacion de la Certificación","2021-07-01",8000000]
[null,"S. General","J. Servicios G",203050307,"Mantenimiento de Edificios y Locales",400,"Vicepresidencia Comercial",481,"Regional Pacifico",104,"Revision y Recarga de Extintores","Recarga Extintores Regional Pacifico","2021-07-01",171600]
[null,"S. General","J. Servicios G",203050307,"Mantenimiento de Edificios y Locales",400,"Vicepresidencia Comercial",483,"Zona Eje Cafetero",104,"Revision y Recarga de Extintores","Recarga Extintor Zon Eje Cafetero","2021-07-01",130000]
[null,"S. General","J. Servicios G",203050307,"Mantenimiento de Edificios y Locales",400,"Vicepresidencia Comercial",491,"Regional Noroccidental",104,"Revision y Recarga de Extintores","Recarga Extintores Regional Noroccidental","2021-07-01",171600]
[null,"S. General","J. Servicios G",203050307,"Mantenimiento de Edificios y Locales",400,"Vicepresidencia Comercial",492,"Regional Nororiental",104,"Revision y Recarga de Extintores","Recarga Extintores Regional Nororiental","2021-07-01",171600]
[null,"S. General","J. Servicios G",203050307,"Mantenimiento de Edificios y Locales",400,"Vicepresidencia Comercial",493,"Regional Caribe",104,"Revision y Recarga de Extintores","Recarga Extintores Regional Caribe","2021-07-01",691600]
[null,"S. General","J. Servicios G",203050307,"Mantenimiento de Edificios y Locales",500,"Vicepresidencia Tecnica",504,"Sanandres945",104,"Revision y Recarga de Extintores","Recarga Extintor San Andres","2021-07-01",312000]
[null,"S. General","J. Servicios G",203050307,"Mantenimiento de Edificios y Locales",400,"Vicepresidencia Comercial",482,"Regional Centro",111,"Mantenimiento Inmuebles","Mantenimiento equipos aire acondicionado Neiva","2021-07-01",52840]
[null,"Comercial","J. Mercadeo",203051002,"Promocion y Divulgacion",400,"Vicepresidencia Comercial",461,"Jefatura de Mercadeo",162,"Participacion Institucional y Comercial En Eventos","Participación Comercial en Eventos Externos (Congresos, Ferias, Foros, entre Otros)","2021-07-01",23000000]
[null,"S. General","J. Talento H",203010607,"Salud Ocupacional",200,"Secretaria General",260,"Jefatura de Talento Humano",180,"Salud Ocupacional","Examenes Medicos Ocupacionales Periodicos, Ingreso, Retiro, Post Incapacidad y otros que se Requieran.","2021-07-01",11346048]
[null,"Operaciones","D. Tecnologia",203050502,"Servicios de Vigilancia y Sistemas de Seguridad",800,"Vicepresidencia de Operaciones",810,"Direccion de Tecnologia",183,"Servicio Monitoreo de Alarmas","Control de Acceso a la Red Nac - Soporte y Mantenimiento.","2021-07-01",107126590]
[null,"Comercial","J. Mercadeo",203030105,"Otras Asesorias",400,"Vicepresidencia Comercial",461,"Jefatura de Mercadeo",642,"Otras Asesorias","Acciones Proyecto Servicio al Cliente","2021-07-01",20000000]
[null,"Comercial","J. Mercadeo",203030105,"Otras Asesorias",400,"Vicepresidencia Comercial",461,"Jefatura de Mercadeo",642,"Otras Asesorias","Actulaización  Base de datos Estrategias de Promoción","2021-07-01",20000000]
[null,"Planeacion","G. Planeacion",203030105,"Otras Asesorias",600,"Vicepresidencia de Planeacion",605,"Gerencia de Planeacion y Gestion",642,"Otras Asesorias","Proyecto de Modernización de Procesos","2021-07-01",15000000]
[null,"Operaciones","D. Tecnologia",204010106,"Compra de Hardware y Comunicaciones",800,"Vicepresidencia de Operaciones",810,"Direccion de Tecnologia",194,"Adquisicion de Una Solucion de Video Conferencia","Proyecto: Sistema de video Conferencia. ","2021-07-01",58000000]
[null,"Operaciones","D. Tecnologia",203030105,"Otras Asesorias",800,"Vicepresidencia de Operaciones",810,"Direccion de Tecnologia",935,"Implementacion Proyectos Peti","Proyecto Gobierno de datos (Modelo Gestion y Gobierno)","2021-07-01",219180000]
[null,"S. General","J. Talento H",203030105,"Otras Asesorias",200,"Secretaria General",260,"Jefatura de Talento Humano",76,"Mediciones de Clima Cultura Cazatalentos entre Otras","Contratación Auditoría de Seguimiento Efr.","2021-08-01",7000000]
[null,"S. General","J. Servicios G",203050102,"Locales, Oficinas, Parqueaderos y Otros",500,"Vicepresidencia Tecnica",500,"Vicepresidencia Tecnica",6,"Arredamiento Inmuebles","Arrendandamiento Piso 6 Ii Calle 104","2021-08-01",168555337]
[null,"S. General","J. Talento H",203010602,"Capacitacion",200,"Secretaria General",260,"Jefatura de Talento Humano",26,"Programa de Formacion Findeter","Capacitaciones en temas Asociados a Contratación y demás Funciones de la Dirección","2021-08-01",5000000]
[null,"S. General","J. Talento H",203010602,"Capacitacion",300,"Vicepresidencia Financiera",260,"Jefatura de Talento Humano",26,"Programa de Formacion Findeter","Convención Bancaria Asobancaria","2021-08-01",7800000]
[null,"S. General","J. Talento H",203010602,"Capacitacion",600,"Vicepresidencia de Planeacion",260,"Jefatura de Talento Humano",26,"Programa de Formacion Findeter","Seminario Asobancaria-Mercado de Capitales","2021-08-01",1820700]
[null,"S. General","J. Talento H",203010602,"Capacitacion",600,"Vicepresidencia de Planeacion",260,"Jefatura de Talento Humano",26,"Programa de Formacion Findeter","Diplomado","2021-08-01",1828250]
[null,"S. General","J. Talento H",203010602,"Capacitacion",600,"Vicepresidencia de Planeacion",260,"Jefatura de Talento Humano",26,"Programa de Formacion Findeter","Capacitar Profesionales del área en temas de Modelaje Financiero","2021-08-01",10000000]
[null,"S. General","J. Talento H",203010602,"Capacitacion",600,"Vicepresidencia de Planeacion",260,"Jefatura de Talento Humano",26,"Programa de Formacion Findeter","Diplomado","2021-08-01",10174814]
[null,"S. General","J. Talento H",203010602,"Capacitacion",700,"Vicepresidencia de Credito y Riesgos",260,"Jefatura de Talento Humano",26,"Programa de Formacion Findeter","Diplomado de Finanzas Básicas para Abogados","2021-08-01",3660000]
[null,"S. General","J. Talento H",203010602,"Capacitacion",700,"Vicepresidencia de Credito y Riesgos",260,"Jefatura de Talento Humano",26,"Programa de Formacion Findeter","Compromiso Recursos no Reembolsables de Kfw. Diplomado Finanzas Verdes - Pontificia Universidad Javeriana en Conjunto con Green Banking Academy – Gbac, Ifc y Asobancaria","2021-08-01",4100000]
[null,"S. General","J. Talento H",203010602,"Capacitacion",700,"Vicepresidencia de Credito y Riesgos",260,"Jefatura de Talento Humano",26,"Programa de Formacion Findeter","Congreso de Prevención del Fraude y Seguridad Asobancaria","2021-08-01",6000000]
[null,"S. General","J. Talento H",203010602,"Capacitacion",800,"Vicepresidencia de Operaciones",260,"Jefatura de Talento Humano",26,"Programa de Formacion Findeter","Diplomado de Costos y Presupuestos","2021-08-01",3500000]
[null,"S. General","J. Talento H",203010602,"Capacitacion",800,"Vicepresidencia de Operaciones",260,"Jefatura de Talento Humano",26,"Programa de Formacion Findeter","Diplomado en TI, Finanzas","2021-08-01",4500000]
[null,"S. General","J. Talento H",203010602,"Capacitacion",800,"Vicepresidencia de Operaciones",260,"Jefatura de Talento Humano",26,"Programa de Formacion Findeter","Curso de Certificación Adminsitración de Servidores Microsoft","2021-08-01",9600000]
[null,"S. General","J. Talento H",203010602,"Capacitacion",800,"Vicepresidencia de Operaciones",260,"Jefatura de Talento Humano",26,"Programa de Formacion Findeter","Curso de Certificación en Seguridad y Ciberseguridad ","2021-08-01",18000000]
[null,"S. General","J. Talento H",203010602,"Capacitacion",800,"Vicepresidencia de Operaciones",260,"Jefatura de Talento Humano",26,"Programa de Formacion Findeter","Diplomado en Normas Internacionales Actualizacion","2021-08-01",10000000]
[null,"S. General","J. Servicios G",203050307,"Mantenimiento de Edificios y Locales",200,"Secretaria General",245,"Jefatura de Servicios Generales",111,"Mantenimiento Inmuebles","Mantenimiento equipos aire acondicionado Bogota","2021-08-01",6990788]
[null,"S. General","J. Servicios G",203050307,"Mantenimiento de Edificios y Locales",200,"Secretaria General",245,"Jefatura de Servicios Generales",427,"Mantenimiento de Cortinas","Mantenimiento de Cortinas Sede 103 y 104 Findeter","2021-08-01",13545376]
[null,"S. General","J. Servicios G",203050307,"Mantenimiento de Edificios y Locales",500,"Vicepresidencia Tecnica",504,"Sanandres945",111,"Mantenimiento Inmuebles","Mantenimiento equipos aire acondicionado San Andres","2021-08-01",80333]
[null,"Comercial","J. Mercadeo",203051002,"Promocion y Divulgacion",400,"Vicepresidencia Comercial",461,"Jefatura de Mercadeo",162,"Participacion Institucional y Comercial En Eventos","Participación Comercial en Eventos Externos (Congresos, Ferias, Foros, entre Otros)","2021-08-01",89700000]
[null,"S. General","J. Servicios G",203050501,"Servicio de Aseo y Cafeteria",200,"Secretaria General",245,"Jefatura de Servicios Generales",187,"Servicio de Aseo. Cafeteria y Mantenimiento","Servicio de Instalación Mantenimiento, Desinfección Desincrustación, y Aromatización de Todos los Baños de Finedter en sus Sedes de la Calle 103 y 104","2021-08-01",505750]
[null,"Comercial","VP Comercial",203050705,"Libros, Periodicos y Suscripciones",400,"Vicepresidencia Comercial",400,"Vicepresidencia Comercial",290,"Suscripcion Consulta Informacion Comercial En Linea","Servicio de Consulta de Información Comercial en Línea con el Fin de Obtener datos Estadísticos, Potencialidad de Clientes, y Análisis Sectorial del Mercado Colombiano de Interés para Findeter, que Sirva de Insumo para las Estrategias y en la Toma de Decisiones para el área Comercial. Isi Emerging Markets Colombia Sas","2021-08-01",17517454]
[null,"Comercial","G. Acción Social",203051008,"Promocion Aporte Ley Deporte",400,"Vicepresidencia Comercial",462,"Grupo de Accion Social",176,"Inversion Ley Deporte","Promoción y Patrocinio Ley del Deporte","2021-08-01",18000000]
[null,"Riesgos","Coordinacion de Riesgos No Financieros",203030105,"Otras Asesorias",700,"Vicepresidencia de Credito y Riesgos",702,"Coordinacion de Riesgos No Financieros",642,"Otras Asesorias","Certificación Iso 27001. Alcance: Cadena de Valor Producto de Redescuento y Crédito Primer Piso","2021-08-01",40000000]
[null,"Operaciones","C. Credito",203030105,"Otras Asesorias",800,"Vicepresidencia de Operaciones",870,"Coordinacion de Credito",642,"Otras Asesorias","Realizar la Evaluacion Ambiental y Social y Emitir el Respectivo Concepto, a los Proyectos que Vaya a Financiar Findeter","2021-08-01",15000000]
[null,"Operaciones","C. Credito",203020201,"Gastos de Viaje A Terceros Nacionales",800,"Vicepresidencia de Operaciones",870,"Coordinacion de Credito",642,"Otras Asesorias","Gastos de Viaje para Realizar la Evaluacion Ambiental y Social y Emitir el Respectivo Concepto, a los Proyectos que Vaya a Financiar Findeter","2021-08-01",10000000]
[null,"S. General","J. Servicios G",203050307,"Mantenimiento de Edificios y Locales",200,"Secretaria General",245,"Jefatura de Servicios Generales",947,"Control de Plagas y Roedores","Mantenimiento de Estacion de Cebado para Control de Plagas y Rodeedores","2021-08-01",21420]
[null,"Operaciones","D. Operaciones",203030105,"Otras Asesorias",800,"Vicepresidencia de Operaciones",820,"Direccion de Operaciones",642,"Otras Asesorias","Servicio Revisoría Fiscal Fideicomiso 300 57 Bdu","2021-08-01",4000000]
[null,"Planeacion","D. Estudios",203050705,"Libros, Periodicos y Suscripciones",600,"Vicepresidencia de Planeacion",640,"Direccion de Estudios Economicos",290,"Suscripcion Consulta Informacion Comercial En Linea","The Economist. Suscripcion Digital Concurrente por un Año. 51 Ediciones y Acceso a los Articulos Digitales de la Revista. Us$200","2021-08-01",782200]
[null,"Presidencia","O. Control I",203030105,"Otras Asesorias",100,"Presidencia",125,"Jefatura Oficina Control Interno",65,"Tercerizacion Oficina de Control Interno Evaluacion y Seguim","Apoyar el Rol de Fortalecimiento al Control Interno y Autocontrol. Esta Necesidad Depende de la Solicitud del Comité de Auditoria de Junta Directiva, en Alguna Eventualidad que se de. o por Requerimiento de Actividades para Fortalecer el Control Interno Dado por el Dafp.","2021-09-01",35000000]
[null,"S. General","J. Talento H",203030105,"Otras Asesorias",200,"Secretaria General",260,"Jefatura de Talento Humano",76,"Mediciones de Clima Cultura Cazatalentos entre Otras","Contratación Administración Herramienta de Gestión del Desarrollo y Aplicación de las Evaluaciones, Informes y Retroalimentación (Kpis, Evaluación 360).","2021-09-01",34197462]
[null,"S. General","J. Talento H",203030105,"Otras Asesorias",200,"Secretaria General",260,"Jefatura de Talento Humano",76,"Mediciones de Clima Cultura Cazatalentos entre Otras","Contratación Medición de Clima Organizacional.","2021-09-01",82000000]
[null,"S. General","J. Talento H",203010602,"Capacitacion",600,"Vicepresidencia de Planeacion",260,"Jefatura de Talento Humano",26,"Programa de Formacion Findeter","Diplomado","2021-09-01",6592000]
[null,"S. General","J. Talento H",203010602,"Capacitacion",600,"Vicepresidencia de Planeacion",260,"Jefatura de Talento Humano",26,"Programa de Formacion Findeter","Curso Aspectos de Negocios Fiduciarios","2021-09-01",4545170]
[null,"S. General","J. Talento H",203010602,"Capacitacion",700,"Vicepresidencia de Credito y Riesgos",260,"Jefatura de Talento Humano",26,"Programa de Formacion Findeter","Curso en Gestión de Riesgos","2021-09-01",5000000]
[null,"S. General","J. Talento H",203010602,"Capacitacion",700,"Vicepresidencia de Credito y Riesgos",260,"Jefatura de Talento Humano",26,"Programa de Formacion Findeter","Congreso Alide Riesgo Operacional ","2021-09-01",4400000]
[null,"S. General","J. Talento H",203010602,"Capacitacion",800,"Vicepresidencia de Operaciones",260,"Jefatura de Talento Humano",26,"Programa de Formacion Findeter","Diplomado Iso27001 en Seguridad","2021-09-01",7800000]
[null,"S. General","J. Talento H",203010602,"Capacitacion",800,"Vicepresidencia de Operaciones",260,"Jefatura de Talento Humano",26,"Programa de Formacion Findeter","Actualizacion en Norma Internacional  Niif  Nic","2021-09-01",15000000]
[null,"Comercial","J. Mercadeo",203051001,"Publicidad",400,"Vicepresidencia Comercial",461,"Jefatura de Mercadeo",171,"Publicacion Avisos y Pautas Publicitarias","Publicación Aviso Prensa y Revistas","2021-09-01",8193150]
[null,"Comercial","J. Mercadeo",203051002,"Promocion y Divulgacion",400,"Vicepresidencia Comercial",461,"Jefatura de Mercadeo",162,"Participacion Institucional y Comercial En Eventos","Participación Comercial en Eventos Externos (Congresos, Ferias, Foros, entre otros)","2021-09-01",15000000]
[null,"Comercial","J. Mercadeo",203051002,"Promocion y Divulgacion",400,"Vicepresidencia Comercial",461,"Jefatura de Mercadeo",168,"Servicio y Atencion de Reuniones. Eventos Comerciales E Inst","Contratación de Servicios de Catering para Atender Reuniones a Domicilio o en los Lugares Contratados (Ej: Hoteles a Nivel Nal., Club de Banqueros, entre otros)","2021-09-01",35000000]
[null,"S. General","J. Servicios G",203050502,"Servicios de Vigilancia y Sistemas de Seguridad",400,"Vicepresidencia Comercial",492,"Regional Nororiental",183,"Servicio Monitoreo de Alarmas","Servicio de Monitoreo de Alarma Bucaramanga de acuerdo a las Disposiciones de Riesgos","2021-09-01",15360]
[null,"S. General","J. Servicios G",203050502,"Servicios de Vigilancia y Sistemas de Seguridad",400,"Vicepresidencia Comercial",493,"Regional Caribe",183,"Servicio Monitoreo de Alarmas","Servicio de Monitoreo de Alarma Barranquilla de acuerdo a las Disposiciones de Riesgos","2021-09-01",15360]
[null,"Comercial","G. Comunicaciones",203050705,"Libros, Periodicos y Suscripciones",400,"Vicepresidencia Comercial",460,"Gerencia de Comunicaciones, Mercadeo y Responsabilidad Socia",290,"Suscripcion Consulta Informacion Comercial En Linea","Suscripción Valora","2021-09-01",3677100]
[null,"Riesgos","Coordinacion de Riesgos No Financieros",203030105,"Otras Asesorias",700,"Vicepresidencia de Credito y Riesgos",702,"Coordinacion de Riesgos No Financieros",642,"Otras Asesorias","Implementación Modelo Gobierno, Riesgo y Cumplimiento - Grc","2021-09-01",{"$f":"45000000-5000000","v":40000000}]
[null,"Financiera","G. Banca Inv.",203070101,"Estructuracion de Proyectos",300,"Vicepresidencia Financiera",355,"Gerencia de Banca de Inversion",934,"Asesoria Estructuracion Proyectos","Consultoría Hospitales Art","2021-09-01",712500000]
[null,"Operaciones","D. Tecnologia",204010108,"Compra de Software",800,"Vicepresidencia de Operaciones",810,"Direccion de Tecnologia",415,"Licenciamiento Autocad","Licencias Autocad para la Gerencia de Agua y Gerencia de Infraestructura, Simular Diferentes Escenarios en los Planos. ","2021-09-01",11504499]
[null,"Operaciones","D. Tecnologia",204010108,"Compra de Software",100,"Presidencia",130,"Oficial de Cumplimiento",718,"Suministro Software Findeter","Renovación Herramienta \"Compliance\", para Cruce en Listas Restrictivas.","2021-09-01",25000000]
[null,"Operaciones","D. Tecnologia",204010108,"Compra de Software",700,"Vicepresidencia de Credito y Riesgos",701,"Coordinacion de Riesgos Financieros",718,"Suministro Software Findeter","Análisis y Cálculos Técnicos de Riesgos Financieros. Risk Simulator y Stata: Actualización de Licencias ","2021-09-01",18851460]
[null,"S. General","J. Servicios G",203050102,"Locales, Oficinas, Parqueaderos y Otros",500,"Vicepresidencia Tecnica",504,"Sanandres945",6,"Arredamiento Inmuebles","Arrendamiento San Andres","2021-10-01",12290493]
[null,"S. General","J. Talento H",203010602,"Capacitacion",100,"Presidencia",260,"Jefatura de Talento Humano",26,"Programa de Formacion Findeter","Curso Actualización Metodologías Sarlaft (Oficial de Cumplimiento Suplente).","2021-10-01",4500000]
[null,"S. General","J. Talento H",203010602,"Capacitacion",200,"Secretaria General",260,"Jefatura de Talento Humano",26,"Programa de Formacion Findeter","Se Requiere la capacitación para Todos los Abogados de la Dirección Jurídica, Dirección de Contratación, Contratación Derivada y Secretaría General en Operaciones Fiancieras","2021-10-01",20000000]
[null,"S. General","J. Talento H",203010602,"Capacitacion",300,"Vicepresidencia Financiera",260,"Jefatura de Talento Humano",26,"Programa de Formacion Findeter","Certificaciones ante la Amv","2021-10-01",1500000]
[null,"S. General","J. Talento H",203010602,"Capacitacion",700,"Vicepresidencia de Credito y Riesgos",260,"Jefatura de Talento Humano",26,"Programa de Formacion Findeter","Capacitacion anual Saro (Circular Básica y Contable de Saro)","2021-10-01",46000000]
[null,"S. General","J. Talento H",203010602,"Capacitacion",800,"Vicepresidencia de Operaciones",260,"Jefatura de Talento Humano",26,"Programa de Formacion Findeter","Curso Operación Bursatil, Asobursatil","2021-10-01",2000000]
[null,"Planeacion","G. Planeacion",203030105,"Otras Asesorias",600,"Vicepresidencia de Planeacion",605,"Gerencia de Planeacion y Gestion",149,"Medicion Huella de Carbono","Compensación Huella de Carbono 2020","2021-10-01",35448480]
[null,"S. General","J. Servicios G",203050307,"Mantenimiento de Edificios y Locales",400,"Vicepresidencia Comercial",481,"Regional Pacifico",111,"Mantenimiento Inmuebles","Mantenimiento equipos aire acondicionado Cali","2021-10-01",1378454]
[null,"Operaciones","D. Tecnologia",203050906,"Servicio de Conectividad",700,"Vicepresidencia de Credito y Riesgos",702,"Coordinacion de Riesgos No Financieros",181,"Conectividad Tercerizacion","Centro Alterno de Operaciones-Cao con la Conexión de Sebra, Deceval, Superfinanciera.","2021-10-01",7996700]
[null,"S. General","J. Servicios G",203020103,"Pasajes y Transporte Aereos",200,"Secretaria General",245,"Jefatura de Servicios Generales",148,"Pasajes Findeter General","Compra de Pasajes Aereos","2021-10-01",200000000]
[null,"Comercial","J. Mercadeo",203051001,"Publicidad",400,"Vicepresidencia Comercial",461,"Jefatura de Mercadeo",171,"Publicacion Avisos y Pautas Publicitarias","Publicación Marketing Digital ","2021-10-01",30000000]
[null,"Comercial","J. Mercadeo",203051002,"Promocion y Divulgacion",400,"Vicepresidencia Comercial",461,"Jefatura de Mercadeo",162,"Participacion Institucional y Comercial En Eventos","Participación Comercial en Eventos Externos (Congresos, Ferias, Foros, entre Otros)","2021-10-01",35000000]
[null,"S. General","J. Servicios G",203050502,"Servicios de Vigilancia y Sistemas de Seguridad",500,"Vicepresidencia Tecnica",504,"Sanandres945",183,"Servicio Monitoreo de Alarmas","Servicio de Monitoreo de Alarma San Andrés de acuerdo a las Disposiciones de Riesgos","2021-10-01",104000]
[null,"Comercial","J. Mercadeo",203030105,"Otras Asesorias",400,"Vicepresidencia Comercial",461,"Jefatura de Mercadeo",642,"Otras Asesorias","Relacionamiento con Intermediarios Financieros y Clientes (Conferencias)","2021-10-01",50000000]
[null,"S. General","J. Servicios G",203050701,"Fotocopias",500,"Vicepresidencia Tecnica",500,"Vicepresidencia Tecnica",765,"Fotocopias","Fotocopiado e Impresión a Gran Formato, Escaner, Fotoplanos, Anillado y Empastado.","2021-10-01",2000000]
[null,"Operaciones","D. Tecnologia",203030105,"Otras Asesorias",800,"Vicepresidencia de Operaciones",810,"Direccion de Tecnologia",935,"Implementacion Proyectos Peti","Proyecto Oficina Virtual (A un Click)","2021-10-01",100000000]
[null,"Operaciones","D. Tecnologia",203050310,"Mantenimiento de Software",800,"Vicepresidencia de Operaciones",810,"Direccion de Tecnologia",935,"Implementacion Proyectos Peti","Proyecto Analítica de Datos","2021-10-01",{"$f":"20000000","v":20000000}]
[null,"Operaciones","D. Tecnologia",203050310,"Mantenimiento de Software",800,"Vicepresidencia de Operaciones",810,"Direccion de Tecnologia",935,"Implementacion Proyectos Peti","Proyecto Oficina Virtual (A un Click)","2021-10-01",50000000]
[null,"Operaciones","D. Tecnologia",204010108,"Compra de Software",800,"Vicepresidencia de Operaciones",810,"Direccion de Tecnologia",935,"Implementacion Proyectos Peti","Proyecto Oficina Virtual (A un Click)","2021-10-01",50000000]
[null,"Operaciones","D. Tecnologia",204010108,"Compra de Software",800,"Vicepresidencia de Operaciones",810,"Direccion de Tecnologia",935,"Implementacion Proyectos Peti","Proyecto Analítica de Datos","2021-10-01",64000000]
[null,"Riesgos","Coordinacion de Riesgos Financieros",203030105,"Otras Asesorias",700,"Vicepresidencia de Credito y Riesgos",701,"Coordinacion de Riesgos Financieros",930,"Entrenamiento Especializado Software","Asesoría Y/O Entrenamiento Especializado en Gestión de Riesgos con Énfasis en el Software Técnico de Análisis de Riesgos ( Stata, Risk Simulator)","2021-10-01",24166085]
[null,"Comercial","J. Mercadeo",203051002,"Promocion y Divulgacion",400,"Vicepresidencia Comercial",461,"Jefatura de Mercadeo",165,"Elaboracion de Piezas de Imagen Promocional","Material Informativo Digital o Impreso (Brochures, Comercial,Tarjetas Presentacion)","2021-10-01",30000000]
[null,"Operaciones","D. Tecnologia",203050310,"Mantenimiento de Software",800,"Vicepresidencia de Operaciones",810,"Direccion de Tecnologia",937,"Licenciamiento, Soporte y Mantenimiento Argis","Arcgis Soporte - Sistema de Información Geográfica.","2021-11-01",67980000]
[null,"S. General","J. Servicios G",203050307,"Mantenimiento de Edificios y Locales",200,"Secretaria General",245,"Jefatura de Servicios Generales",102,"Mantenimiento Preventivo y Correctivo Planta Electrica","Mantenimiento Planta Electrica Cummins","2021-11-01",749167]
[null,"S. General","J. Servicios G",203050102,"Locales, Oficinas, Parqueaderos y Otros",500,"Vicepresidencia Tecnica",500,"Vicepresidencia Tecnica",6,"Arredamiento Inmuebles","Arrendandamiento Piso 3 Calle 104","2021-11-01",25706045]
[null,"S. General","J. Servicios G",203050102,"Locales, Oficinas, Parqueaderos y Otros",500,"Vicepresidencia Tecnica",500,"Vicepresidencia Tecnica",6,"Arredamiento Inmuebles","Arrendamiento Providencia San Andres","2021-01-01",21000000]
[null,"S. General","J. Talento H",203010604,"Bienestar Social",200,"Secretaria General",260,"Jefatura de Talento Humano",25,"Bienestar Social","Contratación para el Desarrollo de Actividades del Programa Calidad de Vida, Bienestar y Modelo Efr Dirigidas a los Colaboradores de Findeter Relacionadas con Recreación, Deporte, Cultura, Mercadeo Social, Salud, Eventos Sociales, Escenarios e Instalaciones Adecuadas, entre otras.\n","2021-11-01",60000000]
[null,"S. General","J. Talento H",203010602,"Capacitacion",300,"Vicepresidencia Financiera",260,"Jefatura de Talento Humano",26,"Programa de Formacion Findeter","Congreso Cci","2021-11-01",3224000]
[null,"S. General","J. Talento H",203010602,"Capacitacion",500,"Vicepresidencia Tecnica",260,"Jefatura de Talento Humano",26,"Programa de Formacion Findeter","Nuevas Tecnologías en el Sector de Agua y Saneamiento Basico","2021-11-01",3000000]
[null,"S. General","J. Talento H",203010602,"Capacitacion",600,"Vicepresidencia de Planeacion",260,"Jefatura de Talento Humano",26,"Programa de Formacion Findeter","Fedesarrollo Participación Seminario Bancas de Desarrollo","2021-11-01",3277260]
[null,"S. General","J. Talento H",203010602,"Capacitacion",700,"Vicepresidencia de Credito y Riesgos",260,"Jefatura de Talento Humano",26,"Programa de Formacion Findeter","Congreso Asobancaria","2021-11-01",3000000]
[null,"S. General","J. Talento H",203010602,"Capacitacion",700,"Vicepresidencia de Credito y Riesgos",260,"Jefatura de Talento Humano",26,"Programa de Formacion Findeter","Congreso Asobancaria","2021-11-01",3000000]
[null,"S. General","J. Talento H",203010602,"Capacitacion",700,"Vicepresidencia de Credito y Riesgos",260,"Jefatura de Talento Humano",26,"Programa de Formacion Findeter","Congreso Asobancaria","2021-11-01",3000000]
[null,"Operaciones","D. Tecnologia",203050711,"Otros Gastos de Oficina",800,"Vicepresidencia de Operaciones",810,"Direccion de Tecnologia",145,"Firmas Digitales Certicamara Tecnologia","Certificados Portales Web de Findeter.","2021-11-01",3500000]
[null,"S. General","D. Juridica",203030103,"Asesorias Juridicas",200,"Secretaria General",210,"Direccion Juridica",58,"Contratacion de Abogados y Otros Servicios de Carácter Legal","Actualizacion del Normograma de Findeter de acuerdo a las Disposiciones Legales Vigentes - Avance Juridico","2021-11-01",12000000]
[null,"Operaciones","D. Tecnologia",203050906,"Servicio de Conectividad",800,"Vicepresidencia de Operaciones",810,"Direccion de Tecnologia",749,"Señal En Vivo Eventos Streaming","Evento Ser Findeter (Streraming para Eventos de Ser Findeter)","2021-11-01",2000000]
[null,"Comercial","J. Mercadeo",203051001,"Publicidad",400,"Vicepresidencia Comercial",461,"Jefatura de Mercadeo",171,"Publicacion Avisos y Pautas Publicitarias","Publicación Aviso Prensa y Revistas","2021-11-01",8193150]
[null,"Operaciones","D. Tecnologia",203050101,"Equipo de Computo, Comunicacion y Multifuncionales",800,"Vicepresidencia de Operaciones",810,"Direccion de Tecnologia",716,"Arrendamiento Equipos Computo","Evento Ser Findeter (Alquiler de Equipos)","2021-11-01",19000000]
[null,"S. General","J. Servicios G",203050307,"Mantenimiento de Edificios y Locales",200,"Secretaria General",245,"Jefatura de Servicios Generales",734,"Mantenimiento Edificio","Servicio de Mantenimiento del Edificio que Requiera Pago a un externo y que el Personal de Mantenimiento no Pueda Atender, Tales como Arreglo del Piso, Puerta Parqueadero, Cieloraso y Demas","2021-11-01",15221780]
[null,"Operaciones","D. Tecnologia",204010108,"Compra de Software",800,"Vicepresidencia de Operaciones",810,"Direccion de Tecnologia",38,"Licenciamiento Microsoft","Licenciamiento Software Ax, Crm, Servidores y Ofimática. Licenciamiento de Microsoft. ","2021-11-01",21836012]
[null,"Planeacion","D. Estudios",203050705,"Libros, Periodicos y Suscripciones",600,"Vicepresidencia de Planeacion",640,"Direccion de Estudios Economicos",290,"Suscripcion Consulta Informacion Comercial En Linea","Fedesarrollo. 4 Informe Trimestral de Prospectiva, Seminarios de Coyuntura, Tendencia Economia y Asesoria.","2021-11-01",3687810]
[null,"Operaciones","D. Contabilidad",203050101,"Equipo de Computo, Comunicacion y Multifuncionales",800,"Vicepresidencia de Operaciones",860,"Direccion de Contabilidad",943,"Facturacion Electronica","Facturacion Electronica Findeter","2021-12-01",{"$f":"2992195+2218136","v":5210331}]
[null,"Operaciones","D. Tecnologia",203050310,"Mantenimiento de Software",800,"Vicepresidencia de Operaciones",810,"Direccion de Tecnologia",117,"Soporte. Mantenimiento y Actualizacion Alfyn y Proformas","Alfyn - Soporte y Mantenimiento Portafolio de Inversiones de Renta Fija y Cuentas Bancarias ","2021-12-01",4624604]
[null,"Operaciones","D. Tecnologia",203050310,"Mantenimiento de Software",800,"Vicepresidencia de Operaciones",810,"Direccion de Tecnologia",118,"Soporte. Mantenimiento y Actualizacion Finac","Finac: (Soporte, Mantenimiento y Desarrollos) Sistema de Riesgo de Mercado y Liquidez ","2021-12-01",4852767]
[null,"S. General","J. Servicios G",203050102,"Locales, Oficinas, Parqueaderos y Otros",200,"Secretaria General",245,"Jefatura de Servicios Generales",6,"Arredamiento Inmuebles","Contingencia de Arrendamientos de Oficinas","2021-12-01",{"$f":"227796429-21000000-12784308","v":194012121}]
[null,"S. General","J. Talento H",203010602,"Capacitacion",300,"Vicepresidencia Financiera",260,"Jefatura de Talento Humano",26,"Programa de Formacion Findeter","Certificaciones ante la Amv","2021-12-01",1200000]
[null,"S. General","J. Talento H",203010602,"Capacitacion",500,"Vicepresidencia Tecnica",260,"Jefatura de Talento Humano",26,"Programa de Formacion Findeter","Normatividad Aplicable: Hfpa 10, 14, 20 y 72 Sistemas de Extinción y Detección Contra Incendios, Ntc 4595, Ntc 6199 y Gipi, Ntc 1500 Código de Fontanería, Ntc 2674 Cocinas y Preparación de Alimentos, y Ntc 2050 Subestaciones Eléctricas","2021-12-01",5000000]
[null,"S. General","J. Talento H",203010602,"Capacitacion",800,"Vicepresidencia de Operaciones",260,"Jefatura de Talento Humano",26,"Programa de Formacion Findeter","Especializacion Tributaria","2021-12-01",8000000]
[null,"S. General","D. Juridica",203050603,"Otros Gastos Juridicos",200,"Secretaria General",210,"Direccion Juridica",58,"Contratacion de Abogados y Otros Servicios de Carácter Legal","Contratar los Servicios Profesionales de Peritazgos Técnicos Financieros, para la Emisión de un Dictámen Pericial y Contradictamen Pericial, Si a Ello Hay Lugar, dentro de Uno de los procesos Judiciale","2021-12-01",20848800]
[null,"Operaciones","V. Operaciones",203030102,"Revisoria Fiscal",70,"Revisoria Fiscal",70,"Revisoria Fiscal",179,"Revisoria Fiscal","Revisoria Fiscal","2021-12-01",41600000]
[null,"Financiera","G. Banca Inv.",203070101,"Estructuracion de Proyectos",300,"Vicepresidencia Financiera",355,"Gerencia de Banca de Inversion",934,"Asesoria Estructuracion Proyectos","Consultoría Hospitales Art","2021-12-01",712500000]
[null,null,null,null,null,null,null,null,null,null,null,null,"TOTAL",{"$f":"SUM(N14:N530)","v":89773973086}]

{"sheet":"PETH","index":4,"n_rows":13,"n_cols":3,"rows_kept":13,"cut":false,"hidden":false,"merged":[[12,1,15,8],[3,2,9,7]]}
[]
[]
[]
[null,null,"PLAN ESTRATÉGICO DE TALENTO HUMANO\nFINDETER 2021"]
[]
[]
[]
[]
[]
[]
[]
[]
[null,"Conforme lo establecido en la  \"Guía de gestión estratégica del talento humano GETH\" del Departamento Administrativo de la Función Pública, el diseño de la Planeación Estratégica del Talento Humano contempla entre otros, el Plan Anual de Vacantes, El Plan de Previsión de Recursos Humanos, El Plan Institucional de Capacitación, el Plan de Bienestar e Incentivos, el Plan de Seguridad y Salud en el Trabajo. A continuación haga clic sobre el Plan que desee consultar en detalle:"]

{"sheet":"Plan de Previsión de RRHH","index":5,"n_rows":4,"n_cols":8,"rows_kept":4,"cut":false,"hidden":false,"merged":[[3,7,7,16]]}
[]
[]
[]
[null,null,null,null,null,null,null,"          PLAN DE PREVISION DE RECURSOS \n          HUMANOS Y PLAN DE VACANTES\nFINDETER 2021"]

{"sheet":"PSST","index":6,"n_rows":406,"n_cols":13,"rows_kept":406,"cut":false,"hidden":false,"merged":[[3,4,6,6],[270,4,283,4],[237,1,283,1],[237,2,283,2],[237,3,248,3],[237,4,248,4],[249,3,251,3],[249,4,251,4],[253,3,254,3],[253,4,254,4],[255,3,259,3],[255,4,259,4],[260,3,265,3],[260,4,265,4],[266,3,269,3],[266,4,269,4],[270,3,283,3],[234,6,236,6],[234,7,236,7],[234,8,236,8],[234,9,236,9],[234,1,236,1],[234,2,236,2],[234,3,236,3],[234,4,236,4],[234,5,236,5],[10,1,53,1],[10,3,20,3],[10,4,53,4],[21,3,23,3],[26,3,29,3],[30,3,34,3],[35,3,38,3],[39,3,53,3]]}
[]
[]
[]
[null,null,null,null,"PLAN DE TRABAJO ANUAL EN SEGURIDAD Y SALUD EN EL TRABAJO - PSST\nFINDETER 2021"]
[]
[]
[]
[]
[]
[null,"Dependencia","Nombre de la tarea","Descripción ","Política de Gestión y Desempeño","Responsable de tarea ","Fecha Inicio","Fecha Fin","Fuente de Financiación ","Indicador (Si Aplica)","Fórmula","Meta 2021","Observaciones"]
[null,"Jefatura de Talento Humano","Revisar Política SST","Implementación, mantenimiento y mejoramiento del Sistema de Gestión en Seguridad y Salud en el Trabajo","Talento Humano","Profesional SST",44228,44253,"Findeter"]
[null,null,"Revisar Objetivos SST",null,null,"Profesional SST",44228,44253,"Findeter"]
[null,null,"Elaborar Rendición de cuentas del desarrollo del SG-SST",null,null,"Profesional SST",44256,44286,"Findeter"]
[null,null,"Actualizar matriz legal en SST",null,null,"Profesional SST",44291,44316,"Findeter"]
[null,null,"Establecer procedimiento de SST en contratación",null,null,"Profesional SST",44319,44347,"Findeter"]
[null,null,"Establecer criterios en SST para evaluación y selección de proveedores y contratistas",null,null,"Profesional SST",44319,44347,"Findeter"]
[null,null,"Establecer procedimiento de Gestión del cambio en SST",null,null,"Profesional SST",44348,44377,"Findeter"]
[null,null,"Actualizar matriz de identificación de peligros",null,null,"Profesional SST",44378,44407,"Findeter"]
[null,null,"Definir e implementar indicadores del SG-SST",null,null,"Profesional SST",44378,44407,"Findeter"]
[null,null,"Realizar autoevaluación SG-SST 2021",null,null,"Profesional SST",44531,44561,"Findeter"]
[null,null,"Realizar Plan de mejora y Plan Anual 2022",null,null,"Profesional SST",44531,44561,"Findeter"]
[null,null,"Realizar indicadores de ausentismo","Prevención de enfermedades ocupacionales",null,"Profesional SST",44197,44561,"Findeter"]
[null,null,"Implementar indicadores de incidencia y prevalencia con base en el ausentismo",null,null,"Profesional SST",44291,44561,"Findeter"]
[null,null,"Realizar Chequeos ejecutivos a Directivos",null,null,"Profesional SST",44228,44253,"Findeter"]
[null,null,"Ejecutar Plan resultante de resultados del PVE realizado","Prevención del riesgo biomecánico",null,"Profesional SST",44228,44561,"Findeter"]
[null,null,"Realizar plan de acción Riesgo Psicosocial","Prevención de enfermedades generales y ocupacionales derivadas de condiciones intralaborales, estralaborales e individuales",null,"Profesional SST",44228,44561,"Findeter"]
[null,null,"Reforzar e incentivar uso de Sala amigas de la Familia Lactante","Promoción de hábitos de vida saludables y prevención de enfermedades generales",null,"Profesional SST",44228,44378,"Findeter"]
[null,null,"Reforzar uso aplicativo Citas Médicas",null,null,"Profesional SST",44228,44378,"Findeter"]
[null,null,"Realizar seguimiento a Programa de Riesgo Cardiovascular",null,null,"Profesional SST",44228,44561,"Findeter"]
[null,null,"Ejecutar la Semana de la Salud",null,null,"Profesional SST",44459,44463,"Findeter"]
[null,null,"Realizar inspecciones de SST","Prevención de accidentes e incidentes laborales",null,"Profesional SST",44378,44561,"Findeter"]
[null,null,"Reforzar uso aplicativo Canal Seguro",null,null,"Profesional SST",44228,44378,"Findeter"]
[null,null,"Realizar investigaciones de accidentes de trabajo",null,null,"Profesional SST",44197,44227,"Findeter"]
[null,null,"Ejecutar entrenamiento de trabajo en alturas para el personas del área técnica",null,null,"Profesional SST",44291,44316,"Findeter"]
[null,null,"Realizar seguimiento a hallazgos encontrados en estudios de higiene",null,null,"Profesional SST",44228,44253,"Findeter"]
[null,null,"Actualizar Plan de Emergencias","Preparación y respuesta ante emergencias en el entorno laboral",null,"Profesional SST",44348,44377,"Findeter"]
[null,null,"Realizar simulacro SST",null,null,"Profesional SST",44494,44498,"Findeter"]
[null,null,"Realizar simulacro ambiental",null,null,"Profesional SST",44256,44286,"Findeter"]
[null,null,"Convocatoria Brigadistas nuevos",null,null,"Profesional SST",44291,44316,"Findeter"]
[null,null,"Prevención del Covid 19","Formación en temas de seguridad y salud en el trabajo en aras de prevenir accidentes y enfermedades laborales",null,"Profesional SST",44242,44253,"Findeter"]
[null,null,"Formación Integral a la Brigada de Emergencia",null,null,"Profesional SST",44252,44561,"Findeter"]
[null,null,"Formación a COPASST",null,null,"Profesional SST",44270,44561,"Findeter"]
[null,null,"Formación a Comité de Convivencia Laboral",null,null,"Profesional SST","29/02/2021",44561,"Findeter"]
[null,null,"Divulgación Plan de emergencias a todo el personal",null,null,"Profesional SST",44375,44377,"Findeter"]
[null,null,"Capacitación en Higiene Postural a todo el personal",null,null,"Profesional SST",44312,44316,"Findeter"]
[null,null,"Capacitación en Riesgo Público conductores",null,null,"Profesional SST",44431,44435,"Findeter"]
[null,null,"Uso y mantenimiento adecuado de EPP - personal Area Técnica",null,null,"Profesional SST",44340,44347,"Findeter"]
[null,null,"Capacitación en Riesgo Público personal del Area Técnica",null,null,"Profesional SST",44340,44347,"Findeter"]
[null,null,"Capacitación manejo seguro de cargas - Contratistas",null,null,"Profesional SST",44494,44498,"Findeter"]
[null,null,"Capacitación Riesgo Químico - Contratistas",null,null,"Profesional SST",44494,44498,"Findeter"]
[null,null,"Capacitación Riesgo mecánico - Contratistas",null,null,"Profesional SST",44494,44498,"Findeter"]
[null,null,"Uso y mantenimiento adecuado de EPP - Contratistas",null,null,"Profesional SST",44494,44498,"Findeter"]
[null,null,"Capacitación en Orden y Limpieza a todo el personal",null,null,"Profesional SST",44396,44400,"Findeter"]
[null,null,"Curso Virtual SG - SST ",null,null,"Profesional SST",44543,44547,"Findeter"]
[]
[]
[]
[]
[]
[]
[]
[]
[]
[]
[]
[]
[]
[]
[]
[]
[]
[]
[]
[]
[]
[]
[]
[]
[]
[]
[]
[]
[]
[]
[]
[]
[]
[]
[]
[]
[]
[]
[]
[]
[]
[]
[]
[]
[]
[]
[]
[]
[]
[]
[]
[]
[]
[]
[]
[]
[]
[]
[]
[]
[]
[]
[]
[]
[]
[]
[]
[]
[]
[]
[]
[]
[]
[]
[]
[]
[]
[]
[]
[]
[]
[]
[]
[]
[]
[]
[]
[]
[]
[]
[]
[]
[]
[]
[]
[]
[]
[]
[]
[]
[]
[]
[]
[]
[]
[]
[]
[]
[]
[]
[]
[]
[]
[]
[]
[]
[]
[]
[]
[]
[]
[]
[]
[]
[]
[]
[]
[]
[]
[]
[]
[]
[]
[]
[]
[]
[]
[]
[]
[]
[]
[]
[]
[]
[]
[]
[]
[]
[]
[]
[]
[]
[]
[]
[]
[]
[]
[]
[]
[]
[]
[]
[]
[]
[]
[]
[]
[]
[]
[]
[]
[]
[]
[]
[]
[]
[]
[]
[]
[]
[null,"Dependencia","Política de Gestión y Desempeño","Programa","Descripción","Actividad (Nombre de la Tarea)","Responsables\n(Responsable de la Tarea)","Fecha de Inicio","Fecha de Fin","Fuente de Financiación"]
[]
[]
[null,"Jefatura de Talento Humano","Talento Humano","SG-SST","Implementación, mantenimiento y mejoramiento del Sistema de Gestión en Seguridad y Salud en el Trabajo","Revisar Política SST","Fabio Cortés / Liliana Tamara / Liliana Zapata",44230,44231,"N/A"]
[null,null,null,null,null,"Revisar Objetivos SST","Fabio Cortés / Liliana Tamara / Liliana Zapata",44230,44231,"N/A"]
[null,null,null,null,null,"Elaborar Rendición de cuentas del desarrollo del SG-SST","Fabio Cortés   ",44237,44241,"N/A"]
[null,null,null,null,null,"Actualizar matriz legal en SST","Fabio Cortés   ",44440,44443,"N/A"]
[null,null,null,null,null,"Establecer procedimiento de SST en contratación","Fabio Cortés   ",44244,44461,"N/A"]
[null,null,null,null,null,"Establecer criterios en SST para evaluación y selección de proveedores y contratistas","Fabio Cortés   ",44244,44461,"N/A"]
[null,null,null,null,null,"Establecer procedimiento de Gestión del cambio en SST","Fabio Cortés   ",44463,44467,"N/A"]
[null,null,null,null,null,"Actualizar matriz de identificación de peligros","Fabio Cortés   ",44463,44467,"N/A"]
[null,null,null,null,null,"Definir e implementar indicadores del SG-SST","Fabio Cortés   ",44257,44261,"N/A"]
[null,null,null,null,null,"Realizar autoevaluación SG-SST 2021","Fabio Cortés   ",44531,44531,"N/A"]
[null,null,null,null,null,"Realizar Plan de mejora y Plan Anual 2021","Fabio Cortés   ",44523,44528,"N/A"]
[null,null,null,null,null,"Realizar auditoría interna al SG-SST","Fabio Cortés   ",44544,44549,"N/A"]
[null,null,null,"Medicina Preventiva y del Trabajo","Prevención de enfermedades ocupacionales","Definir plan de intervención con base en el diagnóstico de salud","Fabio Cortés   ",44257,44261,"N/A"]
[null,null,null,null,null,"Realizar indicadores de ausentismo","Fabio Cortés   ",44197,44561,"N/A"]
[null,null,null,null,null,"Realizar Chequeos ejecutivos a Directivos","Fabio Cortés   ",44230,44234,"Presupuesto Salud Ocupacional"]
[null,null,null,"PVE Osteomuscular","Prevención del riesgo biomecánico","Ejecutar Plan resultante de resultados del PVE realizado","Fabio Cortés   ",44197,44561,"ARL"]
[null,null,null,"PVE Psicosocial","Prevención de enfermedades generales y ocupacionales derivadas de condiciones intralaborales, estralaborales e individuales","Realizar grupos de intervención de Riesgo Psicosocial","Fabio Cortés   ",44229,44288,"Presupuesto Salud Ocupacional"]
[null,null,null,null,null,"Realizar seguimiento a planes de acción resultantes de la intervención","Fabio Cortés   ",44289,44561,"Presupuesto Salud Ocupacional"]
[null,null,null,"Programa Entorno Laboral Saludable","Promoción de hábitos de vida saludables y prevención de enfermedades generales","Campaña Prevención de consumo de alcohol y tabaco","Fabio Cortés   ",44271,44271,"ARL"]
[null,null,null,null,null,"Reforzar e incentivar uso de Sala amigas de la Familia Lactante","Fabio Cortés   ",44237,44237,"N/A"]
[null,null,null,null,null,"Reforzar uso aplicativo Citas Médicas","Fabio Cortés   ",44237,44237,"N/A"]
[null,null,null,null,null,"Realizar seguimiento a Programa de Riesgo Cardiovascular","Fabio Cortés   ",44244,44249,"Presupuesto Bienestar"]
[null,null,null,null,null,"Ejecutar la Semana de la Salud","Fabio Cortés   ",44460,44464,"ARL - EPS - AFP"]
[null,null,null,"Higiene y Seguridad Industrial","Prevención de accidentes e incidentes laborales","Realizar inspecciones de SST","COPASST",44348,44531,"N/A"]
[null,null,null,null,null,"Reforzar uso aplicativo Canal Seguro","Fabio Cortés   ",44238,44238,"N/A"]
[null,null,null,null,null,"Revisar necesidad de EPP al personal aplicable","Fabio Cortés   ",44287,44288,"Presupuesto Salud Ocupacional"]
[null,null,null,null,null,"Realizar investigaciones de accidentes de trabajo","COPASST",44197,44561,"N/A"]
[null,null,null,null,null,"Ejecutar entrenamiento de trabajo en alturas para el personas del área técnica","Fabio Cortés   ",44320,44324,"Presupuesto Salud Ocupacional"]
[null,null,null,null,null,"Realizar seguimiento a hallazgos encontrados en estudios de higiene","Fabio Cortés   ",44327,44331,"N/A"]
[null,null,null,"Emergencias","Preparación y respuesta ante emergencias en el entorno laboral","Actualizar Plan de Emergencias","Fabio Cortés   ",44334,44334,"N/A"]
[null,null,null,null,null,"Realizar simulacro SST","Brigada de Emergencia",44491,44491,"N/A"]
[null,null,null,null,null,"Realizar simulacro ambiental","Brigada de Emergencia",44316,44316,"N/A"]
[null,null,null,null,null,"Convocatoria Brigadistas nuevos","Fabio Cortés   ",44349,43628,"N/A"]
[null,null,null,"Programa de Capacitación en Seguridad y Salud en el Trabajo.","Formación en temas de seguridad y salud en el trabajo en aras de prevenir accidentes y enfermedades laborales","Curso Virtual SG - SST ","Fabio Cortés   ",44544,44548,"N/A"]
[null,null,null,null,null,"Formación Integral a la Brigada de Emergencia","Fabio Cortés   ",44244,44523,"ARL"]
[null,null,null,null,null,"Formación a COPASST","Fabio Cortés   ",44244,44523,"ARL"]
[null,null,null,null,null,"Formación a Comité de Convivencia Laboral","Fabio Cortés   ",44244,44523,"ARL"]
[null,null,null,null,null,"Divulgación Plan de emergencias a todo el personal","Fabio Cortés   ",44390,44390,"N/A"]
[null,null,null,null,null,"Capacitación en Higiene Postural a todo el personal","Fabio Cortés   ",44257,44527,"ARL"]
[null,null,null,null,null,"Capacitación en Riesgo Público conductores","Fabio Cortés   ",44411,44411,"ARL"]
[null,null,null,null,null,"Uso y mantenimiento adecuado de EPP - personal Area Técnica","Fabio Cortés   ",44544,44545,"ARL"]
[null,null,null,null,null,"Capacitación en Riesgo Público personal del Area Técnica","Fabio Cortés   ",44544,44544,"ARL"]
[null,null,null,null,null,"Capacitación manejo seguro de cargas - Contratistas","Fabio Cortés   ",44460,44461,"ARL"]
[null,null,null,null,null,"Capacitación Riesgo Químico - Contratistas","Fabio Cortés   ",44460,44460,"ARL"]
[null,null,null,null,null,"Capacitación Riesgo mecánico - Contratistas","Fabio Cortés   ",44460,44460,"ARL"]
[null,null,null,null,null,"Uso y mantenimiento adecuado de EPP - Contratistas","Fabio Cortés   ",44460,44460,"ARL"]
[null,null,null,null,null,"Capacitación en Orden y Limpieza a todo el personal","Fabio Cortés   ",44474,44475,"ARL"]
[]
[]
[]
[]
[]
[]
[]
[]
[]
[]
[]
[]
[]
[]
[]
[]
[]
[]
[]
[]
[]
[]
[]
[]
[]
[]
[]
[]
[]
[]
[]
[]
[]
[]
[]
[]
[]
[]
[]
[]
[]
[]
[]
[]
[]
[]
[]
[]
[]
[]
[]
[]
[]
[]
[]
[]
[]
[]
[]
[]
[]
[]
[]
[]
[]
[]
[]
[]
[]
[]
[]
[]
[]
[]
[]
[]
[]
[]
[]
[]
[]
[]
[]
[]
[]
[]
[]
[]
[]
[]
[]
[]
[null,"Área Organizativa","Nombre de la tarea","Descripción ","Categoría / Proyecto\n(Opcional)","Política de Gestión y Desempeño","Responsable de tarea ","Fecha Inicio","Fecha Fin","Fuente de Financiación "]
[null,"GERENCIA DE GESTION HUMANA Y ADMINISTRATIVA","POLÍTICA DEL SG-SST","Actualizar la Política y divulgar a todos los colaboradores de Findeter ","Seguridad y Salud en el Trabajo","SGI","Profesional GGHA","2019-01-14","2019-01-18","N/A"]
[null,"GERENCIA DE GESTION HUMANA Y ADMINISTRATIVA","MATRICES DE IPECRDC","Actualizar matrices de identificación de peligros, evaluación y control de riesgos y determinación de controles","Seguridad y Salud en el Trabajo","SGI","Profesional GGHA","2019-01-21","2019-01-25","N/A"]
[null,"GERENCIA DE GESTION HUMANA Y ADMINISTRATIVA","CURSO DE SEGURIDAD Y SALUD EN EL TRABAJO","Gestionar el curso de SG-SST del personal faltante","Seguridad y Salud en el Trabajo","SGI","Profesional GGHA","2019-01-28","2019-01-31","N/A"]
[null,"GERENCIA DE GESTION HUMANA Y ADMINISTRATIVA","CANAL SEGURO","Divulgar y poner en producción aplicativo de reporte de condiciones y actos inseguros","Seguridad y Salud en el Trabajo","SGI","Profesional GGHA","2019-01-21","2019-01-25","N/A"]
[null,"GERENCIA DE GESTION HUMANA Y ADMINISTRATIVA","SALA AMIGA DE LA FAMILIA LACTANTE","Campaña e implementación de Sala para lactantes","Seguridad y Salud en el Trabajo","SGI","Profesional GGHA","2019-01-14","2019-01-18","N/A"]
[null,"GERENCIA DE GESTION HUMANA Y ADMINISTRATIVA","CITAS MEDICAS","Divulgar y poner en producción aplicativo de citas médicas","Seguridad y Salud en el Trabajo","SGI","Profesional GGHA","2019-01-28","2019-01-31","N/A"]
[null,"GERENCIA DE GESTION HUMANA Y ADMINISTRATIVA","PROCEDIMIENTOS SG-SGSST","Actualizar y documentar procedimientos obligatorios de acuerdo a normatividad vigente","Seguridad y Salud en el Trabajo","SGI","Profesional GGHA","2019-01-28","2019-01-31","N/A"]
[null,"GERENCIA DE GESTION HUMANA Y ADMINISTRATIVA","ACTUALIZACIÓN DE REQUISITOS LEGALES","Actualización matriz de Requisitos legales en SST","Seguridad y Salud en el Trabajo","SGI","Profesional GGHA","2019-02-01","2019-12-08","ARL POSITIVA"]
[null,"GERENCIA DE GESTION HUMANA Y ADMINISTRATIVA","INSPECCIONES DE SEGURIDAD","Seguimiento hallazgos inspección anterior y ejecución de inspección semestral","Seguridad y Salud en el Trabajo","SGI","Profesional GGHA","2019-02-01","2019-12-15","N/A"]
[null,"GERENCIA DE GESTION HUMANA Y ADMINISTRATIVA","INSPECCIONES DE SEGURIDAD","Seguimiento hallazgos inspección anterior y ejecución de inspección semestral","Seguridad y Salud en el Trabajo","SGI","Profesional GGHA","2019-07-02","2019-07-12","N/A"]
[null,"GERENCIA DE GESTION HUMANA Y ADMINISTRATIVA","ELEMENTOS DE PROTECCIÓN PERSONAL","Procedimiento, Inspección y ejecución de matriz de EPP por cargo","Seguridad y Salud en el Trabajo","SGI","Profesional GGHA","2019-03-04","2019-03-08","ARL POSITIVA"]
[null,"GERENCIA DE GESTION HUMANA Y ADMINISTRATIVA","GESTION PLAN DE EMERGENCIAS","Actualizar Plan de Emergencias, convocar brigadistas ","Seguridad y Salud en el Trabajo","SGI","Profesional GGHA","2019-02-01","2019-02-08","N/A"]
[null,"GERENCIA DE GESTION HUMANA Y ADMINISTRATIVA","GESTION PLAN DE EMERGENCIAS","Programar formación Integral a brigadistas","Seguridad y Salud en el Trabajo","SGI","Profesional GGHA","2019-02-01","2019-12-15","ARL POSITIVA"]
[null,"GERENCIA DE GESTION HUMANA Y ADMINISTRATIVA","GESTION PLAN DE EMERGENCIAS","Realizar simulacros","Seguridad y Salud en el Trabajo","SGI","Profesional GGHA","2019-07-16","2019-07-16","N/A"]
[null,"GERENCIA DE GESTION HUMANA Y ADMINISTRATIVA","GESTION PLAN DE EMERGENCIAS","Realizar simulacros","Seguridad y Salud en el Trabajo","SGI","Profesional GGHA","2019-10-24","2019-10-24","N/A"]
[null,"GERENCIA DE GESTION HUMANA Y ADMINISTRATIVA","GESTION DE ACCIDENTES E INCIDENTES","Realizar Investigación de Accidentes e Incidentes","Seguridad y Salud en el Trabajo","SGI","Profesional GGHA","2019-02-18","2019-02-22","N/A"]
[null,"GERENCIA DE GESTION HUMANA Y ADMINISTRATIVA","GESTION COPASST","Revisar reuniones mensuales y gestionar reelección de integrantes COPASST","Seguridad y Salud en el Trabajo","SGI","Profesional GGHA","2019-05-13","2019-05-17","N/A"]
[null,"GERENCIA DE GESTION HUMANA Y ADMINISTRATIVA","EXAMENES MEDICOS OCUPACIONALES","Realizar examenes medicos periodicos a los colaboradores","Seguridad y Salud en el Trabajo","SGI","Profesional GGHA","2019-02-18","2019-02-28","PRESUPUESTO GGHYA"]
[null,"GERENCIA DE GESTION HUMANA Y ADMINISTRATIVA","PROFESIOGRAMA","Actualizar profesiograma Findeter","Seguridad y Salud en el Trabajo","SGI","Profesional GGHA","2019-01-21","2019-01-21","ARL POSITIVA"]
[null,"GERENCIA DE GESTION HUMANA Y ADMINISTRATIVA","PROMOCION Y PREVENCION","Ejecutar Programas de Promoción y Prevención de la salud con base en los examenes medicos y el histórico de ausentismo (Prevención consumo de alcohol, tabaco y PSI - Riesgo Cardiovascular - Torneo de futbol - Apoyo PYP Sanitas)","Seguridad y Salud en el Trabajo","SGI","Profesional GGHA","2019-02-01","2019-12-13","ARL POSITIVA / COLSANITAS"]
[null,"GERENCIA DE GESTION HUMANA Y ADMINISTRATIVA","SEMANA DE LA SALUD","Ejecutar Semana de la salud para todo el personal","Seguridad y Salud en el Trabajo","SGI","Profesional GGHA","2019-09-23","2019-09-27","ARL POSITIVA / COLSANITAS / OTROS"]
[null,"GERENCIA DE GESTION HUMANA Y ADMINISTRATIVA","PROGRAMAS DE VIGILANCIA EPIDEMIOLOGICA","Ejecutar Programa de Riesgo Biomecánico","Seguridad y Salud en el Trabajo","SGI","Profesional GGHA","2019-02-01","2019-12-13","ARL POSITIVA"]
[null,"GERENCIA DE GESTION HUMANA Y ADMINISTRATIVA","PROGRAMAS DE VIGILANCIA EPIDEMIOLOGICA","Ejecutar Programa de Riesgo - Psicosocial","Seguridad y Salud en el Trabajo","SGI","Profesional GGHA","2019-02-01","2019-12-13","PRESUPUESTO GGHYA"]
[null,"GERENCIA DE GESTION HUMANA Y ADMINISTRATIVA","PROGRAMA DE CAPACITACION","Implementar Programa de Capacitación en SST","Seguridad y Salud en el Trabajo","SGI","Profesional GGHA","2019-02-18","2019-12-13","PRESUPUESTO GGHYA"]
[null,"GERENCIA DE GESTION HUMANA Y ADMINISTRATIVA","PROGRAMA PREVENCION CAIDA DE ALTURAS","Implementar Programa y actualizar cursos de trabajo en alturas","Seguridad y Salud en el Trabajo","SGI","Profesional GGHA","2019-03-01","2019-03-15","PRESUPUESTO GGHYA"]
[null,"GERENCIA DE GESTION HUMANA Y ADMINISTRATIVA","PRESUPUESTO PARA EL SGSST","Definir presupuesto para el Sistema de Gestión en Seguridad y salud en el Trabajo","Seguridad y Salud en el Trabajo","SGI","Profesional GGHA","2019-01-21","2019-01-25","N/A"]
[null,"GERENCIA DE GESTION HUMANA Y ADMINISTRATIVA","AUDITORIA SG-SST","Realizar auditoría interna del Sistema de Gestión en Seguridad y Salud en el Trabajo","Seguridad y Salud en el Trabajo","SGI","Profesional GGHA","2019-04-01","2019-04-04","ARL POSITIVA"]
[null,"GERENCIA DE GESTION HUMANA Y ADMINISTRATIVA","MEDICIONES HIGIENICAS","Estudios de iluminación y confort térmico","Seguridad y Salud en el Trabajo","SGI","Profesional GGHA","2019-04-01","2019-04-04","ARL POSITIVA"]
[null,"GERENCIA DE GESTION HUMANA Y ADMINISTRATIVA","AUSENTISMO","Registrar y gestionar el ausentismo laboral por incapacidad médica","Seguridad y Salud en el Trabajo","SGI","Profesional GGHA","2019-01-01","2019-12-31","N/A"]

{"sheet":"PIC","index":7,"n_rows":502,"n_cols":9,"rows_kept":502,"cut":false,"hidden":false,"merged":[[211,4,213,4],[211,5,213,5],[218,4,219,4],[218,5,219,5],[226,4,227,4],[226,5,227,5],[255,4,259,4],[255,5,259,5],[243,4,244,4],[243,5,244,5],[245,4,246,4],[245,5,246,5],[251,4,253,4],[260,4,264,4],[260,5,264,5],[265,3,272,3],[265,4,271,4],[265,5,271,5],[194,4,195,4],[196,4,198,4],[196,5,197,5],[199,4,200,4],[199,5,200,5],[172,1,273,1],[172,2,273,2],[172,3,175,3],[176,3,177,3],[178,3,180,3],[181,3,264,3],[2,3,8,5],[169,5,171,5],[169,6,171,6],[169,7,171,7],[169,8,171,8],[17,3,123,3],[124,3,125,3],[126,3,140,3],[169,1,171,1],[169,2,171,2],[169,3,171,3],[169,4,171,4],[12,3,13,3],[14,3,16,3]]}
[]
[]
[null,null,null,"                     PLAN INSTITUCIONAL DE CAPACITACIÓN - PIC\n                   FINDETER 2021"]
[]
[]
[]
[]
[]
[]
[]
[null,"Dependencia","Nombre de la tarea","Descripción ","Política de Gestión y Desempeño","Responsable de tarea ","Fecha Inicio","Fecha Fin","Fuente de Financiación "]
[null,"Jefatura de Talento Humano","Inducción y actualización General de Findeter","Integrar a los nuevos trabajadores  a la cultura organizacional, enfoque de la misión, visión y objetivos estratégicos, lineamientos como empresa familiarmente responsable,   creando sentido de pertenencia hacia la organización.","Talento Humano","Jefatura de Talento Humano","Enero 2021","Diciembre de 2021","Findeter"]
[null,"Jefatura de Talento Humano","Capacitacion anual SARO (circular básica y contable de SARO)","Integrar al trabajador a la cultura organizacional en virtud de los cambios producidos en cualquiera de los temas que se definan, fortaleciendo su sentido de pertenencia e identidad frente a la Findeter.","Talento Humano","Coordinacion de Riesgos No Financieros","Octubre de 2021","Octubre de 2021","Findeter"]
[null,"Jefatura de Talento Humano","Capacitación de Servicio al Cliente para toda la Entidas SAC",null,"Talento Humano","Jefatura de Mercadeo","Mayo 2021","Mayo 2021","Findeter"]
[null,"Jefatura de Talento Humano","Capacitaciones en temas asociados a contratación y demás funciones de la Dirección","Realizar capacitaciones que se enfocan en adquirir, reforzar, o completar los conocimientos o habilidades requeridas para optimizar el desempeño laboral para el logro de los objetivos estratégicos","Talento Humano","Direccion de Contratación","Abril 2021","Abril 2021","Findeter"]
[null,"Jefatura de Talento Humano","Capacitación en el idioma inglés para los trabajadores (beneficiarios convención colectiva y directivos)",null,"Talento Humano","Direccion de Contratación","Junio 2021","Junio 2021","Findeter"]
[null,"Jefatura de Talento Humano","Capacitaciones en temas asociados a contratación y demás funciones de la Dirección",null,"Talento Humano","Direccion de Contratación","Agosto 2021","Agosto 2021","Findeter"]
[null,"Jefatura de Talento Humano","Curso en gestión de Riesgos","Actualizar, ampliar o mejorar el nivel de conocimientos y experiencias de los trabajadores, a fin de potenciar su desempeño de funciones técnicas, profesionales, directivas o de gestión.","Talento Humano","Coordinacion de Riesgos Financieros","Septiembre  2021","Septiembre  2021","Findeter"]
[null,"Jefatura de Talento Humano","Gastos Autorregulador del mercado valores",null,"Talento Humano","Vicepresidencia de Riesgos","Enero 2021","Diciembre de 2021","Findeter"]
[null,"Jefatura de Talento Humano","Congreso Asobancaria",null,"Talento Humano","Vicepresidencia de Riesgos","Noviembre 2021","Noviembre 2021","Findeter"]
[null,"Jefatura de Talento Humano","Congreso ALIDE Riesgo Operacional ",null,"Talento Humano","Coordinacion de Riesgos No Financieros","Septiembre  2021","Septiembre  2021","Findeter"]
[null,"Jefatura de Talento Humano","Capacitación continuidad del negocio grupos críticos ",null,"Talento Humano","Coordinacion de Riesgos No Financieros","Julio 2021","Julio 2021","Findeter"]
[null,"Jefatura de Talento Humano","Diplomado Riesgos financieros ",null,"Talento Humano","Coordinacion de Riesgos No Financieros","Julio 2021","Julio 2021","Findeter"]
[null,"Jefatura de Talento Humano","Compromiso Recursos No Reembolsables de KfW. Programa de Capacitación de Análisis de Riesgos Ambientales y Sociales (ARAS) - Iniciativa Financiera del Programa de las Naciones Unidas para el Medio Ambiente (LATF-UNEP FI por sus siglas en inglés)",null,"Talento Humano","Coordinacion de Riesgos No Financieros","Junio 2021","Junio 2021","Findeter"]
[null,"Jefatura de Talento Humano","Compromiso Recursos No Reembolsables de KfW. Programa de Capacitación de Análisis de Riesgos Ambientales y Sociales (ARAS) - Iniciativa Financiera del Programa de las Naciones Unidas para el Medio Ambiente (LATF-UNEP FI por sus siglas en inglés)",null,"Talento Humano","Vicepresidencia de Riesgos","Junio 2021","Junio 2021","Findeter"]
[null,"Jefatura de Talento Humano","Compromiso Recursos No Reembolsables de KfW. Diplomado Finanzas Verdes - Pontificia Universidad Javeriana en conjunto con Green Banking Academy – GBAC, IFC y Asobancaria",null,"Talento Humano","Coordinacion de Riesgos No Financieros","Agosto 2021","Agosto 2021","Findeter"]
[null,"Jefatura de Talento Humano","Compromiso Recursos No Reembolsables de KfW. XVII Congreso de sostenibilidad medioambiental, cultural, económica y social - Amsterdam  (Virtual)",null,"Talento Humano","Coordinacion de Riesgos No Financieros","Febrero 2021","Febrero 2021","Findeter"]
[null,"Jefatura de Talento Humano","Congreso de Sostenibilidad Asobancaria",null,"Talento Humano","Coordinacion de Riesgos No Financieros","Abril 2021","Abril 2021","Findeter"]
[null,"Jefatura de Talento Humano","Diplomado de Finanzas Básicas para Abogados",null,"Talento Humano","Coordinacion de Riesgos Financieros","Agosto 2021","Agosto 2021","Findeter"]
[null,"Jefatura de Talento Humano","Capacitaciones en Ciberseguridad y Ciberdefensa Escuela Superior de Guerra - Cumplimiento requerimiento FURAG",null,"Talento Humano","Coordinacion de Riesgos No Financieros","Julio 2021","Julio 2021","Findeter"]
[null,"Jefatura de Talento Humano","Congreso de Prevención del Fraude y Seguridad Asobancaria Septiembre 16 y 17 de 2021",null,"Talento Humano","Coordinacion de Riesgos No Financieros","Agosto 2021","Agosto 2021","Findeter"]
[null,"Jefatura de Talento Humano","Diplomado Presencial \"Costos y Presupuestos Estratégicos\" - Intensidad: 120 horas (Viernes de 6:00 pm a 9:00 pm y sábados de 7:00 am a 1:00 pm)",null,"Talento Humano","Grupo de Presupuesto","Mayo 2021","Mayo 2021","Findeter"]
[null,"Jefatura de Talento Humano","Curso / Seminario de la gestion presupuestal en el sector público",null,"Talento Humano","Grupo de Presupuesto","Junio 2021","Junio 2021","Findeter"]
[null,"Jefatura de Talento Humano","Curso académico de Gobernabilidad Economía Mundial",null,"Talento Humano","Direccion de Estudios Económicos","Mayo 2021","Mayo 2021","Findeter"]
[null,"Jefatura de Talento Humano","Curso académico para fortalecer las capacidades de proyección y manejo de variables macroeconómicas",null,"Talento Humano","Direccion de Estudios Económicos","Enero 2021","Enero 2021","Findeter"]
[null,"Jefatura de Talento Humano","Curso académico para afianzar la Evaluación Financiera y Económica de Proyectos de Inversión que complementaría en conocimiento a los profesionales a cargo de la TIR Social",null,"Talento Humano","Direccion de Estudios Económicos","Julio 2021","Julio 2021","Findeter"]
[null,"Jefatura de Talento Humano","Participación reunión anual Economistas Jefes ALIDE",null,"Talento Humano","Direccion de Estudios Económicos","Enero 2021","Enero 2021","Findeter"]
[null,"Jefatura de Talento Humano","Diplomado",null,"Talento Humano","Gerencia de Planeación y Gestión","Mayo 2021","Mayo 2021","Findeter"]
[null,"Jefatura de Talento Humano","Diplomado",null,"Talento Humano","Centro de Innovación y Conocimiento","Julio 2021","Julio 2021","Findeter"]
[null,"Jefatura de Talento Humano","Diplomado",null,"Talento Humano","PMO","Agosto 2021","Agosto 2021","Findeter"]
[null,"Jefatura de Talento Humano","Diplomado",null,"Talento Humano","PMO","Septiembre  2021","Septiembre  2021","Findeter"]
[null,"Jefatura de Talento Humano","Diplomado",null,"Talento Humano","PMO","Mayo 2021","Mayo 2021","Findeter"]
[null,"Jefatura de Talento Humano","Curso en temas de Direccion de Planeación de Negocios Fiduciarios",null,"Talento Humano","Direccion de Planeación de Negocios Fiduciarios","Septiembre  2021","Septiembre  2021","Findeter"]
[null,"Jefatura de Talento Humano","Diplomado para la Direccion de Planeación de Negocios Fiduciarios",null,"Talento Humano","Direccion de Planeación de Negocios Fiduciarios","Agosto 2021","Agosto 2021","Findeter"]
[null,"Jefatura de Talento Humano","Capacitar profesionales del área en temas de modelaje financiero",null,"Talento Humano","Direccion de Planeación Financiera","Agosto 2021","Agosto 2021","Findeter"]
[null,"Jefatura de Talento Humano","Seminario Asobancaria-Mercado de Capitales",null,"Talento Humano","Vicepresidencia de Planeación","Agosto 2021","Agosto 2021","Findeter"]
[null,"Jefatura de Talento Humano","Participacion taller internacional ALIDE",null,"Talento Humano","Vicepresidencia de Planeación","Abril 2021","Abril 2021","Findeter"]
[null,"Jefatura de Talento Humano","Participación de la Vicepresidenta de Planeación de FINDETER en el programa \"Maestria en Administración-MBA\".",null,"Talento Humano","Vicepresidencia de Planeación","Enero 2021","Enero 2021","Findeter"]
[null,"Jefatura de Talento Humano","Fedesarrollo Participación Seminario Bancas de Desarrollo",null,"Talento Humano","Vicepresidencia de Planeación","Noviembre 2021","Noviembre 2021","Findeter"]
[null,"Jefatura de Talento Humano","ANIIF - Seminario",null,"Talento Humano","Vicepresidencia de Planeación","Julio 2021","Julio 2021","Findeter"]
[null,"Jefatura de Talento Humano","Project Finance",null,"Talento Humano","Gerencia de Banca de Inversión","Abril 2021","Abril 2021","Findeter"]
[null,"Jefatura de Talento Humano","Formulación de proyectos con Metodología General Ajustada",null,"Talento Humano","Gerencia de Banca de Inversión","Febrero 2021","Febrero 2021","Findeter"]
[null,"Jefatura de Talento Humano","Diplomado Gerencia de Proyectos",null,"Talento Humano","Gerencia de Banca de Inversión","Julio 2021","Julio 2021","Findeter"]
[null,"Jefatura de Talento Humano","Convención Bancaria Asobancaria",null,"Talento Humano","Dirección de tesorería","Agosto 2021","Agosto 2021","Findeter"]
[null,"Jefatura de Talento Humano","Simposio Mercado de Capitales y Tesorería",null,"Talento Humano","Dirección de tesorería","Mayo 2021","Mayo 2021","Findeter"]
[null,"Jefatura de Talento Humano","Certificaciones ante la AMV",null,"Talento Humano","Dirección de tesorería","Enero 2021","Diciembre de 2021","Findeter"]
[null,"Jefatura de Talento Humano","Capacitaciones Derivados",null,"Talento Humano","Dirección de tesorería","Julio 2021","Julio 2021","Findeter"]
[null,"Jefatura de Talento Humano","Examen Certificación CFA",null,"Talento Humano","Dirección de tesorería","Abril 2021","Abril 2021","Findeter"]
[null,"Jefatura de Talento Humano","Diplomado Finanzas para No Financieros * 2",null,"Talento Humano","Dirección de Banca Internacional","Marzo 2021","Marzo 2021","Findeter"]
[null,"Jefatura de Talento Humano","Curso de Excel Básico e Intermedio *7",null,"Talento Humano","Dirección de Banca Internacional","Marzo 2021","Marzo 2021","Findeter"]
[null,"Jefatura de Talento Humano","Presentaciones Ejecutivas de Alto Impacto ",null,"Talento Humano","Dirección de Banca Internacional","Febrero 2021","Febrero 2021","Findeter"]
[null,"Jefatura de Talento Humano","Seminario en Contratación Internacional",null,"Talento Humano","Dirección de Banca Internacional","Marzo 2021","Marzo 2021","Findeter"]
[null,"Jefatura de Talento Humano","Congreso CCI",null,"Talento Humano","Jefatura Gestión Urbana Integral","Noviembre 2021","Noviembre 2021","Findeter"]
[null,"Jefatura de Talento Humano","Capacitación en Gerencia de crédito, cartera y cobranza",null,"Talento Humano","Direccion de Cartera","Enero 2021","Enero 2021","Findeter"]
[null,"Jefatura de Talento Humano","Maestria en Administración  - MBA",null,"Talento Humano","Vicepresidencia Financiera","Enero 2021","Enero 2021","Findeter"]
[null,"Jefatura de Talento Humano","Curso de Excel Intermedio - Universidad Nacional - Para 05 personas",null,"Talento Humano","Coordinacion de Crédito","Enero 2021","Enero 2021","Findeter"]
[null,"Jefatura de Talento Humano","Curso de Excel Avanzado - Universidad Nacional - Para 04 personas",null,"Talento Humano","Coordinacion de Crédito","Enero 2021","Enero 2021","Findeter"]
[null,"Jefatura de Talento Humano","Certificación RETIE y RETILAP",null,"Talento Humano","Gerencia de Infraestructura","Enero 2021","Enero 2021","Findeter"]
[null,"Jefatura de Talento Humano","Gesproy y OCAD - Proyectos con recursos de regalías",null,"Talento Humano","Gerencia de Agua y Saneamiento Básico","Enero 2021","Enero 2021","Findeter"]
[null,"Jefatura de Talento Humano","Maestria en Políticas públicas ",null,"Talento Humano","Presidencia","Junio 2021","Junio 2021","Findeter"]
[null,"Jefatura de Talento Humano","Estudio y análisis del Estatuto General de Contratación de la Administración Pública - Cámara de Comercio de Bogotá - Para 02 personas",null,"Talento Humano","Coordinación de Crédito","Febrero 2021","Febrero 2021","Findeter"]
[null,"Jefatura de Talento Humano","Congreso de Tesoreria, Asobancaria",null,"Talento Humano","Dirección de Operaciones","Febrero 2021","Febrero 2021","Findeter"]
[null,"Jefatura de Talento Humano","Actualizacion en Normatividad Tributaria",null,"Talento Humano","Dirección de Operaciones","Febrero 2021","Febrero 2021","Findeter"]
[null,"Jefatura de Talento Humano","Riego y batería sanitaria",null,"Talento Humano","Gerencia de Agua y Saneamiento Básico","Febrero 2021","Febrero 2021","Findeter"]
[null,"Jefatura de Talento Humano","Diplomado Finanzas para no Financieros - Universidad Javeriana - Para 02 personas",null,"Talento Humano","Coordinación de Crédito","Marzo 2021","Marzo 2021","Findeter"]
[null,"Jefatura de Talento Humano","Diplomado Finanzas para no Financieros - Universidad Javeriana - Para 02 personas",null,"Talento Humano","Coordinación de Crédito","Julio 2021","Julio 2021","Findeter"]
[null,"Jefatura de Talento Humano","Curso de preparación para certificación PMP version actualizada",null,"Talento Humano","Presidencia","Abril 2021","Abril 2021","Findeter"]
[null,"Jefatura de Talento Humano","Diplomado Gerencia de crédito, cartera y cobranza - Cámara de Comercio de Bogotá - 02 personas",null,"Talento Humano","Coordinación de Crédito","Abril 2021","Abril 2021","Findeter"]
[null,"Jefatura de Talento Humano","Actualización en normatividad sobre seguridad social asisten 2 trabajadores",null,"Talento Humano","Jefatura de Talento Humano","Marzo 2021","Marzo 2021","Findeter"]
[null,"Jefatura de Talento Humano","Supervisión de proyectos (proyección, planeación y coordinación",null,"Talento Humano","Gerencia de Infraestructura","Abril 2021","Abril 2021","Findeter"]
[null,"Jefatura de Talento Humano","Se requiere la capacitación para todos los abogados de la Dirección Jurídica, Dirección de Contratación, Contratación derivada y Secretaría General en Títulos Valores y garantías",null,"Talento Humano","Dirección Juridica","Mayo 2021","Mayo 2021","Findeter"]
[null,"Jefatura de Talento Humano","Curso actualización metodologías SARLAFT (Oficial de Cumplimiento principal).",null,"Talento Humano","Oficial de Cumplimiento","Mayo 2021","Mayo 2021","Findeter"]
[null,"Jefatura de Talento Humano","Diplomado en normatividad tributaria para 2 trabajadores",null,"Talento Humano","Jefatura de Talento Humano","Mayo 2021","Mayo 2021","Findeter"]
[null,"Jefatura de Talento Humano","Cueso en Herramientas Ofímaticas (Excel)",null,"Talento Humano","Jefatura de Talento Humano","Mayo 2021","Mayo 2021","Findeter"]
[null,"Jefatura de Talento Humano","Scrum Product Owner",null,"Talento Humano","Dirección de Tecnología","Mayo 2021","Mayo 2021","Findeter"]
[null,"Jefatura de Talento Humano","DevOps",null,"Talento Humano","Dirección de Tecnología","Mayo 2021","Mayo 2021","Findeter"]
[null,"Jefatura de Talento Humano","COBIT FUNDATION",null,"Talento Humano","Dirección de Tecnología","Mayo 2021","Mayo 2021","Findeter"]
[null,"Jefatura de Talento Humano","Capacitación Miembros de Junta Directiva ",null,"Talento Humano","Secretaría General","Junio 2021","Junio 2021","Findeter"]
[null,"Jefatura de Talento Humano","Congreso Panamericano de Lavado de Activos y Financiación del Terrorismo (Oficial de Cumplimiento Principal).",null,"Talento Humano","Oficial de Cumplimiento","Julio 2021","Julio 2021","Findeter"]
[null,"Jefatura de Talento Humano","Congreso Panamericano de Lavado de Activos y Financiación del Terrorismo (Oficial de Cumplimiento Suplente).",null,"Talento Humano","Oficial de Cumplimiento","Julio 2021","Julio 2021","Findeter"]
[null,"Jefatura de Talento Humano","Temas relacionados con efr",null,"Talento Humano","Jefatura de Talento Humano","Julio 2021","Julio 2021","Findeter"]
[null,"Jefatura de Talento Humano","ITIL®4 MP Crear, entregar y soportar - CDS + Voucher",null,"Talento Humano","Dirección de Tecnología","Julio 2021","Julio 2021","Findeter"]
[null,"Jefatura de Talento Humano","ITIL®4 MP Dirigir Planear y Mejorar - DPI + Voucher",null,"Talento Humano","Dirección de Tecnología","Julio 2021","Julio 2021","Findeter"]
[null,"Jefatura de Talento Humano","Diplomado Tributaria",null,"Talento Humano","Dirección de contabilidad","Julio 2021","Julio 2021","Findeter"]
[null,"Jefatura de Talento Humano","Project Manager",null,"Talento Humano","Vicepresidencia Técnica","Julio 2021","Julio 2021","Findeter"]
[null,"Jefatura de Talento Humano","Capítulos J y K NSR-10 Seguridad Humana",null,"Talento Humano","Gerencia de Infraestructura","Julio 2021","Julio 2021","Findeter"]
[null,"Jefatura de Talento Humano","Curso de certificación en Seguridad y Ciberseguridad ",null,"Talento Humano","Dirección de Tecnología","Agosto 2021","Agosto 2021","Findeter"]
[null,"Jefatura de Talento Humano","Curso de Certificación Adminsitración de Servidores Microsoft",null,"Talento Humano","Dirección de Tecnología","Agosto 2021","Agosto 2021","Findeter"]
[null,"Jefatura de Talento Humano","Diplomado de costos y presupuestos",null,"Talento Humano","Vicepresidencia de Operaciones","Agosto 2021","Agosto 2021","Findeter"]
[null,"Jefatura de Talento Humano","Diplomado en TI, finanzas",null,"Talento Humano","Vicepresidencia de Operaciones","Agosto 2021","Agosto 2021","Findeter"]
[null,"Jefatura de Talento Humano","Diplomado en Normas Internacionales Actualizacion",null,"Talento Humano","Dirección de contabilidad","Agosto 2021","Agosto 2021","Findeter"]
[null,"Jefatura de Talento Humano","Diplomado ISO27001 en Seguridad",null,"Talento Humano","Dirección de Tecnología","Septiembre  2021","Septiembre  2021","Findeter"]
[null,"Jefatura de Talento Humano","Actualizacion en Norma Internacional  NIIF  NIC",null,"Talento Humano","Dirección de contabilidad","Septiembre  2021","Septiembre  2021","Findeter"]
[null,"Jefatura de Talento Humano","Curso Operación bursatil, Asobursatil",null,"Talento Humano","Dirección de Operaciones","Octubre de 2021","Octubre de 2021","Findeter"]
[null,"Jefatura de Talento Humano","Se requiere la capacitación para todos los abogados de la Dirección Jurídica, Dirección de Contratación, Contratación derivada y Secretaría General en Operaciones Fiancieras",null,"Talento Humano","Dirección Juridica","Octubre de 2021","Octubre de 2021","Findeter"]
[null,"Jefatura de Talento Humano","Curso actualización metodologías SARLAFT (Oficial de Cumplimiento Suplente).",null,"Talento Humano","Oficial de Cumplimiento","Octubre de 2021","Octubre de 2021","Findeter"]
[null,"Jefatura de Talento Humano","Nuevas tecnologías en el sector de agua y saneamiento basico",null,"Talento Humano","Gerencia de Agua y Saneamiento Básico","Noviembre 2021","Noviembre 2021","Findeter"]
[null,"Jefatura de Talento Humano","Especializacion Tributaria",null,"Talento Humano","Dirección de contabilidad","Diciembre 2021","Diciembre 2021","Findeter"]
[null,"Jefatura de Talento Humano","Normatividad aplicable: HFPA 10, 14, 20 y 72 Sistemas de extinción y detección contra incendios, NTC 4595, NTC 6199 y GIPI, NTC 1500 Código de Fontanería, NTC 2674 Cocinas y preparación de alimentos, Y NTC 2050 subestaciones eléctricas",null,"Talento Humano","Gerencia de Infraestructura","Diciembre 2021","Diciembre 2021","Findeter"]
[null,"Jefatura de Talento Humano","Advanced Management Program Intensivo 1 mes España-Vicepresidente Comercial",null,"Talento Humano","Vicepresidencia Comercial","Junio 2021","Junio 2021","Findeter"]
[null,"Jefatura de Talento Humano","Capacitación a los directivos y comerciales en competencias de ventas o similares; para revisar y/o reactivar lo que se tiene.",null,"Talento Humano","Vicepresidencia Comercial","Enero 2021","Enero 2021","Findeter"]
[null,"Jefatura de Talento Humano","Maestría en Gestión Pública Gerente Regional - U ANDES",null,"Talento Humano","Regional Nororiental","Enero 2021","Enero 2021","Findeter"]
[null,"Jefatura de Talento Humano","Capacitación en Derecho Urbano dictado por el Centro Interdisciplinario de Estudios sobre el desarrollo- CIDER de los la universidad de los Andes,  36 horas y 4 sesiones",null,"Talento Humano","Direccion de Ciudades y Competitividad","Abril 2021","Abril 2021","Findeter"]
[null,"Jefatura de Talento Humano","Capacitación  fuerza Comercial Findeter Suma",null,"Talento Humano","Jefatura de Mercadeo","Febrero 2021","Febrero 2021","Findeter"]
[null,"Jefatura de Talento Humano","Capacitación  fuerza Comercial Findeter Suma",null,"Talento Humano","Jefatura de Mercadeo","Julio 2021","Julio 2021","Findeter"]
[null,"Jefatura de Talento Humano","Capacitación Organización y Gestion de eventos virtuales y presenciales",null,"Talento Humano","Jefatura de Mercadeo","Abril 2021","Abril 2021","Findeter"]
[null,"Jefatura de Talento Humano","Capacitación en Marketing Analitics",null,"Talento Humano","Jefatura de Mercadeo","Julio 2021","Julio 2021","Findeter"]
[null,"Jefatura de Talento Humano","Maestria en mercadeo Jefe de area ",null,"Talento Humano","Jefatura de Mercadeo","Febrero 2021","Febrero 2021","Findeter"]
[null,"Jefatura de Talento Humano","Participacion expomarketing",null,"Talento Humano","Jefatura de Mercadeo","Abril 2021","Abril 2021","Findeter"]
[null,"Jefatura de Talento Humano","Curso de Indesign - Essential ",null,"Talento Humano","Gerencia de Comunicaciones, Mercadeo y Rs","Junio 2021","Junio 2021","Findeter"]
[null,"Jefatura de Talento Humano","Diplomado en Creación de Contenidos Digitales",null,"Talento Humano","Gerencia de Comunicaciones, Mercadeo y Rs","Enero 2021","Enero 2021","Findeter"]
[null,"Jefatura de Talento Humano","Maestria en mercadeo Jefe de area  UANDES",null,"Talento Humano","Grupo de Acción Social","Febrero 2021","Febrero 2021","Findeter"]
[null,"Jefatura de Talento Humano","Curso Excel -Avanzado",null,"Talento Humano","Jefatura Inteligencia Del Negocio","Julio 2021","Julio 2021","Findeter"]
[null,"Jefatura de Talento Humano","Seminario de Design Thinking ",null,"Talento Humano","Gerencia de Desarrollo de Producto","Enero 2021","Enero 2021","Findeter"]
[null,"Jefatura de Talento Humano","Curso de actualización en nueva normatividad en SGSST","Capacitar a los trabajadores para brindar o fortalecer el conocimiento integral de la Entidad, con el propósito de lograr su alineación con la estrategia corporativa y la comprension en las directrices de la Financiera.","Talento Humano","Jefatura de Talento Humano","Junio 2021","Junio 2021","Findeter"]
[null,"Jefatura de Talento Humano","Capacitación Códigos  Etica e Integridad y Gobierno Corporativo  ",null,"Talento Humano","Jefatura de Talento Humano","Abril 2021","Abril 2021","Findeter"]
[null,"Jefatura de Talento Humano","Prevención del Covid 19","Formación en temas de seguridad y salud en el trabajo en aras de prevenir accidentes y enfermedades laborales","Talento Humano","Jefatura de Talento Humano","Febrero 2021","Febrero 2021","Findeter"]
[null,"Jefatura de Talento Humano","Formación Integral a la Brigada de Emergencia",null,"Talento Humano","Jefatura de Talento Humano","Febrero 2021","Febrero 2021","Findeter"]
[null,"Jefatura de Talento Humano","Formación a COPASST",null,"Talento Humano","Jefatura de Talento Humano","Marzo 2021","Marzo 2021","Findeter"]
[null,"Jefatura de Talento Humano","Formación a Comité de Convivencia Laboral",null,"Talento Humano","Jefatura de Talento Humano","Febrero 2021","Febrero 2021","Findeter"]
[null,"Jefatura de Talento Humano","Divulgación Plan de emergencias a todo el personal",null,"Talento Humano","Jefatura de Talento Humano","Junio 2021","Junio 2021","Findeter"]
[null,"Jefatura de Talento Humano","Capacitación en Higiene Postural a todo el personal",null,"Talento Humano","Jefatura de Talento Humano","Abril 2021","Abril 2021","Findeter"]
[null,"Jefatura de Talento Humano","Capacitación en Riesgo Público conductores",null,"Talento Humano","Jefatura de Talento Humano","Agosto 2021","Agosto 2021","Findeter"]
[null,"Jefatura de Talento Humano","Uso y mantenimiento adecuado de EPP - personal Área Técnica",null,"Talento Humano","Jefatura de Talento Humano","Mayo 2021","Mayo 2021","Findeter"]
[null,"Jefatura de Talento Humano","Capacitación en Riesgo Público personal del área Técnica",null,"Talento Humano","Jefatura de Talento Humano","Mayo 2021","Mayo 2021","Findeter"]
[null,"Jefatura de Talento Humano","Capacitación manejo seguro de cargas - Contratistas",null,"Talento Humano","Jefatura de Talento Humano","Octubre de 2021","Octubre de 2021","Findeter"]
[null,"Jefatura de Talento Humano","Capacitación Riesgo Químico - Contratistas",null,"Talento Humano","Jefatura de Talento Humano","Octubre de 2021","Octubre de 2021","Findeter"]
[null,"Jefatura de Talento Humano","Capacitación Riesgo mecánico - Contratistas",null,"Talento Humano","Jefatura de Talento Humano","Octubre de 2021","Octubre de 2021","Findeter"]
[null,"Jefatura de Talento Humano","Uso y mantenimiento adecuado de EPP - Contratistas",null,"Talento Humano","Jefatura de Talento Humano","Octubre de 2021","Octubre de 2021","Findeter"]
[null,"Jefatura de Talento Humano","Capacitación en Orden y Limpieza a todo el personal",null,"Talento Humano","Jefatura de Talento Humano","Julio 2021","Julio 2021","Findeter"]
[null,"Jefatura de Talento Humano","Curso Virtual SG - SST ",null,"Talento Humano","Jefatura de Talento Humano","Diciembre 2021","Diciembre 2021","Findeter"]
[]
[]
[]
[]
[]
[]
[]
[]
[]
[]
[]
[]
[]
[]
[]
[]
[]
[]
[]
[]
[]
[]
[]
[]
[]
[]
[]
[]
[null,"Dependencia","Política de Gestión y Desempeño","Líneas de Capacitación","Actividad (Nombre de la Tarea)","Responsables  \n(Responsable de la Tarea)","Fecha de Inicio","Fecha de Fin","Fuente de Financiación"]
[]
[]
[null,"Jefatura de Talento Humano","Talento Humano","Inducción","Entrega de un mensaje escrito de bienvenida a la entidad, invitándole a afianzarse en la cultura organizacional.","Jefatura de Talento Humano","2020-01-01","2020-12-31","Findeter"]
[null,null,null,null,"Realización del curso virtual que permite contextualizar al nuevo trabajador en los distintos temas de interés general sobre la Entidad.","Jefatura de Talento Humano","2020-01-01","2020-12-31","Findeter"]
[null,null,null,null,"Recibimiento al nuevo trabajador reforzando los temas clave para su ingreso.","Jefatura de Talento Humano","2020-01-01","2020-12-31","Findeter"]
[null,null,null,null,"Induccion especifica al cargo ","Jefatura de Talento Humano","2020-01-01","2020-12-31","Findeter"]
[null,null,null,"Reinducción","Capacitación anual sobre el SARLAFT.","Oficial de Cumplimiento","2020-08-20","2020-08-20","Findeter"]
[null,null,null,null,"Capacitaciones en servicio al cliente para toda la Entidad","Jefatura de Mercadeo","Abril\nMayo\nAgosto","Abril\nMayo\nAgosto","Findeter"]
[null,null,null,"Corporativa","Curso de actualización en nueva normatividad en SGSST","Jefatura de Talento Humano","2020-03-20","2020-03-20","Findeter"]
[null,null,null,null,"Capacitación por intervención en disminución de brechas según resultados de clima organizacional, cultura, riesgo psicosocial y competencias  para todos los trabajadores","Jefatura de Talento Humano","2020-03-20","2020-03-20","Findeter"]
[null,null,null,null,"Capacitación Códigos  Etica e Integridad y Gobierno Corporativo  ","Jefatura de Talento Humano","2020-04-20","2020-04-20","Findeter"]
[null,null,null,"Específica","Congreso de Gerencia de Proyectos del PMI","Dirección PMO","2020-08-20","2020-08-20","Findeter"]
[null,null,null,null,"Diplomado en gestión ágil de proyectos SCRUM","Dirección PMO","2020-09-20","2020-09-20","Findeter"]
[null,null,null,null,"Curso y examen de certificación como Project Management Professional 1 persona de la PMO","Dirección PMO","2020-06-20","2020-06-20","Findeter"]
[null,null,null,null,"Capacitación técnica en Power BI ","Dirección de Ciudades y Competitividad","2020-03-20","2020-03-20","Findeter"]
[null,null,null,null,"Introducción a la evaluación de impacto para la gestión pública","Vicepresidencia Desarrollo Territorial","2020-10-20","2020-10-20","Findeter"]
[null,null,null,null,"Congreso Panamericano de Lavado de Activos y Financiación del Terrorismo (Oficial de Cumplimiento Principal y su suplente)","Oficial de Cumplimiento","2020-07-20","2020-07-20","Findeter"]
[null,null,null,null,"Capacitación para todos los abogados de la Dirección Jurídica, Dirección de Contratación y Contratación derivada en Derecho Procesal","Dirección Jurídica","2020-04-20","2020-04-20","Findeter"]
[null,null,null,null,"capacitación para todos los abogados de la Dirección Jurídica, Dirección de Contratación y Contratación derivada en Derecho Sustancial","Dirección Jurídica","2020-09-20","2020-09-20","Findeter"]
[null,null,null,null,"Diplomado Presencial en temas presupuestales","Grupo de Presupuesto","2020-01-20","2020-01-20","Findeter"]
[null,null,null,null,"Curso Presencial en temas presupuestales","Grupo de Presupuesto","2020-01-20","2020-01-20","Findeter"]
[null,null,null,null,"Curso / Seminario de la gestion presupuestal en el sector público","Grupo de Presupuesto","2020-06-20","2020-06-20","Findeter"]
[null,null,null,null,"Curso de analisis financiero que permita robustecer las estimaciones financieras de la entidad.","Vicepresidencia de Planeación","2020-09-20","2020-09-20","Findeter"]
[null,null,null,null,"Maestria en Administración-MBA","Vicepresidencia de Planeación (vicepresidenta de planeación)","2020-01-20","2020-01-20","Findeter"]
[null,null,null,null,"Seminario Asobancaria-Mercado de Capitales","Vicepresidencia de Planeación","2020-08-20","2020-08-20","Findeter"]
[null,null,null,null,null,"Dirección de Tesorería","2020-08-20","2020-08-20","Findeter"]
[null,null,null,null,"Certificacion ante AMV","Vicepresidencia de Planeación","2020-01-20","2020-01-20","Findeter"]
[null,null,null,null,null,null,"2020-07-20","2020-07-20","Findeter"]
[null,null,null,null,null,"Dirección de Tesorería","2020-01-20","2020-01-20","Findeter"]
[null,null,null,null,"Participacion taller internacional ALIDE","Vicepresidencia de Planeación","2020-03-20","2020-03-20","Findeter"]
[null,null,null,null,null,null,"2020-07-20","2020-07-20","Findeter"]
[null,null,null,null,"Congreso de Calidad","Gerencia de Planeación y Gestión","2020-08-20","2020-08-20","Findeter"]
[null,null,null,null,"Diplomado en Gestión de procesos de Procesos","Gerencia de Planeación y Gestión","2020-04-20","2020-04-20","Findeter"]
[null,null,null,null,"Diplomados para el equipo de estrategia en temas de prospectiva estratégica, nuevas tendencias de planeación estratégica, esquemas de compensación variable","Gerencia de Planeación y Gestión","2020-02-20","2020-02-20","Findeter"]
[null,null,null,null,"Capacitacion en aspectos de negocios fiduciarios","Dirección de Planeación de Negocios Fiduciarios","2020-02-20","2020-02-20","Findeter"]
[null,null,null,null,"Curso en aspectos relevantes en contratacion","Dirección de Planeación de Negocios Fiduciarios","2020-01-20","2020-01-20","Findeter"]
[null,null,null,null,"Diplomado NIIF-NIC","Dirección de Planeación de Negocios Fiduciarios","2020-03-20","2020-03-20","Findeter"]
[null,null,null,null,"Diplomado en Finanzas para no financieros","Dirección de Planeación de Negocios Fiduciarios","2020-07-20","2020-07-20","Findeter"]
[null,null,null,null,"Actualización en normatividad sobre seguridad social asisten 2 trabajadores","Jefatura de Talento Humano","2020-03-20","2020-03-20","Findeter"]
[null,null,null,null,"Diplomado en normatividad tributaria para 2 trabajadores","Jefatura de Talento Humano","2020-05-20","2020-05-20","Findeter"]
[null,null,null,null,"Congreso talento humano 2020","Jefatura de Talento Humano","2020-06-20","2020-06-20","Findeter"]
[null,null,null,null,"Foros relacionados con la actualización en temas de Bienestar y calidad de vida","Jefatura de Talento Humano","2020-04-20","2020-04-20","Findeter"]
[null,null,null,null,null,null,"2020-07-20","2020-07-20","Findeter"]
[null,null,null,null,null,null,"2020-09-20","2020-09-20","Findeter"]
[null,null,null,null,"Actualización en temas relacionados con selección de personal","Jefatura de Talento Humano","2020-05-20","2020-05-20","Findeter"]
[null,null,null,null,"Capacitacion anual SARO (circular básica y contable de SARO)","Coordinación de Riesgos No Financieros","2020-08-20","2020-08-20","Findeter"]
[null,null,null,null,"Congreso de Prevención del Fraude y Seguridad.","Coordinación de Riesgos No Financieros","2020-10-20","2020-10-20","Findeter"]
[null,null,null,null,"Diplomado en riesgo financiero para personal de riesgo no financiero ","Coordinación de Riesgos No Financieros","2020-08-20","2020-08-20","Findeter"]
[null,null,null,null,"Curso en gesión de Riesgos","Coordinación de Riesgos Financieros","2020-08-20","2020-08-20","Findeter"]
[null,null,null,null,null,null,"2020-10-20","2020-10-20","Findeter"]
[null,null,null,null,"Diplomado de Finanzas Básicas para Abogados","Coordinación de Riesgos Financieros","2020-08-20","2020-08-20","Findeter"]
[null,null,null,null,"Diplomado en contratación, tecnologías de la información o finanzas básicas para no financieros","Vicepresidencia de Operaciones","2020-06-20","2020-06-20","Findeter"]
[null,null,null,null,"Diplomado en costos y presupuestos estrategicos ","Vicepresidencia de Operaciones","2020-08-20","2020-08-20","Findeter"]
[null,null,null,null,"Dplomado de Bolsa, BVC","Dirección de Operaciones","2020-01-20","2020-01-20","Findeter"]
[null,null,null,null,"Diplomado Mercado de Capitales.","Dirección de Operaciones","2020-01-20","2020-01-20","Findeter"]
[null,null,null,null,"Seminario Internacional - Banca","Dirección de Operaciones","2020-07-20","2020-07-20","Findeter"]
[null,null,null,null,"Actualización en normas internacionales de contabilidad, que servirán de base para la actualización y presentación de los estados financieros de Findeter de acuerdo a modificaciones que se puedan presentar a estas normas","Dirección de Contabilidad","2020-05-30","2020-05-30","Findeter"]
[null,null,null,null,null,null,"2020-09-20","2020-09-20","Findeter"]
[null,null,null,null,"Capacitación Scrum Master ","Dirección de Tecnología","2020-03-20","2020-03-20","Findeter"]
[null,null,null,null,"Capacitación Itil Fundamentos V4","Dirección de Tecnología","2020-07-20","2020-07-20","Findeter"]
[null,null,null,null,"Diplomado en Transformacion Digital","Dirección de Tecnología","2020-03-20","2020-03-20","Findeter"]
[null,null,null,null,"Certificacion ITIL V4 Foundation","Dirección de Tecnología","2020-02-20","2020-02-20","Findeter"]
[null,null,null,null,"COBIT","Dirección de Tecnología","2020-08-20","2020-08-20","Findeter"]
[null,null,null,null,"Curso CEH  - Ethical Hacking","Dirección de Tecnología","2020-01-20","2020-01-20","Findeter"]
[null,null,null,null,"Resolución 1063 MVCT","Gerencia de Agua y Saneamiento Básico","2020-03-20","2020-03-20","Findeter"]
[null,null,null,null,"Resolución 0330 RAS 2017: Diseño de redes de acueducto, alcantarillado PTAR y PTAP","Gerencia de Agua y Saneamiento Básico","2020-05-20","2020-05-20","Findeter"]
[null,null,null,null,"Capacitación en formulación con MGA","Gerencia de Banca de Inversión","2020-02-20","2020-02-20","Findeter"]
[null,null,null,null,"Congreso CCI","Gerencia de Banca de Inversión","2020-11-20","2020-11-20","Findeter"]
[null,null,null,null,"Curso Estructuración y Formulación de Proyectos","Gerencia de Banca de Inversión","2020-02-20","2020-02-20","Findeter"]
[null,null,null,null,"Curso de finanza","Jefatura de Banca Internacional","2020-03-20","2020-03-20","Findeter"]
[null,null,null,null,"Capacitación en el manejo de Marketing Digital","Jefatura de Mercadeo","2020-03-20","2020-03-20","Findeter"]
[null,null,null,null,"Conocimientos Financiero","Vicepresidencia Comercial","2020-04-20","2020-04-20","Findeter"]
[null,null,null,null,"Tecnicas de Ventas / Negociación y Cierre de Negocios","Vicepresidencia Comercial","2020-06-20","2020-06-20","Findeter"]
[null,null,null,null,"WOBI","Vicepresidencia Comercial","2020-05-20","2020-05-20","Findeter"]
[null,null,null,null,null,null,"2020-11-20","2020-11-20","Findeter"]
[null,null,null,null,"CRM","Vicepresidencia Comercial","2020-02-20","2020-02-20","Findeter"]
[null,null,null,null,null,null,"2020-08-20","2020-08-20","Findeter"]
[null,null,null,null,"Inteligencia de Negocios","Vicepresidencia Comercial","2020-01-20","2020-01-20","Findeter"]
[null,null,null,null,"Inteligencia de Mercados","Vicepresidencia Comercial","2020-01-20","2020-01-20","Findeter"]
[null,null,null,null,"Animación digital y formatos electrónicos","Gerencia de Comunicaciones, Mercadeo y Responsabilidad Social","2020-02-20","2020-02-20","Findeter"]
[null,null,null,null,"congresos, seminarios o similares ( a través de convocatorias internas, de diferentes temas relevantes)","Gerencia de Planeación y Gestión","2020-08-20","2020-08-20","Findeter"]
[null,null,null,null,"Congresos ASOBANCARIA","Vicepresidencia de Operaciones","2020-06-20","2020-06-20","Findeter"]
[null,null,null,null,null,"Coordinación de Riesgos Financieros","2020-10-20","2020-10-20","Findeter"]
[null,null,null,null,null,"Dirección de Tesorería","2020-01-20","2020-01-20","Findeter"]
[null,null,null,null,"Edición audiovisual","Gerencia de Comunicaciones, Mercadeo y Responsabilidad Social","2020-04-20","2020-04-20","Findeter"]
[null,null,null,null,"Capacitaciones temas varios ","Presidencia","2020-03-20","2020-03-20","Findeter"]
[null,null,null,null,null,null,"2020-04-20","2020-04-20","Findeter"]
[null,null,null,null,null,null,"2020-06-20","2020-06-20","Findeter"]
[null,null,null,null,null,null,"2020-07-20","2020-07-20","Findeter"]
[null,null,null,null,null,null,"2020-09-20","2020-09-20","Findeter"]
[null,null,null,null,"Capacitación Miembros de Junta Directiva ","Asesoría de Presidencia","2020-03-20","2020-03-20","Findeter"]
[null,null,null,null,null,null,"2020-04-20","2020-04-20","Findeter"]
[null,null,null,null,null,null,"2020-06-20","2020-06-20","Findeter"]
[null,null,null,null,null,null,"2020-07-20","2020-07-20","Findeter"]
[null,null,null,null,null,null,"2020-09-20","2020-09-20","Findeter"]
[null,null,null,"Complementaria","Capacitaciones en temas asociados a contratación y demás funciones de la Dirección ","Dirección de Contratación ","2020-03-20","2020-03-20","Findeter"]
[null,null,null,null,null,null,"2020-04-20","2020-04-20","Findeter"]
[null,null,null,null,null,null,"2020-05-20","2020-05-20","Findeter"]
[null,null,null,null,null,null,"2019-06-20","2019-06-20","Findeter"]
[null,null,null,null,null,null,"2020-07-20","2020-07-20","Findeter"]
[null,null,null,null,null,null,"2020-08-20","2020-08-20","Findeter"]
[null,null,null,null,null,null,"2020-11-20","2020-11-20","Findeter"]
[null,null,null,null,"Capacitación en el idioma inglés para los trabajadores","Jefatura de Talento Humano","2020-01-20","2020-03-20","Findeter"]
[null,null,null,"Mejoramiento de Competencias","Programa de formación en metodologías de innovación","Gerencia de Planeación y Gestión","2020-03-20","2020-03-20","Findeter"]
[]
[]
[]
[]
[]
[]
[]
[]
[]
[]
[]
[]
[]
[]
[]
[]
[]
[]
[]
[]
[]
[]
[]
[]
[]
[]
[]
[]
[]
[]
[]
[]
[]
[]
[]
[]
[]
[]
[]
[]
[]
[]
[]
[]
[]
[]
[]
[]
[]
[]
[]
[]
[]
[]
[]
[]
[]
[]
[]
[]
[]
[]
[]
[]
[]
[]
[]
[]
[]
[]
[]
[]
[]
[]
[]
[]
[]
[]
[]
[]
[]
[]
[]
[]
[]
[]
[]
[]
[]
[]
[]
[]
[]
[]
[]
[]
[]
[]
[]
[]
[]
[]
[]
[]
[]
[]
[]
[]
[]
[]
[]
[]
[]
[]
[]
[]
[]
[]
[]
[]
[]
[]
[]
[]
[]
[]
[]
[]
[]
[]
[]
[]
[]
[]
[]
[]
[]
[]
[]
[]
[]
[]
[]
[null,"Área Organizativa","Nombre de la tarea","Descripción ","Política de Gestión y Desempeño","Responsable de tarea ","Fecha Inicio","Fecha Fin","Fuente de Financiación "]
[null,"Gerencia de Gestión Humana y Administrativa","Capacitacion  ","Formación Integral integrantes de la Brigada de emergencia ","SGI","Gerencia de Gestión Humana y Administrativa","2019-02-01","2019-12-15","ARL POSITIVA"]
[null,"Gerencia de Gestión Humana y Administrativa","Capacitacion  ","Capacitación en Plan de Emergencias a todo el personal","SGI","Gerencia de Gestión Humana y Administrativa","2019-04-15","2019-04-19","ARL POSITIVA"]
[null,"Gerencia de Gestión Humana y Administrativa","Capacitacion  ","Capacitación en Higiene Postural para todos los colaboradores","SGI","Gerencia de Gestión Humana y Administrativa","2019-05-02","2019-05-03","ARL POSITIVA"]
[null,"Gerencia de Gestión Humana y Administrativa","Capacitacion  ","Capacitación en Riesgo Público conductores","SGI","Gerencia de Gestión Humana y Administrativa","2019-05-10","2019-05-11","ARL POSITIVA"]
[null,"Gerencia de Gestión Humana y Administrativa","Capacitacion  ","Uso y mantenimiento adecuado de EPP - personal Area Técnica","SGI","Gerencia de Gestión Humana y Administrativa","2019-07-15","2019-07-19","ARL POSITIVA"]
[null,"Gerencia de Gestión Humana y Administrativa","Capacitacion  ","Capacitación en Riesgo Público personal del Area Técnica","SGI","Gerencia de Gestión Humana y Administrativa","2019-08-12","2019-08-16","ARL POSITIVA"]
[null,"Gerencia de Gestión Humana y Administrativa","Capacitacion  ","Curso Sistema de Gestión en Seguridad y Salud en el Trabajo","SGI","Gerencia de Gestión Humana y Administrativa","2019-10-15","2019-10-25","Presupuesto de la Entidad"]
[null,"Gerencia de Gestión Humana y Administrativa","Capacitacion  ","Capacitación en Orden y Limpieza a todo el personal","SGI","Gerencia de Gestión Humana y Administrativa","2019-11-18","2019-11-22","ARL POSITIVA"]
[null,"Gerencia de Gestión Humana y Administrativa","Capacitacion  ","Uso y mantenimiento adecuado de EPP - Contratistas","SGI","Gerencia de Gestión Humana y Administrativa","2019-07-22","2019-07-23","ARL POSITIVA - Contratista aplicable"]
[null,"Gerencia de Gestión Humana y Administrativa","Capacitacion  ","Capacitación manejo seguro de cargas - Contratistas","SGI","Gerencia de Gestión Humana y Administrativa","2019-08-20","2019-08-21","ARL POSITIVA - Contratista aplicable"]
[null,"Gerencia de Gestión Humana y Administrativa","Capacitacion  ","Capacitación Riesgo Químico - Contratistas","SGI","Gerencia de Gestión Humana y Administrativa","2019-08-20","2019-08-21","ARL POSITIVA - Contratista aplicable"]
[null,"Gerencia de Gestión Humana y Administrativa","Capacitacion  ","Capacitación Riesgo mecánico - Contratistas","SGI","Gerencia de Gestión Humana y Administrativa","2019-09-16","2019-09-17","ARL POSITIVA - Contratista aplicable"]
[null,"Gerencia de Gestión Humana y Administrativa","Capacitacion  ","Actualizacion en lesgislacion de seguridad social y nomina","Capacitacion","Gerencia de Gestión Humana y Administrativa","2019-04-01","2019-06-30","Presupuesto de la Entidad"]
[null,"Gerencia de Gestión Humana y Administrativa","Capacitacion  ","Actualizacion en procesos de elaboracion y seguimiento de costos","Capacitacion","Direccion de Contabilidad y Presupuesto ","2019-06-01","2019-10-30","Presupuesto de la Entidad"]
[null,"Gerencia de Gestión Humana y Administrativa","Capacitacion  ","Actualizacion en procesos de elaboracion y seguimiento de ejecucion presupuestal privado y publico","Capacitacion","Direccion de Contabilidad y Presupuesto ","2019-07-01","2019-09-30","Presupuesto de la Entidad"]
[null,"Gerencia de Gestión Humana y Administrativa","Capacitacion  ","Actualizacion mineria de datos, modelos de risegos financieros","Capacitacion","Vicepresidencia de Riesgos","2019-04-01","2019-06-30","Presupuesto de la Entidad"]
[null,"Gerencia de Gestión Humana y Administrativa","Capacitacion  ","Actualizacion Normas Internacionales NIIF","Capacitacion","Direccion de Contabilidad y Presupuesto ","2019-07-01","2019-09-30","Presupuesto de la Entidad"]
[null,"Gerencia de Gestión Humana y Administrativa","Capacitacion  ","Actualizacion normatividad tributaria - Impuestos","Capacitacion","Direccion de Contabilidad y Presupuesto ","2019-02-01","2019-05-30","Presupuesto de la Entidad"]
[null,"Gerencia de Gestión Humana y Administrativa","Capacitacion  ","Actualizacion temas en talento humano","Capacitacion","Gerencia de Gestión Humana y Administrativa","2019-03-01","2019-07-01","Presupuesto de la Entidad"]
[null,"Gerencia de Gestión Humana y Administrativa","Capacitacion  ","Análisis de Riesgos ambientales y sociales ARAS","Capacitacion","Jefatura de Cartera y Normalizacion ","2019-03-01","2019-07-01","Presupuesto de la Entidad"]
[null,"Gerencia de Gestión Humana y Administrativa","Capacitacion  ","Capacitación anual SARO SARLAFT","Capacitacion","Vicepresidencia de Riesgos","2019-09-01","2019-10-30","Presupuesto de la Entidad"]
[null,"Gerencia de Gestión Humana y Administrativa","Capacitacion  ","Capacitación Auditores Internos (ISO 9001 e ISO 14001 Versión 2015)","Capacitacion","Gerencia de Planeacion y Gestion ","2019-02-01","2019-06-30","Presupuesto de la Entidad"]
[null,"Gerencia de Gestión Humana y Administrativa","Capacitacion  ","Capacitación de SAC enfocadas en servicio al cliente","Capacitacion","Jefatura de mercadeo ","2019-02-15","2019-06-30","Presupuesto de la Entidad"]
[null,"Gerencia de Gestión Humana y Administrativa","Capacitacion  ","Capacitación en gobierno corporativo","Capacitacion","Gerencia de Planeacion y Gestion ","2019-10-01","2019-12-30","Presupuesto de la Entidad"]
[null,"Gerencia de Gestión Humana y Administrativa","Capacitacion  ","Capacitación en juntas directivas","Capacitacion","Secretaria General ","2019-02-01","2019-05-01","Presupuesto de la Entidad"]
[null,"Gerencia de Gestión Humana y Administrativa","Capacitacion  ","Certificaciones ante la AMV","Capacitacion","Direccion de Tesoreria ","2019-02-01","2019-09-01","Presupuesto de la Entidad"]
[null,"Gerencia de Gestión Humana y Administrativa","Capacitacion  ","Congreso Colombiano de Ecología","Capacitacion","Vicepresidencia de Planeacion ","2019-03-01","2019-06-01","Presupuesto de la Entidad"]
[null,"Gerencia de Gestión Humana y Administrativa","Capacitacion  ","Congreso de gerencia de proyectos","Capacitacion","Direccion de PMO ","2019-03-01","2019-06-01","Presupuesto de la Entidad"]
[null,"Gerencia de Gestión Humana y Administrativa","Capacitacion  ","Congreso de Mercado de Capitales","Capacitacion","Direccion de Tesoreria ","2019-10-01","2019-11-30","Presupuesto de la Entidad"]
[null,"Gerencia de Gestión Humana y Administrativa","Capacitacion  ","Congreso de sostenibilidad ","Capacitacion","Vicepresidencia de Planeacion ","2019-02-01","2019-04-01","Presupuesto de la Entidad"]
[null,"Gerencia de Gestión Humana y Administrativa","Capacitacion  ","Congreso de Tesorería","Capacitacion","Direccion de Tesoreria ","2019-06-01","2019-08-01","Presupuesto de la Entidad"]
[null,"Gerencia de Gestión Humana y Administrativa","Capacitacion  ","Congresos ANDESCO, CAMACOL, CCI, ACODAL, ANDICOM, entre otros","Capacitacion","Vicepresidencia Comercial/ tecnica","2019-02-01","2019-10-01","Presupuesto de la Entidad"]
[null,"Gerencia de Gestión Humana y Administrativa","Capacitacion  ","Convencion Bancaria","Capacitacion","Vicepresidencia Comercial  ","2019-08-01","2019-10-01","Presupuesto de la Entidad"]
[null,"Gerencia de Gestión Humana y Administrativa","Capacitacion  ","Curso de Redacción","Capacitacion","Gerencia de Gestión Humana y Administrativa","2019-03-01","2019-06-01","Presupuesto de la Entidad"]
[null,"Gerencia de Gestión Humana y Administrativa","Capacitacion  ","Curso en APPS","Capacitacion","Gerencia  de Estructuracion de Proyectos ","2019-07-01","2019-09-01","Presupuesto de la Entidad"]
[null,"Gerencia de Gestión Humana y Administrativa","Capacitacion  ","Curso en derecho ambiental","Capacitacion","Vicepresidencia de Planeacion ","2019-07-01","2019-09-01","Presupuesto de la Entidad"]
[null,"Gerencia de Gestión Humana y Administrativa","Capacitacion  ","Curso en derecho financiero","Capacitacion","Vicepresidencia de Riesgos","2019-09-01","2019-11-01","Presupuesto de la Entidad"]
[null,"Gerencia de Gestión Humana y Administrativa","Capacitacion  ","Curso en derecho procesal y derecho contencioso administrativo","Capacitacion","Direccion Juridica","2019-08-01","2019-10-01","Presupuesto de la Entidad"]
[null,"Gerencia de Gestión Humana y Administrativa","Capacitacion  ","Curso en herramientas e implementación Mejora de procesos","Capacitacion","Gerencia de Planeacion y Gestion ","2019-07-01","2019-09-01","Presupuesto de la Entidad"]
[null,"Gerencia de Gestión Humana y Administrativa","Capacitacion  ","Curso en Movilidad Electrica","Capacitacion","Gerencia de sostenibilidad  y nuevos negocios ","2019-04-01","2019-07-01","Presupuesto de la Entidad"]
[null,"Gerencia de Gestión Humana y Administrativa","Capacitacion  ","Curso project professional Avanzado","Capacitacion","Direccion de PMO ","2019-04-01","2019-07-01","Presupuesto de la Entidad"]
[null,"Gerencia de Gestión Humana y Administrativa","Capacitacion  ","Curso y examen de certificación como Project Management Professional","Capacitacion","Direccion de PMO ","2019-03-01","2019-05-01","Presupuesto de la Entidad"]
[null,"Gerencia de Gestión Humana y Administrativa","Capacitacion  ","Diplomado Análisis en mercados y competencia","Capacitacion","Vicepresidencia Comercial ","2019-03-01","2019-06-01","Presupuesto de la Entidad"]
[null,"Gerencia de Gestión Humana y Administrativa","Capacitacion  ","Diplomado en Finanzas Verdes","Capacitacion","Vicepresidencia de Riesgos","2019-02-01","2019-05-01","Presupuesto de la Entidad"]
[null,"Gerencia de Gestión Humana y Administrativa","Capacitacion  ","Diplomado en Gestion Urbana","Capacitacion","Gerencia de sostenibilidad  y nuevos negocios ","2019-03-01","2019-07-01","Presupuesto de la Entidad"]
[null,"Gerencia de Gestión Humana y Administrativa","Capacitacion  ","Diplomado en mecanismos alternativos para solucion de conflictos","Capacitacion","Vicepresidencia de Riesgos","2019-08-01","2019-10-30","Presupuesto de la Entidad"]
[null,"Gerencia de Gestión Humana y Administrativa","Capacitacion  ","Diplomado en mercado de derivados en Colombia","Capacitacion","Direccion de Operaciones ","2019-08-01","2019-10-30","Presupuesto de la Entidad"]
[null,"Gerencia de Gestión Humana y Administrativa","Capacitacion  ","Diplomado Marketing Digital","Capacitacion","Vicepresidencia de Planeacion ","2019-02-01","2019-05-30","Presupuesto de la Entidad"]
[null,"Gerencia de Gestión Humana y Administrativa","Capacitacion  ","Diplomado planeacion estrategica y/o pensamiento estrategico basado en riesgos","Capacitacion","Vicepresidencia de Riesgos","2019-05-01","2019-09-30","Presupuesto de la Entidad"]
[null,"Gerencia de Gestión Humana y Administrativa","Capacitacion  ","Diplomado riesgo operativo","Capacitacion","Vicepresidencia de Riesgos","2019-06-01","2019-11-30","Presupuesto de la Entidad"]
[null,"Gerencia de Gestión Humana y Administrativa","Capacitacion  ","Diplomado SARLAFT","Capacitacion","Vicepresidencia de Riesgos","2019-08-01","2019-11-30","Presupuesto de la Entidad"]
[null,"Gerencia de Gestión Humana y Administrativa","Capacitacion  ","Escuela de ventas","Capacitacion","Vicepresidencia Comercial ","2019-02-01","2019-11-30","Presupuesto de la Entidad"]
[null,"Gerencia de Gestión Humana y Administrativa","Capacitacion  ","Estructuracion y modelos de APP","Capacitacion","Gerencia  de Estructuracion de Proyectos ","2019-06-01","2019-09-30","Presupuesto de la Entidad"]
[null,"Gerencia de Gestión Humana y Administrativa","Capacitacion  ","Finanzas Corporativas","Capacitacion","Vicepresidencia Comercial ","2019-04-01","2019-08-30","Presupuesto de la Entidad"]
[null,"Gerencia de Gestión Humana y Administrativa","Capacitacion  ","Finanzas territoriales","Capacitacion","Vicepresidencia Tecnica ","2019-03-01","2019-07-30","Presupuesto de la Entidad"]
[null,"Gerencia de Gestión Humana y Administrativa","Capacitacion  ","Foros y programas de cultura ciudadana trabajando con la comunidad y gestión social de proyectos con las comunidades.","Capacitacion","Gerencia de sostenibilidad  y nuevos negocios ","2019-04-01","2019-06-30","Presupuesto de la Entidad"]
[null,"Gerencia de Gestión Humana y Administrativa","Capacitacion  ","Gerencia Integral del crédito, la cartera y la cobranza","Capacitacion","Jefatura de Cartera y Normalizacion ","2019-09-01","2019-11-30","Presupuesto de la Entidad"]
[null,"Gerencia de Gestión Humana y Administrativa","Capacitacion  ","Gestión del riesgo operacional - desarrollo de herramintas para la gestión estratégica","Capacitacion","Vicepresidencia de Riesgos","2019-10-01","2019-12-30","Presupuesto de la Entidad"]
[null,"Gerencia de Gestión Humana y Administrativa","Capacitacion  ","Herramientas ofimáticas","Capacitacion","Gerencia de Gestión Humana y Administrativa","2019-06-01","2019-10-30","Presupuesto de la Entidad"]
[null,"Gerencia de Gestión Humana y Administrativa","Capacitacion  ","Inteligencia de negocios","Capacitacion","Jefatura de inteligencia del negocio","2019-04-01","2019-07-30","Presupuesto de la Entidad"]
[null,"Gerencia de Gestión Humana y Administrativa","Capacitacion  ","Investigacion de mercados","Capacitacion","Jefatura de mercadeo ","2019-04-01","2019-06-30","Presupuesto de la Entidad"]
[null,"Gerencia de Gestión Humana y Administrativa","Capacitacion  ","La gestión efectiva de los riesgos de balance y precios de transferencia","Capacitacion","Vicepresidencia de Riesgos","2019-05-01","2019-08-30","Presupuesto de la Entidad"]
[null,"Gerencia de Gestión Humana y Administrativa","Capacitacion  ","Negociaciones Win to Win","Capacitacion","Vicepresidencia comercial ","2019-02-01","2019-05-30","Presupuesto de la Entidad"]
[null,"Gerencia de Gestión Humana y Administrativa","Capacitacion  ","Organización de eventos, protocolo y relaciones institucionales ","Capacitacion","Vicepresidencia comercial ","2019-09-01","2019-11-30","Presupuesto de la Entidad"]
[null,"Gerencia de Gestión Humana y Administrativa","Capacitacion  ","Participación académica en Expomarketing","Capacitacion","Vicepresidencia comercial ","2019-08-01","2019-10-30","Presupuesto de la Entidad"]
[null,"Gerencia de Gestión Humana y Administrativa","Capacitacion  ","Participacion eventos de innovacion y conocimiento","Capacitacion","Gerencia de Planeacion y Gestion ","2019-09-01","2019-11-30","Presupuesto de la Entidad"]
[null,"Gerencia de Gestión Humana y Administrativa","Capacitacion  ","Politicas antifraude","Capacitacion","Vicepresidencia de Riesgos","2019-07-01","2019-08-30","Presupuesto de la Entidad"]
[null,"Gerencia de Gestión Humana y Administrativa","Capacitacion  ","Presentaciones efectivas, Comunicación asertiva","Capacitacion","Gerencia de Gestión Humana y Administrativa","2019-09-01","2019-11-30","Presupuesto de la Entidad"]
[null,"Gerencia de Gestión Humana y Administrativa","Capacitacion  ","Programa de inglés","Capacitacion","Gerencia de Gestión Humana y Administrativa","2019-02-01","2019-12-30","Presupuesto de la Entidad"]
[null,"Gerencia de Gestión Humana y Administrativa","Capacitacion  ","Programa de Liderazgo","Capacitacion","Gerencia de Gestión Humana y Administrativa","2019-03-01","2019-11-30","Presupuesto de la Entidad"]
[null,"Gerencia de Gestión Humana y Administrativa","Capacitacion  ","Project Financie","Capacitacion","Direccion de PMO ","2019-03-01","2019-05-30","Presupuesto de la Entidad"]
[null,"Gerencia de Gestión Humana y Administrativa","Capacitacion  ","Resolución 0330 RAS 2017: Diseño de redes de acueducto, alcantarillado PTAR y PTAP para 25 personas","Capacitacion","Vicepresidencia Tecnica ","2019-04-01","2019-05-30","Presupuesto de la Entidad"]
[null,"Gerencia de Gestión Humana y Administrativa","Capacitacion  ","Resolución 1063 MVCT","Capacitacion","Vicepresidencia Tecnica ","2019-03-01","2019-06-30","Presupuesto de la Entidad"]
[null,"Gerencia de Gestión Humana y Administrativa","Capacitacion  ","Riesgo de crédito","Capacitacion","Vicepresidencia de Riesgos","2019-08-01","2019-11-30","Presupuesto de la Entidad"]
[null,"Gerencia de Gestión Humana y Administrativa","Capacitacion  ","Riesgo de mercado y liquidez","Capacitacion","Vicepresidencia de Riesgos","2019-06-01","2019-10-30","Presupuesto de la Entidad"]
[null,"Gerencia de Gestión Humana y Administrativa","Capacitacion  ","Riesgo financiero","Capacitacion","Vicepresidencia de Riesgos","2019-08-01","2019-11-30","Presupuesto de la Entidad"]
[null,"Gerencia de Gestión Humana y Administrativa","Capacitacion  ","Seminario Taller Plan de Riesgos y Generación de Valor de la Auditoría Interna","Capacitacion","Vicepresidencia de Riesgos","2019-09-01","2019-11-30","Presupuesto de la Entidad"]
[null,"Gerencia de Gestión Humana y Administrativa","Capacitacion  ","Sistema de continuidad del negocio","Capacitacion","Vicepresidencia de Riesgos","2019-04-01","2019-07-30","Presupuesto de la Entidad"]
[null,"Gerencia de Gestión Humana y Administrativa","Capacitacion  ","Sistema General de Regalias","Capacitacion","Vicepresidencia Comercial ","2019-03-01","2019-05-30","Presupuesto de la Entidad"]
[null,"Gerencia de Gestión Humana y Administrativa","Capacitacion  ","Taller Dialogo Social","Capacitacion","Gerencia de Gestión Humana y Administrativa","2019-03-01","2019-05-30","Presupuesto de la Entidad"]
[null,"Gerencia de Gestión Humana y Administrativa","Capacitacion  ","Taller Gestión de Cobranza","Capacitacion","Jefatura de Cartera y Normalizacion ","2019-07-01","2019-09-30","Presupuesto de la Entidad"]
[null,"Gerencia de Gestión Humana y Administrativa","Capacitacion  ","Técnicas de análisis de datos","Capacitacion","Vicepresidencia comercial","2019-03-01","2019-06-01","Presupuesto de la Entidad"]
[null,"Gerencia de Gestión Humana y Administrativa","Capacitacion  ","WOBI","Capacitacion","Vicepresidencia comercial","2019-10-01","2019-11-30","Presupuesto de la Entidad"]
[null,"Gerencia de Gestión Humana y Administrativa","Capacitacion  ","XX Jornadas Internacionales en Derecho del Medio Ambiente “El Derecho de las Aguas en el Siglo XXI","Capacitacion","Gerencia de sostenibilidad  y nuevos negocios ","2019-02-01","2019-05-01","Presupuesto de la Entidad"]

{"sheet":"Plan de Incentivos","index":8,"n_rows":4,"n_cols":4,"rows_kept":4,"cut":false,"hidden":false,"merged":[[3,3,7,8]]}
[]
[]
[]
[null,null,null,"PLAN DE INCENTIVOS INSTITUCIONALES\nFINDETER 2021"]

{"sheet":" Plan MIPG ","index":9,"n_rows":56,"n_cols":16,"rows_kept":56,"cut":false,"hidden":false,"merged":[[3,5,6,11]]}
[]
[null,null,null,null,null,null,null,null,null,null,null,null,null,null,null," v"]
[]
[null,null,null,null,null,"PLAN DEL MODELO INTEGRADO DE PLANEACIÓN Y GESTION  - MIPG \nFINDETER 2021"]
[]
[]
[]
[]
[]
[null,null,"Perspectiva","Subtema (Dimensión MIPG)","Política","Objetivo ","Iniciativa ","Categoría","Actividad (Nombre de la Tarea)","Descripción de la Tarea y Entregable","Area Responsable en Findeter","Persona Responsable de documentar acciones","Fecha Inicial","Fecha Final","Fuente de Financiación"]
[null,null,"Gestión Misional","Direccionamiento Estratégico y Planeación","Planeación Institucional","N/A","N/A","Planeación Institucional","Llevar a cabo Reuniones de Análisis Estratégico - RAE ","Las reuniones de análisis estratégico - RAE corporativas y por dependencia, permiten realizar el seguimiento de la estratégia para la toma de decisiones oportuna. Se programan dos reuniones por dependencia y tres corporativas","Gerencia de Planeación y Gestión - Planeación Estratégica","Lida Imelda Giraldo Leiton / Clara Mabel Ruiz Sierra (Planeación Estratégica)",44228,44561,"Findeter"]
[null,null,"Gestión de Capacidades Institucionales","Gestión con Valores para el Resultado\n(Ventanilla hacia adentro)","Defensa Jurídica","Promover la adecuada administración de los recursos físicos, financieros y la defensa técnica de las Entidades del Sector Hacienda."," Desarrollar mecanismos para un adecuado ejercicio de defensa jurídica de las Entidades del Sector Hacienda.","Defensa Juridica","Participar en las mesas sectoriales de la política de Defensa Jurídica del Sector Hacienda","Participar en las reuniones programadas por el líder sectorial de la política de Defensa Jurídica del MHCP y entregar la información requerida para el fortalecimiento y documentación  de estas políticas.","Dirección Jurídica","Susan Echeverry",44197,44286,"Findeter"]
[null,null,"Gestión de Capacidades Institucionales","Gestión de Capacidades Institucionales (Ventanilla hacia adentro)","Defensa Jurídica","Promover la adecuada administración de los recursos físicos, financieros y la defensa técnica de las Entidades del Sector Hacienda."," Desarrollar mecanismos para un adecuado ejercicio de defensa jurídica de las Entidades del Sector Hacienda.","Defensa Juridica","Participar en las sesiones programadas por la ANDJE dentro de la iniciativa de Comunidad jurídica del conocimiento.\n","Participar mínimo en seis (6) de las sesiones programadas para la vigencia 2021 por la ANDJE dentro de la iniciativa de Comunidad jurídica del conocimiento, ya sea en forma presencial o virtual la participación es sin mínimo número determinado de apoderados judiciales de la entidad.\nSe busca que los apoderados reciban las capacitaciones que ofrece la ANDJE toda vez que con ello se fortaleza la defensa judicial y extrajudiciales de las entidades que integran el Sector Hacienda\nEntregable. Certificación emitida por la ANDJE","Dirección Jurídica","Susan Echeverry",44200,44550,"Findeter"]
[null,null,"Gestión de Capacidades Institucionales","Gestión de Capacidades Institucionales (Ventanilla hacia adentro)","Gestión Presupuestal y Eficiencia del Gasto Público"," Promover la adecuada administración de los recursos físicos, financieros y la defensa técnica de las Entidades del Sector Hacienda. ","Implementar buenas practicas para la administración de recursos financieros en las Entidades del Sector Hacienda","Gestión Presupuestal","Implementar buenas practicas para la administración presupuestal de Findeter","Establecimiento de reuniones mensuales para el seguimiento a la ejecución del presupuesto de la Entidad","Grupo de Presupuesto - Vicepresidencia de Planeación","Francisco José Ledesma Pérez / Diana Marcela Gómez Aguilar ",44198,44561,"Findeter"]
[null,null,"Gestión de Capacidades Institucionales","Gestión del Conocimiento y la Innovación","Gestión del Conocimiento y la Innovación","Fortalecer las capacidades de Gestión de Conocimiento y la innovación en las entidades del Sector Hacienda","Fortalecer la implementación de la política de Gestión de Conocimiento e Innovación en las Entidades del Sector","Innovacion y Conocimiento","Analizar los resultados de la política de Gestión del Conocimiento y la Innovación en la medición del  Furag  de la vigencia  2020.","De acuerdo con los resultados obtenidos en la medición del FURAG de la gestión 2020, que realiza el DAFP en la vigencia 2021. Cada entidad del Sector Hacienda, analizará sus resultados y ajustará cuando lo considere pertinente, los planes con el propósito de generar acciones que permitan cerrar brecha, en relación con la política de Gestión del Conocimiento y la Innovación.\nEntregable. Documento que soporte el análisis de los resultados del Furag o planes ajustados.","Gerencia de Planeación y Gestión - CIC","Andrea Rojas Avila (Equipo CIC)",44348,44561,"Findeter"]
[null,null,"Gestión de Capacidades Institucionales","Gestión del Conocimiento y la Innovación","Gestión del Conocimiento y la Innovación","Fortalecer las capacidades de Gestión de Conocimiento y la innovación en las entidades del Sector Hacienda","Fortalecer la implementación de la política de Gestión de Conocimiento e Innovación en las Entidades del Sector","Innovacion y Conocimiento","Participar en  las mesas de trabajo sectoriales de la política de Gestión del Conocimiento e innovación","Participar en  dos mesas de trabajo sectoriales de la política de Gestión del conocimiento e innovación. 1 cada semestre.","Gerencia de Planeación y Gestión - CIC","Andrea Rojas Avila (Equipo CIC)",44228,44561,"Findeter"]
[null,null,"Gestión de Capacidades Institucionales","Gestión del Conocimiento y la Innovación","Gestión del Conocimiento y la Innovación","Fortalecer las capacidades de Gestión de Conocimiento y la innovación en las entidades del Sector Hacienda","Fortalecer la implementación de la política de Gestión de Conocimiento e Innovación en las Entidades del Sector","Innovacion y Conocimiento","Realizar dos publicaciones de innovación y conocimiento ","Publicaciones que contengan información sobre lo realizado por el Centro de Innovación y Conocimiento ","Gerencia de Planeación y Gestión - CIC","Andrea Rojas Avila (Equipo CIC)",44198,44561,"Findeter"]
[null,null,"Gestión de Capacidades Institucionales","Gestión del Conocimiento y la Innovación","Gestión del Conocimiento y la Innovación","Fortalecer las capacidades de Gestión de Conocimiento y la innovación en las entidades del Sector Hacienda","Fortalecer la implementación de la política de Gestión de Conocimiento e Innovación en las Entidades del Sector","Innovacion y Conocimiento","Solucionar 2 retos de la entidad.","Retos identificados con su respectiva solución y plan de implementación. ","Gerencia de Planeación y Gestión - CIC","Andrea Rojas Avila (Equipo CIC)",44287,44561,"Findeter"]
[null,null,"Gestión de Capacidades Institucionales","Talento Humano","Integridad","Fortalecer las capacidades institucionales de las entidades del sector hacienda"," Fortalecer la implementación de la política de integridad en las Entidades del Sector","Integridad","Realizar las actividades conducentes a la interiorización de los instrumentos del Gobierno Corporativo de la Entidad.","Se realizarán las actividades encaminadas a la interiorización de los códigoe de ética e Integridad, así como de Buen Goberno de la Entidad.","Jefatura de Talento Humano","Ana Sheyla Ordoñez",44198,44561,"Findeter"]
[null,null,"Gestión de Capacidades Institucionales","Talento Humano","Integridad","Fortalecer las capacidades institucionales de las entidades del sector hacienda"," Fortalecer la implementación de la política de integridad en las Entidades del Sector","Integridad","Formular el plan estratégico de gestión de conflictos de intereses dentro del marco de la Política de Talento Humano","Establecer las acciones que contribuyan a la gestión de los conflictos de interés en la Entidad","Jefatura de Talento Humano","Grupo de Implementación",44136,44561,"Findeter"]
[null,null,"Gestión de Capacidades Institucionales","Talento Humano","Talento Humano","Fortalecer las capacidades del Talento Humano y la Innovación en las entidades del Sector Hacienda","Fortalecer la implementación de la política del Talento Humano en las Entidades del Sector Hacienda","Talento Humano","Analizar los resultados de la política de Talento Humano en la medición del  Furag  de la vigencia  2021.","De acuerdo con los resultados obtenidos en la medición del FURAG de la gestión 2020, que realiza el DAFP en la vigencia 2021. Cada entidad del Sector Hacienda, analizará sus resultados y ajustará cuando lo considere pertinente, los planes con el propósito de generar acciones que permitan cerrar brecha, en relación con la política de Talento Humano y de integridad.\nEntregable. Documento que soporte el análisis de los resultados del Furag o planes ajustados.","Jefatura de Talento Humano","Ana Sheyla Ordoñez",44317,44469,"Findeter"]
[null,null,"Gestión de Capacidades Institucionales","Talento Humano","Talento Humano","Fortalecer las capacidades del Talento Humano y la Innovación en las entidades del Sector Hacienda","Fortalecer la implementación de la política del Talento Humano en las Entidades del Sector Hacienda","Talento Humano","Participar en las capacitaciones sectoriales de la política de Talento Humano","Participar en las capacitaciones sectoriales de la política de Talento Humano de conformidad con las posibilidades y apoyo de las demás Entidades del Sector según el caso.\n","Jefatura de Talento Humano","Ana Sheyla Ordoñez",44200,44561,"Findeter"]
[null,null,"Gestión de Capacidades Institucionales","Talento Humano","Talento Humano","Fortalecer las capacidades del Talento Humano y la Innovación en las entidades del Sector Hacienda","Fortalecer la implementación de la política del Talento Humano en las Entidades del Sector Hacienda","Talento Humano","Participar en las mesas sectoriales de la dimensión de Talento Humano.","Participar en las reuniones programadas por el líder sectorial de la política de Talento Humano e Integridad del MHCP y entregar la información requerida para el fortalecimiento y documentación  de estas políticas.","Jefatura de Talento Humano","Ana Sheyla Ordoñez",44200,44561,"Findeter"]
[null,null,"Gestión de Capacidades Institucionales","Talento Humano","Talento Humano","Fortalecer las capacidades del Talento Humano y la Innovación en las entidades del Sector Hacienda","Fortalecer la implementación de la política del Talento Humano en las Entidades del Sector Hacienda","Talento Humano","Realizar las acciones que conforman el plan de trabajo de la Gestión Estratégica del Talento Humano en Finfdeter","Se realizarán acciones que hacen parte del modelo efr (alineado con las Rutas de Creación de Valor) con énfasis en los siguientes aspectos: Desarrollo Profesional; Flexibilidad Temporal o Espacial; Calidad en el Empleo; Apoyo a las Familias; Igualdad de Oportunidades","Jefatura de Talento Humano","Ana Sheyla Ordoñez",44198,44561,"Findeter"]
[null,null,"Gestión para el Resultado","Gestión para el Resultado (Ventanilla hacia adentro)","Fortalecimiento Organizacional y Simplificación de Procesos","Fortalecer la gestión organizacional y por procesos de las entidades del Sector Haciendada"," Desarrollar acciones encaminadas a fortalecer la gestión organizacional y por procesos de la entidades del Sector Hacienda","Fortalecimiento Organizacional y Simplificación de Procesos","Diseñar, mejorar o actualizar la cadena de valor de FINDETER (Fase I y Fase II","Realizar el diseño, mejora y actualización de la cadena de valor de Findeter teniendo en cuenta los cambios de la estructura organizacional y el modelo de negocio.  El alcance incluye la actualización de la cadena de valor de Findeter, priorización de los procesos a intervenir, estructuración de los proyectos asociados a los procesos a intervenir, pruebas de uso, divulgación y sensibilización ","Gerencia de Planeación y Gestión - Mejoramiento de Procesos","Claudia Viviana Rojas Salcedo  / Luisa Fernanda Oviedo / Samanta Armesto Ruedas (Mejoramiento de Procesos)",44197,44286,"Findeter"]
[null,null,"Gestión para el Resultado","Gestión para el Resultado (Ventanilla hacia adentro)","Gobierno Digital:  Seguridad de la información"," Fortalecer la Gestión TIC y de la Información en las entidades del Sector Hacienda","Fortalecer el Gobierno Digital en las entidades del SH","Gobierno en Línea - Seguridad de la Informacion","Atender los hallagos de las auditorias de seguridad de la información y ciberseguridad","Ejecutar y cerrar los planes de acciión que se establecieron para los hallagos de las auditorias de contorl interno y revisoria fiscal en seguridad de la información y ciberseguridad realizadas en el 2020","Vicepresidencia de Riesgos - (Seguridad y Privacidad de la Información)","Carlos Alberto Guzman",44197,44561,"Findeter"]
[null,null,"Gestión para el Resultado","Gestión para el Resultado (Ventanilla hacia adentro)","Gobierno Digital:  Seguridad de la información"," Fortalecer la Gestión TIC y de la Información en las entidades del Sector Hacienda","Fortalecer el Gobierno Digital en las entidades del SH","Gobierno en Línea - Seguridad de la Informacion","Ejecutar plan de seguridad de la informacion y ciberseguridad","Cumplir las actividades establecidas en el plan de seguridad de la informacion y ciberseguridad 2021","Vicepresidencia de Riesgos - (Seguridad y Privacidad de la Información)","Carlos Alberto Guzman",44197,44561,"Findeter"]
[null,null,"Gestión para el Resultado","Gestión para el Resultado (Ventanilla hacia adentro)","Gobierno Digital:  Seguridad de la información"," Fortalecer la Gestión TIC y de la Información en las entidades del Sector Hacienda","Fortalecer el Gobierno Digital en las entidades del SH","Gobierno en Línea - Seguridad de la Informacion","Ejecutar plan de tratamiento de riesgos de seguridad de la informaciión","Cumplir las actividades establecidas en el plan de tratameinto de riesgos de seguridad de la informacion 2021","Vicepresidencia de Riesgos - (Seguridad y Privacidad de la Información)","Carlos Alberto Guzman",44197,44561,"Findeter"]
[null,null,"Gestión para el Resultado","Gestión para el Resultado (Ventanilla hacia adentro)","Gobierno Digital: TIC para la Gestión"," Fortalecer la Gestión TIC y de la Información en las entidades del Sector Hacienda","Fortalecer el Gobierno Digital en las entidades del SH","Gobierno Digital","Estrategía Uso y Apropíación","Ejecutar acciones de mejora a partir de los resultados obtenido a través de los indicadores de uso y apropiación. Desde el sistema de control interno efectuar su verificación.1- Análisis y Planeación de los resultados obtenidos y plan de mejoras.\n2-Ejecutar plan de mejoras de por lo menos 1 herramienta por trimestre","Dirección de Tecnología","Miguel Orlando Ricaurte",44197,44561,"Findeter"]
[null,null,"Gestión para el Resultado","Gestión para el Resultado (Ventanilla hacia adentro)","Gobierno Digital: TIC para la Gestión"," Fortalecer la Gestión TIC y de la Información en las entidades del Sector Hacienda","Fortalecer el Gobierno Digital en las entidades del SH","Gobierno Digital","Estrategía Uso y Apropíación","Fortalecer la estrategia de uso y apropiación para todos los proyectos de TI teniendo en cuenta estrategias de gestión del cambio para mejorar el uso y apropiación de las tecnologías en la entidad. \n","Dirección de Tecnología","Miguel Orlando Ricaurte",44197,44561,"Findeter"]
[null,null,"Gestión para el Resultado","Gestión para el Resultado (Ventanilla hacia adentro)","Gobierno Digital: TIC para la Gestión"," Fortalecer la Gestión TIC y de la Información en las entidades del Sector Hacienda","Fortalecer el Gobierno Digital en las entidades del SH","Gobierno Digital","Manuales usuario y técnicos de sistemas","\nContar con los manuales de usuarios y manuales técnicos y de operación debidamente actualizado, para 20 sistemas de información para optimizar la planeación y gestión de los sistemas de información en la entidad.","Dirección de Tecnología","Sandra Paola Becerra",44228,44560,"Findeter"]
[null,null,"Gestión para el Resultado","Gestión para el Resultado (Ventanilla hacia adentro)","Gobierno Digital: TIC para la Gestión"," Fortalecer la Gestión TIC y de la Información en las entidades del Sector Hacienda","Fortalecer el Gobierno Digital en las entidades del SH","Gobierno Digital","Consolidar y monitorear el Plan de eficienacia administrativa y Cero Papel","Ejecutar Plan de Eficiencia Administrativa y cero Papel para la vigencia 2021","Dirección de Tecnología /Gerencia de Planeación y Gestión - Mejoramiento de Procesos","Ana Maria Barriga / Claudia Viviana Rojas",44228,44560,"Findeter"]
[null,null,"Gestión para el Resultado","Gestión para el Resultado (Ventanilla hacia adentro)","Seguridad Digital","Fortalecer la Gestión TIC y de la Información en las Entidades del Sector Hacienda","Fortalecer la Seguridad Digital en las entidades del SH","Seguridad Digital","Fomentar la participación en las convocatorias para el fortalecimiento de capacidades en Seguridad digital ","Mantener de debida actualizacion y publicación de siguientes de instrumentos de gestión de la información pública:\n- Registro de Activos de Información.\n- Indice de Información Clasificada y reservada.","Vicepresidencia de Riegos y Jefatura de Servicios Generales","Jefatura de Servicios Generales y Vicepresidencia de Riesgos; Claudia Yovanna Moreno / Carlos Alberto Guzman ",44197,44561,"Findeter"]
[null,null,"Gestión para el Resultado","Gestión para el Resultado (Ventanilla hacia adentro)","Seguridad Digital","Fortalecer la Gestión TIC y de la Información en las Entidades del Sector Hacienda","Fortalecer la Seguridad Digital en las entidades del SH","Seguridad Digital","Fomentar la participación a las convocatorias para el fortalecimiento de capacidades en Seguridad digital realizadas por el Gobierno Nacional ","Fomentar la participación de los colaboradores que conforman la Unidad de Gestión de Riesgos de Seguridad de la información y ciberseguridad a las convocatorias que realice el Gobierno Nacional para forlalecimiento de capacidades en Seguridad Digital ","Vicepresidencia de Riesgos - (Seguridad y Privacidad de la Información)","Jefatura de Talento Humano y Vicepresidencia de Riesgos; Carlos Alberto Guzman / Angela Shirley ",44197,44561,"Findeter"]
[null,null,"Gestión para el Resultado","Gestión para el Resultado (Ventanilla hacia adentro)","Seguridad Digital","Fortalecer la Gestión TIC y de la Información en las Entidades del Sector Hacienda","Fortalecer la Seguridad Digital en las entidades del SH","Seguridad Digital","Fomentar la participación en las convocatorias para el fortalecimiento de capacidades en Seguridad digital ","Fomentar la participación de los colaboradores que conforman la Unidad de Gestión de Riesgos de Seguridad de la información y ciberseguridad  en las convocatorias para el fortalecimiento de capacidades en Seguridad digital realizadas por el Gobierno Nacional tales como el Desarrollo del Talento TI - Talento Digital-","Vicepresidencia de Riesgos - (Seguridad y Privacidad de la Información)","Jefatura de Talento Humano y Vicepresidencia de Riesgos; Carlos Alberto Guzman / Angela Shirley ",44197,44561,"Findeter"]
[null,null,"Gestión para el Resultado","Gestión para el Resultado (Ventanilla hacia adentro)","Seguridad Digital","Fortalecer la Gestión TIC y de la Información en las Entidades del Sector Hacienda","Fortalecer la Seguridad Digital en las entidades del SH","Seguridad Digital","Fomentar la participación en las convocatorias para el fortalecimiento de capacidades en Seguridad digital realizadas por el Gobierno Nacional ","Fomentar la participación de los colaboradores que conforman la Unidad de Gestión de Riesgos de Seguridad de la información y ciberseguridad en las convocatorias para el fortalecimiento de capacidades en Seguridad digital realizadas por el Gobierno Nacional.","Vicepresidencia de Riesgos - (Seguridad y Privacidad de la Información)","Jefatura de Talento Humano y Vicepresidencia de Riesgos; Carlos Alberto Guzman / Angela Shirley ",44197,44561,"Findeter"]
[null,null,"Gestión para el Resultado","Gestión con valores para el resultado (Ventanilla hacia afuera)","Participación Ciudadana en la Gestión Pública","Fortalecer las relaciones de las entidades del Sector Hacienda con sus grupos de valor ","Promover el seguimiento y mejora continua de las acciones que se realizan para fortalecer las relaciones con los grupos de valor en las entidades del Sector Hacienda","Participación Ciudadana","Implementar acciones de participación ciudadana en desarrollo de los programas de planificación Territorial  en las regiones","El programa de planificación tiene como objetivo validar, identificar y priorizar acciones para promover la sostenibilidad de Colombia y liderar su transformación, con la participación de las autoridades locales (electas), sector privado y público, academia y ciudadanía, quienes apoyan la identificación de la problemática y necesidades de inversión de las ciudades ","Dirección de Ciudades y Competitividad","Martha Helena Arango / Alejandra de la Espriella",44197,44561,"Findeter"]
[null,null,"Gestión para el Resultado","Gestión con valores para el resultado (Ventanilla hacia afuera)","Participación Ciudadana en la Gestión Pública","Fortalecer las relaciones de las entidades del Sector Hacienda con sus grupos de valor ","Promover el seguimiento y mejora continua de las acciones que se realizan para fortalecer las relaciones con los grupos de valor en las entidades del Sector Hacienda","Participación Ciudadana","Identificar oportunidades de mejora como resultado de los ejeicios de participación ciudadana realizados\n","Identificar oportunidades de mejora como resultado de los ejeicios de participación ciudadana realizados","Gerencia de Comunicaciones, Mercadeo y Responsabilidad Social","Angelica Aruza / Dora Sofia Velilla",44287,44561,"Findeter"]
[null,null,"Gestión para el Resultado","Gestión con valores para el resultado (Ventanilla hacia afuera)","Participación Ciudadana en la Gestión Pública","Fortalecer las relaciones de las entidades del Sector Hacienda con sus grupos de valor ","Promover el seguimiento y mejora continua de las acciones que se realizan para fortalecer las relaciones con los grupos de valor en las entidades del Sector Hacienda","Participación Ciudadana\nServicio al Ciudadano","Integracion de Documentos requeridos por ley de Transparencia","La ley de Transparencia requiere la publicación de 2 instrumentos Plan de Participáción Ciudadana y Plan de Servicio al Ciudadano.   Se verificará las caracteristicas y requisitos de cada uno de ellos y se integrarán en un solo documento denominado \"Plan de participación y servicio al ciudadano\"","Gerencia de Comunicaciones, Mercadeo y Responsabilidad Social","Angelica Aruza / Dora Sofia Velilla",44197,44377,"Findeter"]
[null,null,"Gestión para el Resultado","Gestión con valores para el resultado (Ventanilla hacia afuera)","Participación Ciudadana en la Gestión Pública","Fortalecer las relaciones de las entidades del Sector Hacienda con sus grupos de valor ","Promover el seguimiento y mejora continua de las acciones que se realizan para fortalecer las relaciones con los grupos de valor en las entidades del Sector Hacienda","Participación Ciudadana","Realizar Acompañamiento social  a las comunidades del área de influencia de los proyectos que ejecuta, estructura Findeter ","Acompañamiento social  (comunicación, acompañamiento, respuesta a consultas, seguimiento,apropiación, empoderamiento)a las comunidades del área de influencia de los proyectos que ejecuta, estructura Findeter ","Gerencia de Comunicaciones, Mercadeo y Responsabilidad Social","RSE - Maria Claudia Valencia",44197,44561,"Findeter"]
[null,null,"Gestión para el Resultado","Gestión con valores para el resultado (Ventanilla hacia afuera)","Participación Ciudadana en la Gestión Pública","Fortalecer las relaciones de las entidades del Sector Hacienda con sus grupos de valor ","Promover el seguimiento y mejora continua de las acciones que se realizan para fortalecer las relaciones con los grupos de valor en las entidades del Sector Hacienda","Participación Ciudadana","Realizar el estudio de satisfacción e incluir la base de comunidades ","Resultado estudio de Sastisfaccion- sólo enfocado a la gestión social y el acompañamiento a Comunidades","Gerencia de Comunicaciones, Mercadeo y Responsabilidad Social","RSE - Maria Claudia Valencia",44287,44561,"Findeter"]
[null,null,"Gestión para el Resultado","Gestión con valores para el resultado (Ventanilla hacia afuera)","Participación Ciudadana en la Gestión Pública\n\nTransparencia, acceso a la información pública y lucha contra la corrupción","Fortalecer las relaciones de las entidades del Sector Hacienda con sus grupos de valor ","Promover el seguimiento y mejora continua de las acciones que se realizan para fortalecer las relaciones con los grupos de valor en las entidades del Sector Hacienda","Participación Ciudadana\nTransparencia y Acceso a la Información Pública","Participar en dos mesas de trabajo  lideradas por el MHCP relacionadas con la política de participación ciudadana y transparencia","Participar en las mesas de trabajo lideradas por el MHCP, para identificar acciones que permitan fortalecer las políticas de participación ciudadana y transparencia.","Gerencia de Comunicaciones, Mercadeo y Responsabilidad Social","Angelica Aruza / Dora Sofia Velilla",44228,44561,"Findeter"]
[null,null,"Gestión para el Resultado","Gestión con valores para el resultado (Ventanilla hacia afuera)","Servicio al ciudadano","Fortalecer las relaciones de las entidades del Sector Hacienda con sus grupos de valor ","Promover el seguimiento y mejora continua de las acciones que se realizan para fortalecer las relaciones con los grupos de valor en las entidades del Sector Hacienda.","Servicio al Ciudadano","Caracterización","Identificar y definir  las caracteristicas demograficas y psicograficas de:\nBeneficiarios línea de crédito directo PPSPD.\nCiudadanos de los diferentes canales con que cuenta la Entidad.","Gerencia de Comunicaciones, Mercadeo y Responsabilidad Social","Angelica Aruza / Dora Sofia Velilla",44228,44561,"Findeter"]
[null,null,"Gestión para el Resultado","Gestión con valores para el resultado (Ventanilla hacia afuera)","Servicio al ciudadano","Fortalecer las relaciones de las entidades del Sector Hacienda con sus grupos de valor ","Promover el seguimiento y mejora continua de las acciones que se realizan para fortalecer las relaciones con los grupos de valor en las entidades del Sector Hacienda.","Servicio al Ciudadano","Caracterización  Grupos de Interés","Caracterización de ciudadanos, usuarios o grupos de interes. ","Gerencia de Comunicaciones, Mercadeo y Responsabilidad Social","Angelica Aruza / Dora Sofia Velilla",44228,44561,"Findeter"]
[null,null,"Gestión para el Resultado","Gestión con valores para el resultado (Ventanilla hacia afuera)","Servicio al ciudadano","Fortalecer las relaciones de las entidades del Sector Hacienda con sus grupos de valor ","Promover el seguimiento y mejora continua de las acciones que se realizan para fortalecer las relaciones con los grupos de valor en las entidades del Sector Hacienda.","Servicio al Ciudadano","Participar en las mesas sectoriales de la política de servicio al ciudadano","Participar en las mesas sectoriales de la política de servicio al ciudadano.\n\nEntregable. Registros de asistencia","Gerencia de Comunicaciones, Mercadeo y Responsabilidad Social","Angelica Aruza / Dora Sofia Velilla",44228,44561,"Findeter"]
[null,null,"Gestión para el Resultado","Información y Comunicación","Gestión Documental","Fortalecer la Gestión TIC y de la Información en las Entidades del Sector Hacienda","Fortalecer la  Gestión Documental en las entidades del SH","Gestión Documental","Definir el modelo de requisitos de documentos electronicos ","Definir los requisitos mínimos técnicos que deben conformar los documentos electrónicos.","Jefatura de Servicios Generales","Claudia Yovanna Moreno",44440,44560,"Findeter"]
[null,null,"Gestión para el Resultado","Información y Comunicación","Gestión Documental","Fortalecer la Gestión TIC y de la Información en las Entidades del Sector Hacienda","Fortalecer la  Gestión Documental en las entidades del SH","Gestión Documental","Implentar guia elaboración e implementación del SIC. Guía Elaboración e Implementación del SIC – Componente Plan de Preservación Digital","Diseñar una  metodología para elaborar el Plan de Preservación Digital, la cual facilite la elaboración de este componente del SIC por parte de las entidades del sector hacienda que no cuentan con el mismo, contribuyendo con la salvaguarda del patrimonio documental de las entidades y la Nación.","Jefatura de Servicios Generales","Claudia Yovanna Moreno",44197,44469,"Findeter"]
[null,null,"Gestión para el Resultado","Información y Comunicación","Gestión Documental","Fortalecer la Gestión TIC y de la Información en las Entidades del Sector Hacienda","Fortalecer la  Gestión Documental en las entidades del SH","Gestión Documental","Mantener actualizados y publicados los instrumentos propios de la gestión documental de Findeter.","Los instrumentos propios de la gestión documental de Findeter corresponden a: (Programa de Gestión Documental, Plan Institucional de Archivos, Tablas de retención documental, cuadro de Clasificación documental, Sistema Integrado de Conservación, Registro de Activos de Información, Índice de Información Clasificada y Reservada )","Jefatura de Servicios Generales","Claudia Yovanna Moreno",44228,44560,"Findeter"]
[null,null,"Gestión para el Resultado","Información y Comunicación","Gestión Documental","Fortalecer la Gestión TIC y de la Información en las Entidades del Sector Hacienda","Fortalecer la  Gestión Documental en las entidades del SH","Gestión Documental","Participar en las mesas sectoriales de la política de gestión documental","Participar en las mesas sectoriales de la política de gestión documental, coordinadas por el MHCP.\n\nEntregable. Registros de asistencia","Jefatura de Servicios Generales","Claudia Yovanna Moreno",44197,44561,"Findeter"]
[null,null,"Gestión para el Resultado","Información y Comunicación","Gestión Documental","Fortalecer la Gestión TIC y de la Información en las Entidades del Sector Hacienda","Fortalecer la  Gestión Documental en las entidades del SH","Gestión Documental","Realizar el diagnostico Documentos Electrónicos manejados por Findeter","El diagnostico de documentos electrónicos: identificación de documentos electronicos producidos por Findeter y preparacion del diagnóstico ","Jefatura de Servicios Generales","Claudia Yovanna Moreno",44287,44438,"Findeter"]
[null,null,"Gestión para el Resultado","Información y Comunicación","Transparencia, acceso a la información pública y lucha contra la corrupción","Fortalecer las relaciones de las entidades del Sector Hacienda con sus grupos de valor "," Fortalecer los mecanismos de transparencia, acceso a la información pública y lucha contra la corrupción","Transparencia, acceso a la información y lucha contra la corrupción","Diligenciar la Matriz ITA 2021","Dar respuesta al requerimiento que sobre la Matriz ITA 2021, genere la Procuraduria General de la Nación, para el cumplimiento a la sección de Transparencia de la página web institucional a la luz de la Ley 1712 de 2014","Gerencia de Planeación y Gestión - GDI","Jorge Luis Giraldo Gonzalez",44440,44561,"Findeter"]
[null,null,"Gestión para el Resultado","Información y Comunicación","Transparencia, acceso a la información pública y lucha contra la corrupción","Fortalecer las relaciones de las entidades del Sector Hacienda con sus grupos de valor ","Contribuir a la obtención de niveles de excelencia en el ejercicio de la función disciplinaria","Transparencia, acceso a la información y lucha contra la corrupción","Asistir a la siones del Colectivo Disciplinario","Se asistirá y participará en las reuniones programadas por el Colectivo Disciplinario.","Secretaria General","Norma Bibiana Soto.",44197,"12/31/2021","Findeter"]
[null,null,"Gestión para el Resultado","Información y Comunicación","Transparencia, acceso a la información pública y lucha contra la corrupción","Fortalecer las relaciones de las entidades del Sector Hacienda con sus grupos de valor ","Contribuir a la obtención de niveles de excelencia en el ejercicio de la función disciplinaria","Transparencia, acceso a la información y lucha contra la corrupción","Atender los compromisos derivados de los comites del Colectivo Disciplinario","Cumplir con las tareas asignadas a la entidad en desarrollo de los comites","Secretaria General","Norma Bibiana Soto.",44197,"12/31/2021","Findeter"]
[null,null,"Gestión para el Resultado","Gestión con valores para el resultado (Ventanilla hacia afuera)","Transparencia, acceso a la información pública y lucha contra la corrupción","Fortalecer las relaciones de las entidades del Sector Hacienda con sus grupos de valor "," Fortalecer los mecanismos de transparencia, acceso a la información pública y lucha contra la corrupción","Transparencia, acceso a la información y lucha contra la corrupción","Revisar discriminación de las políticas adoptadas por Findeter dentro del normograma institucional.","De acuerdo con la ley de transparencia los sujetos obligados deben publicar el contenido de toda decisión y/o política que haya adoptado y afecte al público.  Dentro del normograma buscar la forma de visualizar facilmente esas politicas.","Dirección Jurídica","Carlos Andres Quintero / Susan Echeverry.",44197,44377,"Findeter"]
[null,null,"Control Interno","Control Interno","Control Interno","Fortalecer el Control Interno del Sector","Control Interno","Control Interno","Validación en auditoría","Dentro de la auditoría interna al Sistema de atención al consumidor financiero del segundo semestre de 2020 y en 2021, se incluirán la validación de los requisitos de la Norma Técnica Colombiana NTC5854.","Control Interno","Rubiela Hernandez",44197,44286,"Findeter"]
[null,null,"Control Interno","Control Interno","Control Interno","Fortalecer el Control Interno del Sector","Control Interno","Control Interno","Validación en auditoría","En las auditorías de Regionales donde se incluye la sede central 103, que se realizaran en el 2021, se validarán los requisitos de la Norma Técnica Colombiana NTC 6047 de infraestructura","Control Interno","Rubiela Hernandez",44197,44286,"Findeter"]

{"sheet":"Plan de Vacantes","index":10,"n_rows":11,"n_cols":10,"rows_kept":11,"cut":false,"hidden":true,"merged":[[7,3,7,9]]}
[]
[]
[]
[]
[]
[]
[]
[null,null,null,"Plan Anual de Vacantes"]
[]
[null,"Área Organizativa","Nombre de la tarea","Descripción ","Categoría / Proyecto\n(Opcional)","Política de Gestión y Desempeño","Responsable de tarea ","Fecha Inicio","Fecha Fin","Fuente de Financiación "]
[null,"Subdirección de Talento Humano","Formulación y adopción del Plan","Estructuración del Plan y publicación en la página web",null,"Talento humano","Patricia Caiza Rosero","2018-01-01","2018-07-31","Funcionamiento"]

{"sheet":"Hoja1","index":11,"n_rows":0,"n_cols":0,"rows_kept":0,"cut":false,"hidden":true,"merged":[]}

{"sheet":"PAAC consolidado","index":12,"n_rows":76,"n_cols":27,"rows_kept":76,"cut":false,"hidden":false,"merged":[[1,4,6,7],[64,6,65,6],[61,6,63,6],[56,6,58,6],[67,25,68,25],[67,26,68,26],[69,3,69,4],[69,7,69,10],[59,7,59,9],[61,7,61,9],[62,7,62,9],[67,20,68,20],[67,21,68,21],[67,22,68,22],[67,23,68,23],[67,24,68,24],[54,26,55,26],[66,2,66,10],[67,15,68,15],[67,16,68,16],[67,17,68,17],[67,18,68,18],[67,19,68,19],[54,21,55,21],[67,1,68,1],[67,2,68,4],[67,5,68,5],[67,6,68,6],[67,7,67,10],[67,11,68,11],[67,12,68,12],[67,13,68,13],[67,14,68,14],[54,22,55,22],[54,23,55,23],[54,24,55,24],[54,25,55,25],[54,16,55,16],[54,17,55,17],[54,18,55,18],[54,19,55,19],[54,20,55,20],[54,11,55,11],[54,12,55,12],[54,13,55,13],[54,14,55,14],[54,15,55,15],[64,3,64,4],[65,3,65,4],[53,2,53,10],[54,2,55,4],[54,6,55,6],[54,7,54,10],[56,1,57,1],[56,3,56,4],[57,3,57,4],[58,3,58,4],[59,1,63,1],[59,3,59,4],[60,3,60,4],[61,3,61,4],[62,3,62,4],[63,3,63,4],[54,1,55,1],[54,5,55,5],[45,23,46,23],[45,24,46,24],[45,25,46,25],[45,26,46,26],[45,18,46,18],[45,19,46,19],[45,20,46,20],[45,21,46,21],[45,22,46,22],[45,13,46,13],[45,14,46,14],[45,15,46,15],[45,16,46,16],[45,17,46,17],[51,1,52,1],[51,3,51,4],[52,3,52,4],[45,11,46,11],[45,12,46,12],[47,3,47,4],[48,3,48,4],[48,7,48,10],[49,3,49,4],[50,3,50,4],[41,7,41,8],[42,3,42,4],[43,3,43,4],[44,2,44,10],[45,1,46,1],[45,2,46,4],[45,5,46,5],[45,6,46,6],[45,7,45,10],[39,6,43,6],[47,6,52,6],[29,12,30,12],[29,13,30,13],[39,1,40,1],[39,2,40,2],[39,3,39,4],[40,3,40,4],[41,1,42,1],[41,2,42,2],[41,3,41,4],[36,3,36,4],[36,7,36,10],[37,1,38,1],[37,3,37,4],[38,3,38,4],[31,6,37,6],[18,2,18,10],[25,3,25,4],[33,1,35,1],[33,3,33,4],[33,7,33,10],[34,3,34,4],[34,7,34,10],[35,3,35,4],[29,26,30,26],[31,1,32,1],[31,3,31,4],[31,7,31,10],[32,3,32,4],[29,21,30,21],[29,22,30,22],[29,23,30,23],[29,24,30,24],[29,25,30,25],[29,16,30,16],[29,17,30,17],[29,18,30,18],[29,19,30,19],[29,20,30,20],[29,11,30,11],[8,1,8,10],[10,2,10,6],[11,2,11,6],[12,2,12,10],[13,1,17,1],[13,2,13,10],[14,2,14,10],[15,2,15,10],[16,2,16,10],[17,2,17,10],[72,1,73,1],[75,1,75,10],[19,1,20,1],[19,2,20,4],[19,18,20,18],[19,19,20,19],[19,20,20,20],[19,11,20,11],[19,12,20,12],[19,13,20,13],[19,14,20,14],[19,15,20,15],[25,7,25,10],[70,1,71,1],[26,2,26,10],[27,1,27,10],[28,2,28,10],[29,14,30,14],[29,15,30,15],[29,1,30,1],[29,2,30,4],[29,5,30,5],[29,6,30,6],[29,7,29,10],[19,26,20,26],[21,6,24,6],[24,9,24,10],[21,3,21,4],[22,3,22,4],[23,3,23,4],[24,3,24,4],[19,21,20,21],[19,22,20,22],[19,23,20,23],[19,24,20,24],[19,25,20,25],[19,16,20,16],[19,17,20,17],[19,5,20,5],[19,6,20,6],[19,7,19,10],[23,7,23,10]]}
[]
[null,null,null,null,"PLAN ANTICORRUPCIÓN Y DE ATENCIÓN AL CIUDADANO\nFINDETER 2021"]
[]
[]
[]
[null,null,null,"                   "]
[]
[]
[null,"PLAN ANTICORRUPCIÓN Y DE ATENCIÓN AL CIUDADANO  "]
[null,"Entidad:   ","FINANCIERA DE DESARROLLO TERRITORIAL S.A."]
[null,"Vigencia: ","Año 2021"]
[null,"Fecha de Publicación: ",44227]
[null,"Objetivo General:","Hacer del plan anticorrupción y de atención al ciudadano, una herramienta de gestión que fomente la participación y el mejoramiento de los mecanismos de atención al ciudadano, la transparencia y eficiencia en el uso de los recursos, en busca de prevenir la corrupción y favorecer mayor calidad y accesibilidad a los servicios e información del quehacer misional de la Entidad."]
[null,"Objetivos Específicos:","1. Mediante la construcción de la Matriz de Riesgos de Corrupción (MRC), disponer de una herramienta que facilite la gestión de prevención de los riesgos de corrupción, a través de acciones que permitan su adecuado monitoreo y seguimiento."]
[null,null,"2. Establecer los aspectos a mejorar en los servicios registrados por la Entidad ante el SUIT, conducentes a facilitar al cliente ciudadano el acceso a los servicios y productos que brinda Findeter, cuyas acciones de tipo normativo, administrativo ó tecnológico conformarán la estrategia de racionalización a realizar en la presente vigencia."]
[null,null,"3. Propiciar acciones de diálogo, entrega de información e incentivos, que le permitan a Findeter hacer un proceso de rendición de cuentas institucional dinámico y de doble vía."]
[null,null,"4. Hacer de la gestión del servicio al ciudadano en Findeter una labor integral, mediante la formulación de acciones que coadyuven a que el servicio prestado por la Entidad responda de manera adecuada a las necesidades y expectativas de los clientes ciudadanos y grupos de interés en general. "]
[null,null,"5. Establecer acciones encaminadas a disponer de manera adecuada los mecanismos de acceso a la información a los clientes ciudadanos y grupos de interés en general, con criterios de calidad, veracidad, accesibilidad y oportunidad, en atención a los lineamientos de la Ley 1712 de 2014."]
[null,"Componente 1","Gestión del Riesgo de Corrupción - Mapa de Riesgos de Corrupción"]
[null,"Subcomponente / procesos","Actividades",null,null,"Meta o producto","Responsable","Fecha programada 2021",null,null,null,"Indicador (Si Aplica)","Fórmula","Meta 2020","Observaciones","Seguimiento\nTrimestre 1","Seguimiento\nTrimestre 2","Seguimiento\nTrimestre 3","Seguimiento\nTrimestre 4","Meta Trimestre 1","Meta Trimestre 2","Meta Trimestre 3","Meta Trimestre 4","Ejecución - Trimestre 1","Ejecución - Trimestre 2","Ejecución - Trimestre 3","Ejecución - Trimestre 4"]
[null,null,null,null,null,null,null,"Ene - Mar","Abr -Jun","Jul-Sept","Oct - Dic"]
[null,"Subcomponente / proceso 1 Política de Administración de Riesgos","1.1","Actualizar documento del Programa Antifraude y Corrupción, si se presentan modificaciones durante la vigencia. ",null,"Documento Programa Antifraude y Corrupción revisado y actualizado.","Vicepresidencia de Riesgos - Oficial de Cumplimiento","Enero",null,null,null,"NA","Monitoreos realizados/Monitoreos requeridos","100% Programa Antifraude y Corrupción revisado y actualizado.","Las actualizaciones se realizarán según necesidad identificada.",null,null,null,null,null,{"$f":"(1/2)*100%","v":0.5},null,{"$f":"(2/2)*100%","v":1}]
[null,"Subcomponente / proceso 2 Construcción del Mapa de Riesgos de Corrupción","2.1","Revisar integralmente la matriz de riesgo: riesgos asociados a eventos, redacción de eventos, medición del riesgo residual, atributos de controles y generación de los riesgos en el mapa.",null,"Matriz de riesgos revisada y publicada.",null,"Enero",null,null,null,"NA","Revisión realizada/Revisión requerida","100 Matriz de riesgos revisada y publicada.","La revisión se realizará de acuerdo con la normatividad establecida, y se harán adicionales de ser necesario .",null,null,null,null,{"$f":"(1/1)*100%","v":1}]
[null,"Subcomponente / proceso 3 Consulta y divulgación","3.1","Realizar jornadas de sensibilización sobre Fraude y Corrupción: Capacitación 1, campaña 1 y publicaciones 4.",null,"Jornadas finalizadas.",null,"Enero a Diciembre",null,null,null,"NA","Actividades realizadas/Actividades programadas requerida","100% Actividades finalizadas.","Publicaciones : 1 por trimestre.\nCapacitación: 1 trimestre cuatro.\nCampaña: 1 trimestre 3.",null,null,null,null,{"$f":"1/6","v":0.16666666666666666},{"$f":"2/6","v":0.33333333333333331},{"$f":"4/6","v":0.66666666666666663},{"$f":"6/6","v":1}]
[null,"Subcomponente / proceso 4 Monitoreo y revisión","4.1\n","Efectuar y documentar las pruebas de recorrido de los controles.",null,"Prueba de recorrido de controles realizada",null,null,null,"Julio a Diciembre",null,"NA","Procesos revisados / procesos a revisar","100% Prueba de recorrido de controles realizada","Procesos a aplicar prueba de recorrido: 4. Dos en tercer trimestre y dos en  cuarto trimestre.",null,null,null,null,null,null,{"$f":"2/4","v":0.5},{"$f":"4/4","v":1}]
[null,"Subcomponente / proceso 5 Seguimiento","5.1","Análisis de causas, riesgos corrupción y efectividad de controles",null,"Informe seguimiento","Oficina de Control Interno de Gestión","Ene-Dic",null,null,null,"NA"]
[null,"Componente 2","Racionalización de Trámites (Herramienta SUIT)"]
[null,"Findeter no contará en el año 2021 con una estrategia de racionalización de trámites, toda vez que de acuerdo con lo establecido en la Directiva Presidencial No. 2 \"SIMPLIFICACIÓN DE LA INTERACCIÓN DIGITAL ENTRE LOS CIUDADANOS Y EL ESTADO y de acuerdo con concepto de la Función Pública con respecto a los \"Otros Procedimientos Administrativos - OPAS\" que la Entidad tiene registrados en el aplicativo SUIT: \".....no se aplica en lo ateniente a trámites o servicios porque no conllevan para el ciudadano el acceso a un derecho o el ejercicio de una actividad u obligación prevista o autorizada por la ley, por tratarse de negocios jurídicos de contenido económico, sujetos al cumplimiento de unas condiciones específicas por parte de unas personas jurídicas, las cuales no son masivas.....\";\nEn consideración a lo anterior, a través del Plan de Integración - PIN con gov.co, se solicitó la eliminación de dichos OPAS del SUIT."]
[null,"Componente 3","Rendición de Cuentas"]
[null,"Subcomponente / procesos","Actividades",null,null,"Meta o producto","Responsable","Fecha programada 2021",null,null,null,"Indicador (Si Aplica)","Fórmula","Meta 2020","Observaciones","Seguimiento\nTrimestre 1","Seguimiento\nTrimestre 2","Seguimiento\nTrimestre 3","Seguimiento\nTrimestre 4","Meta Trimestre 1","Meta Trimestre 2","Meta Trimestre 3","Meta Trimestre 4","Ejecución - Trimestre 1","Ejecución - Trimestre 2","Ejecución - Trimestre 3","Ejecución - Trimestre 4"]
[null,null,null,null,null,null,null,"Ene - Mar","Abr -Jun","Jul-Sept","Oct - Dic"]
[null,"Subcomponente 1 \nInformación de calidad y en lenguaje comprensible","1.1\n","Participar  en eventos en donde se socialice la gestión realizada por la Entidad a los diferentes Grupos de interes (Foros, Cumbres,  Conversatorios, etc).",null,"Participar por lo menos en cuatro (4) eventos","Dirección de Comunicaciones, Mercadeo y RS","Enero a junio y de julio a Diciembre"]
[null,null,"1.2","Divulgar la Rendición de Cuentas Sectorial a la ciudadanía en general (según directrices del Ministerio de Hacienda),  antes, durante y después, mediante los diferentes canales y medios de comunicación (Redes Sociales, Página Web y otros).",null,"Rendición de Cuentas Sectorial Divulgada",null,null,null,null,"Oct - Dic"]
[null,"Subcomponente 2 \nDiálogo de doble vía con la ciudadanía y sus organizciones","2.1","Realizar evento de rendición de cuentas institucional",null," 2 eventos",null,"Febrero - Diciembre"]
[null,null,"2.2","Organizar y ejecutar  eventos en donde se socialice la gestión realizada por la Entidad a los diferentes Grupos de interes (Foros,  Seminarios, Asambleas, Conversatorios, Talleres, etc).",null,"4 eventos.\n",null,"Enero a junio y de julio a Diciembre"]
[null,null,"2.3","Participar en la Rendición de Cuentas Sectorial liderada por el Ministerio de Hacienda y Crédito Público.",null,"Evento Rendición de Cuentas Sectorial realizada",null,null,null,null,"Oct - Dic"]
[null,"Subcomponente 3 \nIncentivos para motivar la cultura de la rendición y petición de cuentas","3.1","Realizar Planes de Relacionamiento (PR)\n(Grupos de interés y Medios de Comunicación)",null,"Por lo menos cuatro (4) PR",null,"Enero a junio y de julio a Diciembre"]
[null,"Subcomponente 4 \nEvaluación y retroalimentación a la gestión institucional","4.1","Desarrollar encuesta en el chat de la entidad de Findeter que permita determinar elementos de mejora para el mismo",null,"Informe estado de PQR´S (*)",null,"Enero- Marzo","Abril -Junio","Julio- Sepbre","Oct-Dic"]
[null,null,"4.2","Realizar evaluación de la estrategia de rendición de cuentas institucional, dada la participación de Findeter en la Rendición de Cuentas Sectorial.",null,"Informe Evaluación RC","Oficina de Control Interno de Gestión",null,null,null,"Dic"]
[null,"Participación Ciudadana en la etapa de formulación de los programas liderados desde la  Dirección de Competitividad y Desarrollo","5.1","Fase de planeación: 1. Recolectar información de la ciudadanía (autoridades locales, sector privado, academia, entidades sin animo de lucro; gremios, lideres locales y comunidad) para la identificación de los principales problemas de la ciudad, a través de la realización de talleres, reuniones, foros, mesas de trabajo, grupos focales u otros.",null,"Información recolectada de los principales problemas de la ciudad","Dirección de Ciudades y Competitividad","Enero",null,null,null,"NO",null,1]
[null,null,null,"Fase de planeación: 2. Levantar indicadores en las dimensioanes: económica, social, ambiental y fiscal y Clasificar los temas identificados de la ciudad aplicando semaforización de acuerdo a la situación que present cada uno de ellos al momento del estudio: verde: temas en donde el desemepño de la ciudad esté en buena situación; Amarillo: temas donde la ciudad podría mejorar con algo de esfuerzo; Rojo: temas fente a los cuales es urgente actuar porque reflejan una situación preocupante . (Depende de 1, 2 y 3)",null,"Indicadores dimensiones: económica, social, ambiental y fiscal y semaforización",null,"Enero",null,null,null,"NO",null,1]
[null,"Participación Ciudadana en la etapa de formulación de los programas liderados desde la  Dirección de Competitividad y Desarrollo","5.2","Fase análisis diagnóstico: 3. Elaborar el diagnóstico de las dimensiones: económica, social, ambiental y fiscal.",null,"Diagnóstico elaborado",null,"febrero-abril",null,null,null,"NO",null,1]
[null,null,null,"Fase de Priorización: 4. Elaborar filtro ambientaly económico. Así mismo, reailizar ejercicio de análisis y priorización problemática de ciudades, basados en la información recopilada, indicadores, diagnósticos y filtros para determinar sectores y temas prioritarios oara sostenibilidad de ciudades, basados ne us problemática, pr lo que éstos temas representan para la ciudadanía.",null,"Filtro elaborado",null,null,"abril-mayo",null,null,"NO",null,1]
[null,"Promoción del control social en los programas liderados por la  Dirección de Competitividad y Desarrollo","5.3","Fase estructuración del Plan de Acción: 5. Definir la plaenación estratégica; formular los Ejes Estratégicos y Planes de acción para cada ciudad y la visión de las ciudades que garanticen actuar en sus temas relevantes.",null,"Plan de Acción formulado",null,null,null,"jul-Sept",null,"NO",null,1]
[null,"Componente 4","Atención al Ciudadano"]
[null,"Subcomponente / procesos","Actividades",null,null,"Meta o producto","Responsable","Fecha programada 2020"]
[null,null,null,null,null,null,null,"Ene - Mar","Abr -Jun","Jul-Sept","Oct - Dic"]
[null,"Subcomponente 1\n Estructura administrativa y Direccionamiento estratégico","1.1"," Realizar una capacitación en servicio al cliente ",null," 1 capacitación ","Dirección de Comunicaciones, Mercadeo y RS",null,null,null,"Oct-Dic"]
[null,"Subcomponente 2 Fortalecimiento de los canales de atención","2.1","Realizar seguimiento al Indicador de Oportunidad de Respuesta de Servicio al cliente- Inquietudes y Sugerencias ",null,"Medición del Indicador",null,"Enero- Dic"]
[null,"Subcomponente 3 \nTalento Humano","3.1","Fortalecer la nueva estrategia de servicio al cliente de la Entidad, realizando acuerdos de servicio en la Entidad",null,"1 Acuerdo ",null,null,null,null,"Oct-Dic"]
[null,"Subcomponente 4 \nNormativo y procedimental","4.1","Actualizar el procedimiento \"Atención de Derechos de Petición, Quejas y Reclamos - GC-PR-005\" del Sistema de Gestión Integrado -SGI, si se presentan modificaciones durante la vigencia.",null,"Procedimiento Actualizado"]
[null,"Subcomponente 5 Relacionamiento con el ciudadano","5.1","Realizar medición de percepción de los ciudadanos respecto a la calidad y accesibilidad de la oferta institucional y el servicio recibido.",null,"Encuesta Satisfacción Clientes"]
[null,null,"5.2","Elaborar informe trimestral del estado de PQR'S.",null,"Informe estado de PQR´S (*)"]
[null,"Componente 5","Transparencia y Acceso a la Información"]
[null,"Subcomponente / procesos","Actividades",null,"Meta o producto","Entregable",null,"Fecha programada 2020"]
[null,null,null,null,null,null,"Responsable","Ene - Marxo","Abr -Jun","Jul-Sept","Oct - Dic"]
[null,"Subcomponente 1 Lineamientos de Transparencia Activa","1.1","Validar la actualización de los aspectos publicados en la página web de Findeter, de acuerdo con los ajustes e información remitida por los responsables de cada contenido.    Ecosistema digital",null,"Página web actualizada","Dirección de Comunicaciones, Mercadeo y RS",null,"Informe semestral",null,"Informe semestral"]
[null,null,"1.2","Elaborar informe de todas las solicitudes, denuncias y los tiempos de respuesta de Findeter, sobre las PQRD. (enlace https://www.findeter.gov.co/documentos/202066/informe-de-inquietud-o-sugerencias/)",null,"Informe estado de PQR´S (*)",null,"Informe trimestral","Informe trimestral","Informe trimestral","Informe trimestral"]
[null,"Subcomponente 2 Lineamientos de Transparencia Pasiva","2.1","Gestionar las solicitudes de información siguiendo los lineamientos del Programa Nacional de Servicio al Ciudadano.",null,"Informe estado de PQR´S (*)",null,"Informe trimestral","Informe trimestral","Informe trimestral","Informe trimestral"]
[null,"Subcomponente 3 \nElaboración de los Instrumentos de Gestión de la Información","3.1","Ajustar y/o mantener la publicación de siguientes de instrumentos de gestión de la información pública:\nRegistro de Activos de Información.\nIndice de Información Clasificada y reservada.",null,"Instrumentos de gestión de la información pública actualizados y publicados","Vicepresidencia de Riegos y Jefatura de Servicios Generales","En dado caso que se requiera la actualización de estos  instrumentos alineados a las tablas de retención documental se realizara la respectiva actualización en el portal web de la entidad y en el portal de datos abiertos.",null,null,"Oct-Dic"]
[null,null,"3.2","Fortalecer programa de formación de usuarios en gestión documental, incluyendo aspectos relacionados con la seguridad de la información y el derecho de acceso a la información pública.",null,"'Servidores capacitados","Jefatura de Servicios Generales","Ene-Mar","Abr-Jun","Jul-Sep","Oct-Dic"]
[null,null,"3.3","Actualizar y publicar anualmente  para conocimiento de los ciudadanos el registro o inventario de activos de información documentales de Findeter, de acuerdo con los lineamientos del Programa de Gestión Documental de la Entidad. ",null,"Inventario de activos de información documentales actualizado y publicado. (Inventario Documental)","Vicepresidencia de Riegos y Jefatura de Servicios Generales","En dado caso que se requiera la actualización de estos  instrumentos alineados a las tablas de retención documental se realizara la respectiva actualización en el portal web de la entidad y en el portal de datos abiertos.",null,null,"Oct-Dic"]
[null,null,"3.4","Actualizar y publicar en la eventualidad que se requiera para conocimiento de los ciudadanos , los inventarios de activos documentales, que serán descartados del fondo en custodia en el siguiente periodo fiscal. ",null,"'Inventario de activos de información documentales para descarte (Inventario Documental y Actas de eliminación)",null,"En la eventualidad que se presente el trámite de descarte documental se realizará la respectiva publicación de los inventarios a descarte.",null,null,"Oct-Dic"]
[null,null,"3.5","Mantener actualizados y publicados los instrumentos propios de la gestión documental de la entidad (Programa de Gestión Documental, Plan Institucional de Archivos, Tablas de retención documental, cuadro de Clasificación documental, Sistema Integrado de Conservación, Matriz de Acceso e inventarios documentales)\n(enlace https://www.findeter.gov.co/publicaciones/gestion_documental_pub).",null,"''Programa de Gestión Documental, Plan Institucional de Archivos, Tablas de retención documental, cuadro de Clasificación documental, Sistema Integrado de Conservación, Matriz de Acceso e inventarios documentales, actualizados y publicados",null,"Ene-Mar","Abr-Jun","Jul-Sep","Oct-Dic"]
[null,"Subcomponente 4 Criterio Diferencial de Accesibilidad","4.1","Accesibilidad en medios electrónicos para la población en situación de discapacidad de acuerdo con el cumplimiento de la norma técnica NTC5854, para nivel AA.",null,"Cumplimiento de la Norma Usabilidad y Accesibidad para la página web","Dirección de Comunicaciones, Mercadeo y RS",null,null,null,"Dic"]
[null,"Subcomponente 5 Monitoreo del Acceso a la Información Pública","5.1","Elaborar informe de solicitudes de acceso a información pública conforme los requerimientos del Decreto 1081/2015 Artículo 2.1.1.6.2. (enlace http://www.findeter.gov.co/documentos.php?id=202066",null,"Informe estado de PQR´S (*)",null,"Informe trimestral","Informe trimestral","Informe trimestral","Informe trimestral"]
[null,"Componente 6","Iniciativas Adicionales"]
[null,"Subcomponente / procesos","Actividades",null,null,"Meta o producto","Responsable","Fecha programada 2021",null,null,null,"Indicador (Si Aplica)","Fórmula","Meta 2020","Observaciones","Seguimiento\nTrimestre 1","Seguimiento\nTrimestre 2","Seguimiento\nTrimestre 3","Seguimiento\nTrimestre 4","Meta Trimestre 1","Meta Trimestre 2","Meta Trimestre 3","Meta Trimestre 4","Ejecución - Trimestre 1","Ejecución - Trimestre 2","Ejecución - Trimestre 3","Ejecución - Trimestre 4"]
[null,null,null,null,null,null,null,"Ene - Mar","Abr -Jun","Jul-Sept","Oct - Dic"]
[null,"Subcomponente / proceso:  Prevención de la Corrupción","1.1","Ejecutar las acciones contempladas en el Plan de Gestión Estratégica de Conflicto de Interés de la vigencia. ",null,"Plan de Gestión de Estratégica de Conflicto de Interés Ejecutado.","Equipo Interdisciplinario","Enero - Diciembre",null,null,null,"NA","Monitoreos realizados/Monitoreos requeridos","100% Programa Antifraude y Corrupción revisado y actualizado.","Las actualizaciones se realizarán según necesidad identificada.",null,null,null,null,null,{"$f":"(1/2)*100%","v":0.5},null,{"$f":"(2/2)*100%","v":1}]
[null,"Consolidación del Documento","Cargo: Gerencia de Planeación y Gestión"]
[null,null,"Nombre: Jorge Luis  Giraldo González"]
[null,"Seguimiento PAAC","Jefe de Control Interno de Gestión"]
[null,null,"Nombre: Rubiela de Jesús Hernández Velasco"]
[null,"* Informe Consolidado de PQR'S: Con este informe se atenderán los requerimientos de cada componente del PAAC relacionados con este aspecto."]
[null,"Seguimiento: La Oficina de Control Interno de Gestión de FINDETER realizará seguimiento a la ejecución del Plan Anticorrupción en los siguientes cortes: Abril 30; Agosto 31; y Diciembre 31 de 2021"]

{"sheet":"Pan Antitramite","index":13,"n_rows":10,"n_cols":5,"rows_kept":10,"cut":false,"hidden":false,"merged":[[8,2,8,10],[9,1,9,10],[1,4,6,7]]}
[]
[null,null,null,null,"PLAN ANTITRAMITE\nFINDETER 2021"]
[]
[]
[]
[null,null,null,"                   "]
[]
[]
[null,null,"Racionalización de Trámites (Herramienta SUIT)"]
[null,"Findeter no contará en el año 2021 con una estrategia de racionalización de trámites, toda vez que de acuerdo con lo establecido en la Directiva Presidencial No. 2 \"SIMPLIFICACIÓN DE LA INTERACCIÓN DIGITAL ENTRE LOS CIUDADANOS Y EL ESTADO y de acuerdo con concepto de la Función Pública con respecto a los \"Otros Procedimientos Administrativos - OPAS\" que la Entidad tiene registrados en el aplicativo SUIT: \".....no se aplica en lo ateniente a trámites o servicios porque no conllevan para el ciudadano el acceso a un derecho o el ejercicio de una actividad u obligación prevista o autorizada por la ley, por tratarse de negocios jurídicos de contenido económico, sujetos al cumplimiento de unas condiciones específicas por parte de unas personas jurídicas, las cuales no son masivas.....\";\nEn consideración a lo anterior, a través del Plan de Integración - PIN con gov.co, se solicitó la eliminación de dichos OPAS del SUIT."]

{"sheet":"PETI","index":14,"n_rows":16,"n_cols":12,"rows_kept":16,"cut":false,"hidden":false,"merged":[[1,3,6,9]]}
[]
[null,null,null,"PLAN ESTRATÉGICO DE TECNOLOGÍAS DE LA INFORMACIÓN\nPETI 2021"]
[]
[]
[]
[]
[]
[]
[]
[null,"Dependencia","Nombre de la tarea","Descripción ","Política de Gestión y Desempeño","Responsable de tarea ","Fecha Inicio","Fecha Fin","Fuente de Financiación ","Indicador (Si Aplica)","Fórmula","Meta 2020"]
[null,"Gerencia de Mercadeo, \nComunicaciones y Responsabilidad Social"," Desarrollar el Ecosistema digital","Continuar con la implementación y fortalecimiento  del ecosistema digital.\n","Gobierno Digital","Alvaro Muñoz","2021-01-01","2021-11-30","Findeter","% de cumplimiento de la planeación","Actividades ejecutadas/Actividades Planeadas",1]
[null,"Vice Comercial"," Fortalecer Estrategia de analítica de datos","Implementar el primer ejercicio de analitica de datos en Findeter\n","Gobierno Digital","Jaime Luis","2021-02-01","2021-12-30","Findeter","% de cumplimiento de la planeación","Actividades ejecutadas/Actividades Planeadas",1]
[null,"Dirección de Tecnología","Fortalecer Estrategía de Uso y apropiación"," Fortalecer la estrategia de uso y apropiación para los proyectos de TI y/o el catálogo de servicios de TI, teniendo en cuenta estrategias de gestión del cambio.\n \n","Gobierno Digital","Miguel Ricaurte","2021-02-01","2021-12-30","Findeter","% de cumplimiento de la planeación","Actividades ejecutadas/Actividades Planeadas",1]
[null,"Dirección de Tecnología","Optimización capacidades TI","Fortalecer la gestión y admon  de roles y perfiles, realizar migración a la nube, y fortalecer el ambiente de pruebas \n","Gobierno Digital","Jhon Gregory Sierra","2021-02-01","2021-12-30","Findeter","% de cumplimiento de la planeación","Actividades ejecutadas/Actividades Planeadas",1]
[null,"Dirección de Tecnología","RPA","Implementar uan  herramienta que permitirá la automatizacion robotica de procesos o tareas manuales.\n","Gobierno Digital","Javier David","2021-02-01","2021-12-30","Findeter","% de cumplimiento de la planeación","Actividades ejecutadas/Actividades Planeadas",1]
[null,"Dirección de Tecnología","Core Técnico","Seleccionar e implementar una solución tecnologica que apalanque o apoye transversalmente los procesos relacionados al core técnico","Gobierno Digital","Hugo Henao","2021-02-01","2021-12-30","Findeter","% de cumplimiento de la planeación","Actividades ejecutadas/Actividades Planeadas",1]

{"sheet":"Plan de Transformación Digital","index":15,"n_rows":15,"n_cols":13,"rows_kept":15,"cut":false,"hidden":false,"merged":[[1,3,6,9]]}
[]
[null,null,null,"PLAN DE TRANSFORMACION DIGITAL\nFINDETER 2021"]
[]
[]
[]
[]
[]
[]
[]
[null,"Dependencia","Nombre de la tarea","Descripción ","Política de Gestión y Desempeño","Responsable de tarea ","Fecha Inicio","Fecha Fin","Fuente de Financiación ","Indicador (Si Aplica)","Fórmula","Meta 2020","Observaciones"]
[null,"Gerencia de Planeación y Gestión - Centro de Innovación y Conocimiento - Jefatura Talento Humano","Cultura digital y gestión del cambio (Transformación digital)","Generar habilidades, capacidades y entregar herramientas para gestionar el cambio de manera adecuada, frente a las variaciones rápidas y constantes asociadas a las nuevas tecnologías, lo que permitirá capitalizar las oportunidades de negocio del mundo digital. \nFomentar una cultura enfocada al agilísimo y centrada en lo digital.","Gobierno digital","Andrea Rojas",44287,44561,"Propios","Índice de adopción de habilidades y capacidades\n","Índice de adopción de habilidades y capacidades\n∑ (Cantidad de usuarios que apropiaron las habilidades y capacidades* / Cantidad de usuarios que participaron en las actividades definidas para el fomento de la cultura)\n",0.8,"La meta se mantendrá sobre el 80% en cada corte de medición"]
[null,"Gerencia de Planeación y Gestión - Centro de Innovación y Conocimiento","Sandbox de Innovación","Realizar pilotos de Innovación en tecnologías emergentes en espacios controlados que permitan hacer mejoras e identificar la viabilidad y factibilidad de lo propuesto","Gobierno digital","Andrea Rojas",44348,44561,"Propios","SPI","Cumplimiento del cronograma del proyecto medido por la PMO","0,93","La meta se mantendrá sobre el 0,93 en cada corte de medición"]
[null,"Presidencia - Equipo de gobierno de datos","Gobierno de Datos Fase IV    ","Consolidar el gobierno de datos en Findeter mediante la documentación de componentes de información, la ejecución de ejercicios de calidad, la administración de los datos maestros de la entidad y el uso y apropiación por parte de la Entidad del Gobierno de los Datos. ","Gobierno digital","Luz Amparo Gutierrez",44287,44561,"Propios","SPI","Cumplimiento del cronograma del proyecto medido por la PMO","0,93","La meta se mantendrá sobre el 0,93 en cada corte de medición"]
[null,"Vicepresidencia comercial -Gerencia de nuevos productos - Gerencia de Planeación y Gestión","Experiencia de usuario","Realizar un análisis de la experiencia de usuario para un producto de financiación con el objetivo de identificar los puntos de dolor del usuario, de tal manera que se pueda diseñar y mejorar la experiencia en la interacción en todo el ciclo de vida. ","Gobierno digital","Andrea Rojas",44348,44561,"Propios","SPI","Cumplimiento del cronograma del proyecto medido por la PMO","0,95","La meta se mantendrá sobre el 0,95 en cada corte de medición"]
[null,"Gerencia de Planeación y Gestión - Centro de Innovación y Conocimiento","Optimización y automatización de procesos","Orientar y rediseñar los procesos claves a entornos completamente digitales, incluyendo elementos como autenticación, firmas electrónica y digital, flujo, gestión, archivo y transferencia de documentos creados desde digital.","Gobierno digital","Andrea Rojas",44228,44561,"Propios","SPI","Cumplimiento del cronograma del proyecto medido por la PMO","0,93","La meta se mantendrá sobre el 0,93 en cada corte de medición"]

{"sheet":"Plan de Eficiencia Admin","index":16,"n_rows":27,"n_cols":10,"rows_kept":27,"cut":false,"hidden":false,"merged":[[24,1,26,1],[24,2,26,2],[24,3,26,3],[1,3,6,8],[18,1,20,1],[18,2,20,2],[18,3,20,3],[21,1,23,1],[21,2,23,2],[21,3,23,3],[10,1,13,1],[10,2,13,2],[10,3,13,3],[14,1,17,1],[14,2,17,2],[14,3,17,3]]}
[]
[null,null,null,"PLAN DE EFICIENCIA ADMINISTRATIVA\nFINDETER 2021"]
[]
[]
[]
[]
[]
[]
[]
[null,"No.","Nombre iniciativa","Descripción iniciativa","Actividades que se llevan a cabo para desarrollar la iniciativa","Responsable","Áreas involucradas","Fecha Inicio","Fecha fin","Fuente de Recursos"]
[null,1,"CORRESPONDENCIA ELECTRÓNICA","Fortalecer los mecanismos de intercambio de correspondencia entre entidades de forma electrónica","Diagnóstico de herramientas para intercambio de correspondencia con otras entidades","Claudia Moreno","Jefatura de Servicios Generales\nVicepresidencia Técnica","2021-02-01","2021-03-30","Findeter"]
[null,null,null,null,"Levantamiento de informacion que se intercambia con otras entidades en medio fisico y electrónico","Claudia Moreno","Gerencia de Planeación y Gestión\nGrupo Gobierno de datos\nVicepresidencia de Riesgos\nJefatura de Servicios Generales\nVicepresidencia Técnica","2021-04-01","2021-05-31","Findeter"]
[null,null,null,null,"Elaborar Plan de Mejora","Claudia Moreno","Gerencia de Planeación y Gestión\nGrupo Gobierno de datos\nVicepresidencia de Riesgos\nJefatura de Servicios Generales\nVicepresidencia Técnica","2021-06-01","2021-06-30","Findeter"]
[null,null,null,null,"Implentar el Plan de Mejora","Claudia Moreno","Gerencia de Planeación y Gestión\nGrupo Gobierno de datos\nVicepresidencia de Riesgos\nJefatura de Servicios Generales\nVicepresidencia Técnica","2021-07-01","2021-12-31","Findeter"]
[null,2,"PROGRAMA USO EFICIENTE DE PAPEL","Estrategias para implementar y promover el uso eficiente y ahorro de papel","Identificar las necesidades de consumo de papel en las diferentes dependencias, en especial la Vicepresidencia Técnica para establecer que se puede colocar en medios electrónicos","Samanta Armesto","Gerencia de Planeación y Gestión\nGrupo SGI","2021-02-01","2021-12-31","Findeter"]
[null,null,null,null,"Capacitar y sensibilizar a los colaboradores y contratistas de la Entidad sobre la importancia del uso eficiente y ahorro de papel mediante piezas inforamtivas y campañas","Samanta Armesto","Gerencia de Planeación y Gestión\nGrupo SGI","2021-02-01","2021-12-31","Findeter"]
[null,null,null,null,"Elaborar reportes del consumo de papel de impresiones y copias generadas y comunicar a los jefes para aplicar acciones de mejora","Samanta Armesto","Gerencia de Planeación y Gestión\nGrupo SGI","2021-02-01","2021-12-31","Findeter"]
[null,null,null,null,"Realizar seguimiento mensual con gráficos para tener un análisis de datos de que áreas consumen más papel","Samanta Armesto","Gerencia de Planeación y Gestión\nGrupo SGI","2021-02-01","2021-12-31","Findeter"]
[null,3,"ARQUITECTURA EMPRESARIAL","Arquitectura Empresarial core tecnico y financiero","Entregar  el resultado del ejercicio de Arquitectura","Javier Danilo David","Dirección de Tecnologia","2021-02-01","2021-04-30","Findeter"]
[null,null,null,null,"Aprobar el Mapa de Ruta","Javier Danilo David","Dirección de Tecnologia\nVicepresidencia Técnica","2021-05-01","2021-05-31","Findeter"]
[null,null,null,null,"Implementar la solucion","Hugo Henao","Dirección de Tecnologia\nVicepresidencia Técnica","2021-06-01","2021-12-31","Findeter"]
[null,4,"TRABAJO DIGITAL","Nuevas formas de trabajo en digital","Seleccionar las dependencias para fortalecer las formas de trabajo digital","Laura Reyes","Dirección de Tecnologia\nVicepresidencia de Riesgos\nDependencias seleccionadas","2021-02-01","2021-02-28","Findeter"]
[null,null,null,null,"Elaborar Plan de Fortalecimioiento de trabajo digital","Laura Reyes","Dirección de Tecnologia\nVicepresidencia de Riesgos\nDependencias seleccionadas","2021-03-01","2021-04-30","Findeter"]
[null,null,null,null,"Implementar el Plan de fortalecimiento","Laura Reyes","Dirección de Tecnologia\nVicepresidencia de Riesgos\nDependencias seleccionadas","2021-05-01","2021-12-31","Findeter"]
[null,5,"AUTOMATIZACION","Optimizacion y automatizacion de procesos","Diagnostico nivel de madurez de los procesos","Jorge Giraldo","Gerencia de Planeación y Gestión\nDirección de Tecnología","2021-02-01","2021-04-30","Findeter"]
[null,null,null,null,"Priorizar procesos a intervenir","Jorge Giraldo","Gerencia de Planeación y Gestión\nDirección de Tecnología\nDependencias involucradas","2021-05-01","2021-05-31","Findeter"]
[null,null,null,null,"Elaborar Plan de Trabajo","Jorge Giraldo","Gerencia de Planeación y Gestión\nDirección de Tecnología\nDependencia involucradas","2021-06-01","2021-06-30","Findeter"]

{"sheet":"Plan Conflicto de Interés","index":17,"n_rows":26,"n_cols":10,"rows_kept":26,"cut":false,"hidden":false,"merged":[[1,3,6,6],[20,1,22,1],[20,2,21,2],[23,1,25,1],[24,2,25,2],[14,1,19,1],[14,2,15,2],[16,2,19,2],[18,5,18,6],[19,5,19,6],[11,1,12,1],[11,9,12,9],[9,2,9,9],[11,3,12,3],[11,4,12,4],[11,5,11,8],[11,2,12,2]]}
[]
[null,null,null,"PLAN DE GESTION DE CONFLICTO DE INTERES\nFINDETER 2021"]
[]
[]
[]
[]
[]
[]
[]
[null,"Objetivo: ","Desarrollar mecanismos para prevenir y controlar la aparición de conflictos de intereses en la Entidad con el objeto de evitar la afectación del servicio y el interés general."]
[]
[null,"Componente","Categoría","Actividades de Gestión ","Responsables","Año 2021",null,null,null,"Fuente"]
[null,null,null,null,null,"Ene - Mar","Abr -Jun","Jul-Sept","Oct - Dic"]
[null,"Planeación","Diseño de la estrategia para la gestión de conflictos de intereses","Incorporar a la Gestión de Riesgos - Mapas de Riesgos de Corrupción del Plan Anticorrupción y Atención al Ciudadano - PAAC, la identificación de riesgos y controles frente a conflictos de intereses identificando los proceso ó dependencias críticas .","Oficial de Cumplimiento y Vicepresidencia de Riesgos ","Ene - Mar","Abr - Jun","Jul-Sept","Oct-Dic","Findeter"]
[null," Condiciones institucionales","Comité de Gestión y Desempeño","Incluir en los comités de gestión y desempeño institucional, el seguimiento al plan de acción de la estrategia de gestión de conflicto de intereses realizado por la Oficina de Control Interno de Gestión.","Gerencia de Planeación y Gestión - Grupo de Gestión y Desempeño","Ene - Mar","Abr - Jun","Jul-Sept","Oct-Dic","Findeter"]
[null,null,null,"Orientar ó asesorar legal o técnicamente a los servidores, contratistas, supervisores, coordinadores o jefes inmediatos, en la declaración de conflictos de intereses o decisión de impedimentos, recusaciones, inhabilidades o incompatibilidades. ","Dirección Jurídica","Ene - Mar","Abr - Jun","Jul-Sept","Oct-Dic","Findeter"]
[null,null,"Procesos y procedimientos","Revisar y Ajustar la documentación de los procesos ó dependencias identificados con riesgo de posibles conflictos de intereses.","Dependencias o procesos identificadas / Oficial de Cumplimiento / Vicepresidencia de Riesgos / Gerencia de Planeación (Grupo Mejoramiento de Procesos) ","Ene - Mar","Abr - Jun","Jul-Sept","Oct-Dic","Findeter"]
[null,null,null,"Organizar, implementar y documentar un canal de comunicación interna (correo, buzón, intranet) para recibir los impedimentos o recusaciones.","Gerencia de Comunicaciones / Secretaria General","Ene - Mar",null,null,null,"Findeter"]
[null,null,null,"Ajustar el manual de contratación de la entidad con orientaciones para que los servidores y  contratistas realicen su declaración de conflictos de intereses","Dirección de Contratación / Dirección Jurídica","Ene - Jun",null,null,null,"Findeter"]
[null,null,null,"Establecer y/o Ajustar el procedimiento interno para el manejo y declaración de conflictos de intereses de conformidad con el artículo 12 de la Ley 1437 de 2011. ","Dirección Jurídica / Dirección de Contratación / Secretaria General / Gerencia de Planeación y Gestión ( Grupo Mejoramiento de Procesos)","Ene - Jun",null,null,null,"Findeter"]
[null,"Pedagogía ","Sensibilización y capacitación","Realizar estrategias de comunicación (por diferentes medios) y sensibilización relacionadas con los temas de código de Integridad y conflicto de intereses.","Jefatura de Talento Humano / Equipo Apoyo al Comité de Gobierno Corporativo / Gerencia de Comunicaciones","Ene - Mar","Abr - Jun","Jul-Sept","Oct-Dic","Findeter"]
[null,null,null,"Implementar acciones de capacitación sobre la gestión de conflictos de intereses, su declaración proactiva, el cumplimiento de la Ley 2013 de 2019 y el trámite de los impedimentos y recusaciones de acuerdo al artículo 12 de la Ley 1437 de 2011 a través del plan de capacitación institucional.","Jefatura de Talento Humano ","Ene - Mar","Abr - Jun","Jul-Sept","Oct-Dic","Findeter"]
[null,null,"Realización del curso de integridad, transparencia y lucha contra la corrupción","Vincular a los servidores y contratistas de la entidad al curso de integridad, transparencia y lucha contra la corrupción establecido por Función Pública para dar cumplimiento a la Ley 2016 de 2020.","Jefatura de Talento Humano ","Ene - Mar","Abr - Jun","Jul-Sept","Oct-Dic","Findeter"]
[null,"Seguimiento y evaluación","Declaración de bienes, rentas y conflictos de intereses Ley 2013 de 2019","Garantizar que los servidores públicos y contratistas de la entidad obligados por la Ley 2013 de 2019 publiquen la declaración de bienes, rentas y conflicto de intereses en el aplicativo establecido por Función Pública.","Jefatura de Talento Humano / Dirección de Contratación","Ene - Mar","Abr - Jun","Jul-Sept","Oct-Dic","Findeter"]
[null,null,"\nRegistro de las declaraciones de conflictos de intereses\n","Realizar seguimiento y monitoreo al registro de conflictos de intereses que han surtido tramite ","Secretaria General / Jefatura de Talento Humano / Dirección de Contratación","Ene - Mar","Abr - Jun","Jul-Sept","Oct-Dic","Findeter"]
[null,null,null,"Realizar el seguimiento y control a la implementación de las estrategias de gestión preventiva del conflicto de intereses formuladas en la planeación institucional y a la publicación de la declaración de bienes, rentas y conflictos de intereses de los servidores públicos y contratistas que se encuentran obligados por la ley 2013 de 2019, a través de las dependencias de control interno. ","Oficina de Control Interno de Gestión","Ene - Mar","Abr - Jun","Jul-Sept","Oct-Dic","Findeter"]

{"sheet":"PTRSPI","index":18,"n_rows":19,"n_cols":25,"rows_kept":19,"cut":false,"hidden":false,"merged":[[1,3,4,5]]}
[]
[null,null,null,"     PLAN DE TRATAMIENTO DE RIESGOS DE SEGURIDAD Y \n   PRIVACIDAD DE LA INFORMACIÓN \nFINDETER 2021"]
[]
[]
[]
[]
[null,"Dependencia","Nombre de la tarea","Descripción ","Política de Gestión y Desempeño","Responsable de tarea ","Fecha Inicio","Fecha Fin","Fuente de Financiación ","Indicador (Si Aplica)","Fórmula","Meta 2020","Observaciones","Seguimiento\nTrimestre 1","Seguimiento\nTrimestre 2","Seguimiento\nTrimestre 3","Seguimiento\nTrimestre 4","Meta Trimestre 1","Meta Trimestre 2","Meta Trimestre 3","Meta Trimestre 4","Ejecución - Trimestre 1","Ejecución - Trimestre 2","Ejecución - Trimestre 3","Ejecución - Trimestre 4"]
[null,"Vicepresidencia de Riesgos","Identificación de riesgos","La identificación de riesgos, que es una tarea permanente, se realiza según lo dispuestos en las metodologias establecidas en el manual SARO aprobado por la Junta Directiva","Seguridad Digital","Lideres de Proceso",44197,44561,"Findeter"]
[null,"Vicepresidencia de Riesgos","Medición de riesgos","La medición de riesgos, que es una tarea permanente, se realiza según lo dispuestos en las metodologias establecidas en el manual SARO aprobado por la Junta Directiva, para establecer el perfil se riesgos inherente de la entidad","Seguridad Digital","Lideres de Proceso",44197,44561,"Findeter"]
[null,"Vicepresidencia de Riesgos","Control de riesgos","El contro de riesgos, que es una tarea permanente, se realiza según lo dispuestos en las metodologias establecidas en el manual SARO aprobado por la Junta Directiva, para establecer el perfil se riesgos residual de la entidad","Seguridad Digital","Lideres de Proceso",44197,44561,"Findeter"]
[null,"Vicepresidencia de Riesgos","Monitoreo de riesgos","El monitoreo de riesgos, que es una tarea permanente, se realiza según lo dispuestos en las metodologias establecidas en el manual SARO aprobado por la Junta Directiva, para establecer la efectividad de los controles establecios e informar a la alta dirección y a la junta directiva sobre su desempeño","Seguridad Digital","Vicepresidencia de riesgos",44197,44561,"Findeter"]
[null,"Vicepresidencia de Riesgos","Gestionar los eventos y/o incidentes de seguridad","Gestionar los evento y/o incidentes de seguridad de la información y ciberseguridad de acuerdo a la respectiva valoración de riesgos","Seguridad Digital","Vicepresidencia de riesgos",44197,44561,"Findeter"]
[null,"Dirección de Tecnología","Gestión de los riesgos asociados a la nueva página web de la entidad","Gestión de los riesgos inherentes asociados a la nueva página web de la entidad ","Seguridad Digital","Dirección de Tecnología",44197,44285,"Findeter"]
[null,"Dirección de Tecnología","Mitigación resultados prueba de Hacking Etico 2020","Mitigar las vulnerabiidades y/o debilidades de seguridad encontradas en la prueba de Hacking Etico realizada en el cuarto trimestre de 2020 de acuerdo a la respectiva valoración de riesgos ","Seguridad Digital","Dirección de Tecnología",44197,44377,"Findeter"]
[null,"Dirección de Tecnología","Mitigación vulnerabilidades encontrados en la primera prueba de vulnerabilidade Q1","Mitigar las vulnerabilidades identificadas en la primera prueba de vulnerabilidades (Q1) de acuerdo a la respectiva valoración de riesgos","Seguridad Digital","Dirección de Tecnología",44256,44377,"Findeter"]
[null,"Dirección de Tecnología","Mitigación vulnerabilidades encontrados en la segunda prueba de vulnerabilidade Q2","Mitigar las vulnerabilidades identificadas en la segunda prueba de vulnerabilidades (Q2) de acuerdo a la respectiva valoración de riesgos","Seguridad Digital","Dirección de Tecnología",44470,44561,"Findeter"]
[null,"Vicepresidencia de Riesgos","Capacitación anual en los sistema de gestión de riesgo que incluye los de seguridad digital","Realizar la capacitación anual de los sistema de gestión de riesgos que incluye los riesgos de seguridad de la información, ciberseguridad y seguridad digital","Seguridad Digital","Vicepresidencia de riesgos",44470,44561,"Findeter"]
[null,"Vicepresidencia de Riesgos","Generar informe de gestión integral de riesgos segundo semestre de 2020","De acuerdo a lo establecido en las normas aplicables semestralmente se presente informe de gestión de riesgos a la Junta Directiva y al comité de auditoria","Seguridad Digital","Vicepresidencia de riesgos",44197,44285,"Findeter"]
[null,"Vicepresidencia de Riesgos","Generar informe de gestión integral de riesgos primer semestre de 2021","De acuerdo a lo establecido en las normas aplicables semestralmente se presente informe de gestión de riesgos a la Junta Directiva y al comité de auditoria","Seguridad Digital","Vicepresidencia de riesgos",44348,44469,"Findeter"]

{"sheet":"PSPI","index":19,"n_rows":25,"n_cols":25,"rows_kept":25,"cut":false,"hidden":false,"merged":[[2,11,8,24],[2,3,8,5]]}
[]
[]
[null,null,null,"PLAN DE SEGURIDAD Y PRIVACIDAD DE LA INFORMACIÓN\nFINDETER 2021"]
[]
[]
[]
[]
[]
[]
[]
[null,"Dependencia","Nombre de la tarea","Descripción ","Política de Gestión y Desempeño","Responsable de tarea ","Fecha Inicio","Fecha Fin","Fuente de Financiación ","Indicador (Si Aplica)","Fórmula","Meta 2020","Observaciones","Seguimiento\nTrimestre 1","Seguimiento\nTrimestre 2","Seguimiento\nTrimestre 3","Seguimiento\nTrimestre 4","Meta Trimestre 1","Meta Trimestre 2","Meta Trimestre 3","Meta Trimestre 4","Ejecución - Trimestre 1","Ejecución - Trimestre 2","Ejecución - Trimestre 3","Ejecución - Trimestre 4"]
[null,"Vicepresidencia de Riesgos","Sensibilización y socialización temas de seguridad de la información y ciberseguridad al interior de la entidad","Realizar actividades y/o publicar de forma periodica temas relacionados con seguridad de la información y/o ciberseguridad con el objetivo de fortalecer la cultura de seguridad en la entidad","Seguridad Digital","Carlos Alberto Guzmán Silva\nJuan Manuel Gutierrez",44197,44561,"Findeter"]
[null,"Vicepresidencia de Riesgos","Ejecución campañas seguridad de la información y ciberseguridad para clientes exernos","Realizar de campañas de seguridad seguridad de la información y/o ciberseguridad para clientes externo","Seguridad Digital","Carlos Alberto Guzmán Silva\nJuan Manuel Gutierrez",44197,44377,"Findeter"]
[null,"Vicepresidencia de Riesgos","Análisis GAP ISO 27001","Realiizar un análisis GAP del nivel de cumplimiento de la norma ISO 27001 e identificar las brechas de cumplimiento","Seguridad Digital","Carlos Alberto Guzmán Silva\nJuan Manuel Gutierrez",44197,44285,"Findeter"]
[null,"Vicepresidencia de Riesgos","Contratar servicios de seguridad gestionada soportados en un SOC","Realizar el proceso de contratación de los servicios de seguridad gestionada soportados en un SOC","Seguridad Digital","Carlos Alberto Guzmán Silva\nJuan Manuel Gutierrez",44256,44377,"Findeter"]
[null,"Vicepresidencia de Riesgos","Fortalecer monitoreo de amenzas ","Fortalecer el monitoreo y correlación de eventos de seguridad de la información y ciberamenazas","Seguridad Digital","Carlos Alberto Guzmán Silva\nJuan Manuel Gutierrez",44197,44561,"Findeter"]
[null,"Vicepresidencia de Riesgos","Fortalecer gestión de incidentes de seguridad de la información","Fortalecer el proceso de identificación y gestión de los incidentes de seguridad de la información y alinación con los eventos de riesgos","Seguridad Digital","Carlos Alberto Guzmán Silva\nJuan Manuel Gutierrez",44197,44316,"Findeter"]
[null,"Vicepresidencia de Riesgos","Cumplimiento circular 033 de 2020  SFC","Dar cumlimiento a los requerimientos establecidos por la SFC en la CE 033 de 2020","Seguridad Digital","Carlos Alberto Guzmán Silva\nJuan Manuel Gutierrez",44197,44316,"Findeter"]
[null,"Vicepresidencia de Riesgos","Ejecución analísis de vulnerabilidades primera prueba anual (Q1)","Ejecutar la primera prueba anual de analisis vulnerabilidades sobre la infraestructura tecnologica de la entidad","Seguridad Digital","Carlos Alberto Guzmán Silva\nJuan Manuel Gutierrez",44211,44285,"Findeter"]
[null,"Dirección de Tecnología","Mitigación de vulnerabilidades primera prueba (Q1)","Mitigar las vulnerabilidades identificadas en la primera prueba de vulnerabilidades","Seguridad Digital","Dirección de Tecnología",44287,44377,"Findeter"]
[null,"Vicepresidencia de Riesgos","Ejecución analísis de vulnerabilidades primera prueba anual (Q2)","Ejecutar la segundo prueba anual de analisis vulnerabilidades sobre la infraestructura tecnologica de la entidad","Seguridad Digital","Carlos Alberto Guzmán Silva\nJuan Manuel Gutierrez",44378,44469,"Findeter"]
[null,"Dirección de Tecnología","Mitigación de vulnerabilidades primera prueba (Q2)","Mitigar las vulnerabilidades identificadas en la segunda prueba de vulnerabilidades","Seguridad Digital","Dirección de Tecnología",44470,44561,"Findeter"]
[null,"Dirección de Tecnología","Mitigación resultados prueba de Hacking Etico 2020","Mitigar las vulnerabiidades y/o debilidades de seguridad encontradas en la prueba de Hacking Etico realizada en el cuarto trimestre de 2020","Seguridad Digital","Dirección de Tecnología",44197,44377,"Findeter"]
[null,"Vicepresidencia de Riesgos","Ejecución Prueba de Hacking Etico","Ejecutar la prueba anual de Hacking Etico","Seguridad Digital","Carlos Alberto Guzmán Silva\nJuan Manuel Gutierrez",44378,44561,"Findeter"]
[null,"Vicepresidencia de Riesgos","Ejecución Prueba de Ingeneria Social","Ejecutar prueba anual de ingeneria social","Seguridad Digital","Carlos Alberto Guzmán Silva\nJuan Manuel Gutierrez",44378,44561,"Findeter"]

{"sheet":"Consolidado","index":20,"n_rows":27,"n_cols":13,"rows_kept":27,"cut":false,"hidden":true,"merged":[[0,1,2,2],[0,3,2,12]]}
[null,null,null,"PLAN ANTICORRUPCIÓN Y DE ANTENCIÓN AL CIUDADANO"]
[]
[]
[]
[null,"Plan ","Fuente de Financiación ","Componente Plan Anticorrupción y Atención al Ciudadano ","Categoría","Nombre de la tarea","Descripción ","Responsable de tarea ","Fecha Inicio","Fecha Fin","Proceso ","Área Organizativa","Política de Gestión y Desempeño"]
[null,"PAA.2018.OAP","'Fuente de recursos: Funcionamiento "," 1. Riesgos de Corrupción ","1.2 Construcción del mapa de riesgos de corrupción","Publicar periódicamente en la página web el mapa de riesgos de corrupción.","Para asegurar la publicación en la página web del mapa de riesgos de corrupción vigente, se realizarán publicaciones periódicas, de acuerdo con los ajustes que se realicen al mapa.","Sergio Esteban Varela Guzman","2018-02-01","2018-12-31","Est.1.4","Oficina Asesora de Planeación","Política de Transparencia, acceso a la información pública y lucha contra la corrupción"]
[null,"PAA.2018.OAP","'Fuente de recursos: Funcionamiento "," 1. Riesgos de Corrupción ","1.4 Monitoreo y revisión","Realizar el seguimiento al estado de los riesgos de corrupción","Realizar seguimiento a las modificaciones, creaciones o eliminaciones de los riesgos de corrupción. Adicionalmente, verificar la documentación del monitoreo para este tipo de riesgos. Este seguimiento se realiza cada cuatro meses, durante mayo, septiembre y enero.\nProducto: documentación periódica en el SMGI del estado de los riesgos de corrupción","Daissy Tatiana Santos Yate","2018-05-02","2018-12-31","Est.1.4","Oficina Asesora de Planeación","Política de Transparencia, acceso a la información pública y lucha contra la corrupción"]
[null,"PAA.2018.OAP","'Fuente de recursos: Funcionamiento "," 1. Riesgos de Corrupción ","1.3 Consulta y divulgación","Realizar la consulta y divulgación del mapa de riesgos de corrupción","Disponer de los mecanismos necesarios para que todos los servidores de la Entidad y partes interesadas, se hagan participes en la construcción del mapa de riesgos de corrupción.\n\nPresentar a los servidores de la Entidad, la actualización realizada al mapa de riesgos institucional, mediante los diferentes canales de comunicación disponibles.\nExternamente, se realizará la publicación del mapa de riesgos actualizado en la pagina web.\nProducto: evidencias de consulta y divulgación del mapa","Daissy Tatiana Santos Yate","2018-03-01","2018-05-21","Est.1.4","Oficina Asesora de Planeación","Política de Transparencia, acceso a la información pública y lucha contra la corrupción"]
[null,"PAA.2018.OAP","'Fuente de recursos: Funcionamiento "," 1. Riesgos de Corrupción ","1.1 Política de administración de riesgos","Divulgar de los ajustes realizados a la guía de riesgos","Socializar los ajustes realizados frente a la administración de los riesgos de corrupción.\nProducto: evidencias de actividades de socialización por diferentes canales de comunicación.","Daissy Tatiana Santos Yate","2018-04-01","2018-05-21","Est.1.4","Oficina Asesora de Planeación","Política de Transparencia, acceso a la información pública y lucha contra la corrupción"]
[null,"PAA.2018.OAP","'Fuente de recursos: Funcionamiento "," 1. Riesgos de Corrupción ","1.1 Política de administración de riesgos","Actualizar la guía de riesgos institucional","Actualización de la guía de riesgos, de acuerdo con los ajustes realizados en 2017 en el SMGI","Daissy Tatiana Santos Yate","2018-02-01","2018-05-04","Est.1.4","Oficina Asesora de Planeación","Política de Transparencia, acceso a la información pública y lucha contra la corrupción"]
[null,"PAA.2018.OAP","'Fuente de recursos: Funcionamiento "," 2. Racionalización de Trámites ","2.3 Racionalización de trámites","Elaborar la Estrategia de Racionalización de Trámites 2018","Coordinar con las áreas responsables de los tramites del Ministerio, inscritos en SUIT, la estrategia de racionalización para 2018 y registrar las acciones definidas en el SUIT","Fernando Jose Velasquez Avila","2018-01-30","2018-02-28","Est.1.1","Oficina Asesora de Planeación","Política de Racionalización de trámites"]
[null,"PAA.2018.OAP","'Fuente de recursos: Funcionamiento "," 2. Racionalización de Trámites ","2.3 Racionalización de trámites","Realizar seguimiento en SUIT al registro de avances de la Estrategia de Racionalización","Realizar seguimiento y apoyo para el registro de los avances de la Estrategia de racionalización en el SUIT para cada cuatrimestre.","Fernando Jose Velasquez Avila","2018-05-01","2018-12-31","Est.1.1","Oficina Asesora de Planeación","Política de Racionalización de trámites"]
[null,"Ini.2015.EA1.001 Fortalecer el análisis, toma de decisiones y divulgación de la información del Sistema General de Regalías (SGR)","'Fuente de recursos: Funcionamiento "," 3. Rendición de Cuentas ","3.1 Información de calidad y en lenguaje comprensible","Mejorar el diseño del subsitio SGR en el portal del MHCP","Realizar el levantamiento de requerimientos para mejorar el diseño del subsitio SGR en el portal www.minhacienda.gov.co\nProducto: Propuesta de diseño del subsitio SGR (fase 1) finalizada.","Erika Viviana Mancipe Moncada","2018-09-01","2018-12-31","Mis.4.9","Despacho del Viceministro General","Política de Transparencia, acceso a la información pública y lucha contra la corrupción - Política de Participación Ciudadana en la Gestión Pública"]
[null,"Ini.2015.EA1.002 Fortalecer la divulgación del mensaje estratégico del Ministerio de Hacienda y Crédito Público","Fuente de recursos: Funcionamiento "," 3. Rendición de Cuentas ","3.2 Dialogo de doble vía con la ciudadanía y sus organizaciones","Visitar universidades","El Ministerio de Hacienda y Crédito Público, busca propiciar espacios de interacción con la comunidad estudiantil con el fin de contar los avances de los diferentes temas a cargo de la entidad y atender las inquietudes que en el desarrollo del ejercicio se puedan presentar con el fin de afianzar el intercambio de información con los estudiantes.\n\nProducto: tres visitas a universidades","Olga Ximena Novoa Gonzalez","2018-03-01","2018-12-31","Est.1.3","Comunicaciones","Política de Participación Ciudadana en la Gestión Pública"]
[null,"Ini.2015.EA1.002 Fortalecer la divulgación del mensaje estratégico del Ministerio de Hacienda y Crédito Público","'Fuente de recursos: Funcionamiento "," 3. Rendición de Cuentas ","3.1 Información de calidad y en lenguaje comprensible","Fortalecer los espacios de comunicación interna","La sección digital La Pizarra en la intranet tiene como propósito generar información de interés para los servidores públicos que permita conocer las actividades que realiza el Ministerio tanto interna como externamente y comunicarlas. A través de éste canal se realizarán campañas de sensibilización en lo correspondiente al componente rendición de cuentas.\n\nProducto: cuatro publicaciones","Olga Ximena Novoa Gonzalez","2018-03-01","2018-12-31","Est.1.3","Comunicaciones","Política de Transparencia, acceso a la información pública y lucha contra la corrupción"]
[null,"Ini.2015.EA1.002 Fortalecer la divulgación del mensaje estratégico del Ministerio de Hacienda y Crédito Público","'Fuente de recursos: Funcionamiento "," 3. Rendición de Cuentas ","3.3 Incentivos para motivar la cultura de la rendición y petición de cuentas","Realizar conversatorios ciudadanos","Fortalecer las relaciones entre el Ministerio de Hacienda y Crédito Público con los ciudadanos, en especial con el sector académico conformado por: investigadores, estudiantes y docentes; mediante la realización de conversatorios que tendrán como eje central los temas de actual coyuntura económica en el país; y en los que además se presentará la gestión que desarrollada para poder a disposición de los ciudadanos la Biblioteca ?José María del Castillo y Rada?, junto con sus servicios y colecciones disponibles.\n\nProducto: un conversatorio","Carlos Andres Gil Santamaria","2018-07-01","2018-12-31","Esp.1.1","Comunicaciones","Política de Transparencia, acceso a la información pública y lucha contra la corrupción - Política de Participación Ciudadana en la Gestión Pública"]
[null,"Ini.2015.EA1.002 Fortalecer la divulgación del mensaje estratégico del Ministerio de Hacienda y Crédito Público","'Fuente de recursos: Funcionamiento "," 3. Rendición de Cuentas ","3.4 Evaluación y retroalimentación a la gestión institucional","Realizar el ejercicio de Audiencia Pública de Rendición de Cuentas","La Audiencia Pública es un encuentro de explicación y reflexión sobre los resultados de la gestión del periodo agosto de 2017 ? julio 2018 donde se informa y aclaran dudas sobre temas cruciales para la interlocución y deliberación colectiva con la ciudadanía.\n\nProducto: un ejercicio de audiencia","Olga Ximena Novoa Gonzalez","2018-06-01","2018-12-31","Est.1.3","Comunicaciones","Política de Transparencia, acceso a la información pública y lucha contra la corrupción - Política de Participación Ciudadana en la Gestión Pública"]
[null,"Ini.2015.EA1.002 Fortalecer la divulgación del mensaje estratégico del Ministerio de Hacienda y Crédito Público","'Fuente de recursos: Funcionamiento "," 3. Rendición de Cuentas ","3.2 Dialogo de doble vía con la ciudadanía y sus organizaciones","Participar en Ferias Ciudadanas","El Programa Feria Nacional de Servicio al Ciudadano (FNSC) nos comparte el cronograma de los municipios donde se hará presencia, la programación está sujeta a los ajustes que realice el Departamento Nacional de Planeación (DNP) como líder de dichas ferias. El Ministerio acompaña estos ejercicios y de una manera clara entrega información de interés a la ciudadanía.\n\nProducto: participación en dos ferias","Olga Ximena Novoa Gonzalez","2018-03-01","2018-12-31","Est.1.3","Comunicaciones","Política de Participación Ciudadana en la Gestión Pública"]
[null,"Ini.2015.EA1.002 Fortalecer la divulgación del mensaje estratégico del Ministerio de Hacienda y Crédito Público","'Fuente de recursos: Funcionamiento "," 3. Rendición de Cuentas ","3.4 Evaluación y retroalimentación a la gestión institucional","Realizar el ejercicio de Audiencia Pública de Rendición de Cuentas.","A través de la Audiencia Pública se abordarán los temas de recursos relacionados con el Ocad Paz derivado del Acuerdo Final para la Terminación del Conflicto y la Construcción de una Paz Estable y Duradera.\n\nProducto: un ejercicio de audiencia","Olga Ximena Novoa Gonzalez","2018-02-01","2018-06-30","Est.1.3","Comunicaciones","Política de Transparencia, acceso a la información pública y lucha contra la corrupción - Política de Participación Ciudadana en la Gestión Pública"]
[null,"PAA.2018.DA","'Fuente de recursos: Funcionamiento "," 4. Mecanismos para mejorar la atención al ciudadano ","4.4 Normativo y procedimental","Socializar a funcionarios y Lideres de Procesos con responsabilidades en atención y respuesta a solicitudes de acceso a la información.","Realizar piezas publicitarias, dando a conocer las características a tener en cuenta en la atención a las solicitudes de acceso a la información, derechos de petición de interés general, derecho de petición de interés particular, derecho de petición de consulta, petición entre autoridades y socializarlas por los canales internos de comunicación del Ministerio de Hacienda y Crédito Público.","Carlos Andres Gil Santamaria","2018-02-02","2018-12-31","Esp.1.1","Dirección Administrativa","Política de Servicio al ciudadano"]
[null,"PAA.2018.DA","'Fuente de recursos: Funcionamiento "," 4. Mecanismos para mejorar la atención al ciudadano ","4.4 Normativo y procedimental","Actualizar los instrumentos de Gestión de la Información","Actualizar según la TRD aprobada por el Archivo General de la Nación el inventario de activos de información e índice de información clasificada y reservada.","Carlos Andres Gil Santamaria","2018-08-03","2018-12-31","Apo.4.3","Dirección Administrativa","Política de Servicio al ciudadano"]
[null,"PAA.2018.DA","'Fuente de recursos: Funcionamiento "," 4. Mecanismos para mejorar la atención al ciudadano ","4.4 Normativo y procedimental","Revisar y actualizar de la caracterización grupos de valor del Ministerio de Hacienda y Crédito Público.","Adelantar la actualización de la caracterización de grupos de valor que interactúan con los servicios que brinda el Ministerio de Hacienda y Crédito Público, realizando mesas de trabajo con las áreas involucradas.\nEntregable: Caracterización de usuarios MHCP","Carlos Andres Gil Santamaria","2018-02-02","2018-12-31","Esp.1.1","Dirección Administrativa","Política de Servicio al ciudadano"]
[null,"Ini.2015.EA1.003 Implementar el portal central de transparencia fiscal","Fuente de recursos: Cooperación Suiza y Funcionamiento "," 5. Mecanismos para la transparencia y acceso a la información ","5.1 Lineamientos de transparencia activa","Publicar tres diferentes reportes de la ejecución física del Presupuesto General de la Nación en inversión y funcionamiento.","Publicar a junio 30 de 2018 tres diferentes reportes que den cuenta de la ejecución física del Presupuesto General de la Nación, no solo para la inversión sino también para el funcionamiento.","Claudia Marcela Numa Paez","2018-01-01","2018-06-30","Mis.2.2","Dirección General de Presupuesto Público Nacional","Política de Transparencia, acceso a la información pública y lucha contra la corrupción"]
[null,"Ini.2015.EA1.003 Implementar el portal central de transparencia fiscal","Fuente de recursos: Cooperación Suiza y Funcionamiento "," 5. Mecanismos para la transparencia y acceso a la información ","5.1 Lineamientos de transparencia activa","Diseñar, dar a conocer y poner en práctica la estrategia de divulgación del Portal a la ciudadanía.","Diseñar, dar a conocer y poner en práctica antes del 31 de diciembre de 2018 la estrategia de divulgación del Portal a la ciudadanía con el fin de colaborar en los ya establecidos procesos de veedurías ciudadanas a los recursos públicos.","Claudia Marcela Numa Paez","2018-01-01","2018-12-31","Mis.2.2","Dirección General de Presupuesto Público Nacional","Política de Transparencia, acceso a la información pública y lucha contra la corrupción"]
[null,"PAA.2018.DA","'Fuente de recursos: Funcionamiento "," 5. Mecanismos para la transparencia y acceso a la información ","5.1 Lineamientos de transparencia activa","Gestionar los procesos de contratación a través de SECOP II.","Realizar continuamente por parte de los abogados la publicación de cada una de las etapas de contratación en la plataforma del sistema electrónico de la contratación publica, portal único de Contratación ? SECOP II, con el fin de que lo puedan observar y participar los interesados, y a su vez lo conozcan los entes de control, las veedurías y terceros, en cumplimiento de Ley 80 de 1993, Ley 1150 de 2007 y Decreto 1082 de 2015.","Sonia Milena Hernandez Nariño","2018-01-01","2018-12-31","Apo.4.1","Dirección Administrativa","Política de Transparencia, acceso a la información pública y lucha contra la corrupción"]
[null,"PAA.2018.DA","'Fuente de recursos: Funcionamiento "," 5. Mecanismos para la transparencia y acceso a la información ","5.4 Criterio diferencial de accesibilidad","Validar los requisitos para asegurar el acceso de la información en los diferentes canales del Ministerio a los grupos indígenas, étnicos, culturales y personas con discapacidad.","Realizar mesas de trabajo, para establecer los requisitos necesarios que permita asegurar el acceso a la información a estos grupos.\nEntregable: Documento requisitos.","Carlos Andres Gil Santamaria","2018-02-02","2018-12-29","Esp.1.1","Dirección Administrativa","Política de Transparencia, acceso a la información pública y lucha contra la corrupción"]
[null,"Ini.2015.RI1.001 Fortalecer el clima organizacional de la Entidad","'Fuente de recursos: Funcionamiento "," 6. Otras Iniciativas","Rutas de Creación de Valor","Desarrollar actividades encaminadas a la sensibilización y apropiación del Código de Integridad.","Realizar actividades enfocadas a la sensibilización y apropiación del Código de Integridad del servidor público, como parte del Plan Institucional de Capacitación 2018.","Vilma Patricia Ferreira Lugo","2018-03-01","2018-12-31","Apo.2.2","Dirección Administrativa","Política de Gestión Estratégica del Talento Humano - Política de Integridad"]